Workbook

Sheet Data (hidden)
P2: 1 | Q2: Son
P3: 2 | Q3: Daughter
P4: 3 | Q4: Wife
B5: Data
B7: Service certificate | C7: Name | D7: 1 | E7: =MAIN!I6 -> G.Saivijaya Kumar | F7: S/O,W/O,D/O | G7: 1 | H7: 1 | P7: 1 | Q7: Sri.
C8: Designation | E8: SA(English) | F8: Designation | P8: 2 | Q8: Smt.
C9: Working place | E9: ZPPHS,Balayapalli | F9: Working place | P9: 3 | Q9: Kum.
B11: Salary certificate | C11: Salary Details | F11: Deductions
C12: Basic Pay | E12: 15280 | F12: GPF/ZPPF/CPS | I12: 1500 | P12: =VLOOKUP(D7,P7:Q9,2,FALSE) -> Sri. | Q12: =VLOOKUP(H7,P7:Q9,2,FALSE) -> Sri.
C13: DA | E13: 1439 | F13: GPF/ZPPF/CPS LOAN | K13: G.BHASKER REDDY 9666570250 | P13: =VLOOKUP(G7,P2:Q4,2,FALSE) -> Son
C14: FPI | F14: FestivalAdvance | I14: 200
C15: AI | F15: GIS | I15: 60
C16: Others | F16: APGLI | I16: 250
F17: LIC | I17: 845
F18: Others
B21: Non drawl | C21: Amount
B287: 1 | C287: 2 | D287: 3 | E287: 4 | F287: 5 | G287: 6 | H287: 7 | L287: 8 | M287: 9 | N287: 10 | O287: 11 | P287: 12 | Q287: 13 | R287: 14 | S287: 15 | T287: 16 | U287: 17 | V287: 18 | W287: 19 | X287: 20 | Y287: 21 | Z287: 22 | AA287: 23 | AB287: 24 | AC287: 25 | AD287: 26 | AE287: 27 | AF287: 30 | AG287: 31 | AH287: 32 | AI287: 33 | AJ287: 34 | AK287: 35 | AL287: 36 | AM287: 37 | AN287: 38 | AO287: 39 | AP287: 40 | AQ287: 41 | AR287: 42 | AS287: 43 | AT287: 44 | AU287: 45 | AV287: 46 | AW287: 47 | AX287: 48 | AY287: 49 | AZ287: 50 | BA287: 51 | BB287: 52 | BC287: 53 | BD287: 54 | BE287: 55 | BF287: 56 | BG287: 57 | BH287: 58 | BI287: 59 | BJ287: 60 | BK287: 61 | BL287: 62 | BM287: 63 | BN287: 64 | BO287: 65 | BP287: 66 | BQ287: 67 | BR287: 68 | BS287: 69 | BT287: 70 | BU287: 71 | BV287: 72 | BW287: 73 | BX287: 74 | BY287: 75 | BZ287: 76 | CA287: 77 | CB287: 78 | CC287: 79 | CD287: 80 | CE287: 81 | CF287: 82 | CG287: 83 | CH287: 84 | CI287: 85 | CJ287: 86 | CK287: 87 | CL287: 88 | CM287: 89 | CN287: 90 | CO287: 91 | CP287: 92 | CQ287: 93 | CR287: 94 | CS287: 95 | CT287: 96 | CU287: 97 | CV287: 98 | CW287: 99
B288: One | C288: Two | D288: Three | E288: Four | F288: Five | G288: Six | H288: Seven | L288: Eight | M288: Nine | N288: Ten | O288: Eleven | P288: Twelve | Q288: Thirteen | R288: Fourteen | S288: Fifteen | T288: Sixteen | U288: Seventeen | V288: Eighteen | W288: Nineteen | X288: Twenty | Y288: Twenty one | Z288: Twenty two | AA288: Twenty three | AB288: Twenty four | AC288: Twenty five | AD288: Twenty six | AE288: Twenty seven | AF288: Thirty | AG288: Thirty one | AH288: Thirty two | AI288: Thirty three | AJ288: Thirty four | AK288: Thirty five | AL288: Thirty six | AM288: Thirty seven | AN288: Thirty eight | AO288: Thirty nine | AP288: Forty | AQ288: Forty one | AR288: Forty two | AS288: Forty three | AT288: Forty four | AU288: Forty five | AV288: Forty six | AW288: Forty seven | AX288: Forty eight | AY288: Forty nine | AZ288: Fifty | BA288: Fifty one | BB288: Fifty two | BC288: Fifty three | BD288: Fifty four | BE288: Fifty five | BF288: Fifty six | BG288: Fifty seven | BH288: Fifty eight | BI288: Fifty nine | BJ288: sixty | BK288: Sixty one | BL288: Sixty two | BM288: Sixty three | BN288: Sixty four | BO288: Sixty five | BP288: Sixty six | BQ288: Sixty seven | BR288: Sixty eight | BS288: Sixty nine | BT288: Seventy | BU288: Seventy one | BV288: Seventy two | BW288: Seventy three | BX288: Seventy four | BY288: Seventy five | BZ288: Seventy six | CA288: Seventy seven | CB288: Seventy eight | CC288: Seventy nine | CD288: Eighty | CE288: Eighty one | CF288: Eighty two | CG288: Eighty three | CH288: Eighty four | CI288: Eighty five | CJ288: Eighty six | CK288: Eighty seven | CL288: Eighty eight | CM288: Eighty nine | CN288: Ninety | CO288: Ninety one | CP288: Ninety two | CQ288: Ninety three | CR288: Ninety four | CS288: Ninety five | CT288: Ninety six | CU288: Ninety seven | CV288: Ninety eight | CW288: Ninety nine
A290: =[1]Salary!$D$25 -> 12287 | B290: =IF(A290="","",CONCATENATE(Q290," rupees only")) -> Twelve Thousand Two Hundred and Eighty seven rupees only | C290: =INT(A290/100000) -> 0 | D290: =INT(A290/1000-C290*100) -> 12 | E290: =INT(A290/100-C290*1000-D290*10) -> 2 | F290: =INT(A290-C290*100000-D290*1000-E290*100) -> 87 | G290: =IF(C290=0,"",LOOKUP(C290,B287:CX287,B288:CX288)) ->  | H290: =IF(D290=0,"",LOOKUP(D290,B287:CX287,B288:CX288)) -> Twelve | I290: =IF(E290=0,"",LOOKUP(E290,B287:CX287,B288:CX288)) -> Two | J290: =IF(F290=0,"",LOOKUP(F290,B287:CX287,B288:CX288)) -> Eighty seven | K290: =IF(AND(E290=0,F290=0),1,2) -> 2 | L290: =IF(F290=0,3,4) -> 4 | M290: =IF(OR(K290=1,L290=3),5,6) -> 6 | N290: =IF(C290>1," Lakhs ",IF(C290>0," Lakh ","")) ->  | O290: =IF(D290>0," Thousand ","") -> Thousand | P290: =IF(E290>0," Hundred ","") -> Hundred | Q290: =IF(A290=0,"Zero",IF(A290>0,TRIM(CONCATENATE(G290,N290,H290,O290,I290,P290,IF(AND(A290>100,M290=6)," and ",""),J290)),"")) -> Twelve Thousand Two Hundred and Eighty seven
A291: 0 | B291: Zero rupees only | C291: 0 | D291: 0 | E291: 0 | F291: 0 | G291: =IF(C291=0,"",LOOKUP(C291,B287:CX287,B288:CX288)) ->  | H291: =IF(D291=0,"",LOOKUP(D291,B287:CX287,B288:CX288)) ->  | I291: =IF(E291=0,"",LOOKUP(E291,B287:CX287,B288:CX288)) ->  | J291: =IF(F291=0,"",LOOKUP(F291,B287:CX287,B288:CX288)) ->  | K291: 1 | L291: 3 | M291: 5 | Q291: Zero
A292: 0 | B292: Zero rupees only | C292: 0 | D292: 0 | E292: 0 | F292: 0 | G292: =IF(C292=0,"",LOOKUP(C292,B287:CX287,B288:CX288)) ->  | H292: =IF(D292=0,"",LOOKUP(D292,B287:CX287,B288:CX288)) ->  | I292: =IF(E292=0,"",LOOKUP(E292,B287:CX287,B288:CX288)) ->  | J292: =IF(F292=0,"",LOOKUP(F292,B287:CX287,B288:CX288)) ->  | K292: 1 | L292: 3 | M292: 5 | Q292: Zero
A293: 0 | B293: Zero rupees only | C293: 0 | D293: 0 | E293: 0 | F293: 0 | G293: =IF(C293=0,"",LOOKUP(C293,B287:CX287,B288:CX288)) ->  | H293: =IF(D293=0,"",LOOKUP(D293,B287:CX287,B288:CX288)) ->  | I293: =IF(E293=0,"",LOOKUP(E293,B287:CX287,B288:CX288)) ->  | J293: =IF(F293=0,"",LOOKUP(F293,B287:CX287,B288:CX288)) ->  | K293: 1 | L293: 3 | M293: 5 | Q293: Zero
A294: 0 | B294: Zero rupees only | C294: 0 | D294: 0 | E294: 0 | F294: 0 | G294: =IF(C294=0,"",LOOKUP(C294,B287:CX287,B288:CX288)) ->  | H294: =IF(D294=0,"",LOOKUP(D294,B287:CX287,B288:CX288)) ->  | I294: =IF(E294=0,"",LOOKUP(E294,B287:CX287,B288:CX288)) ->  | J294: =IF(F294=0,"",LOOKUP(F294,B287:CX287,B288:CX288)) ->  | K294: 1 | L294: 3 | M294: 5 | Q294: Zero
A295: 0 | B295: Zero rupees only | C295: 0 | D295: 0 | E295: 0 | F295: 0 | G295: =IF(C295=0,"",LOOKUP(C295,B287:CX287,B288:CX288)) ->  | H295: =IF(D295=0,"",LOOKUP(D295,B287:CX287,B288:CX288)) ->  | I295: =IF(E295=0,"",LOOKUP(E295,B287:CX287,B288:CX288)) ->  | J295: =IF(F295=0,"",LOOKUP(F295,B287:CX287,B288:CX288)) ->  | K295: 1 | L295: 3 | M295: 5 | Q295: Zero
A296: 0 | B296: Zero rupees only | C296: 0 | D296: 0 | E296: 0 | F296: 0 | G296: =IF(C296=0,"",LOOKUP(C296,B287:CX287,B288:CX288)) ->  | H296: =IF(D296=0,"",LOOKUP(D296,B287:CX287,B288:CX288)) ->  | I296: =IF(E296=0,"",LOOKUP(E296,B287:CX287,B288:CX288)) ->  | J296: =IF(F296=0,"",LOOKUP(F296,B287:CX287,B288:CX288)) ->  | K296: 1 | L296: 3 | M296: 5 | Q296: Zero
A297: 0 | B297: Zero rupees only | C297: 0 | D297: 0 | E297: 0 | F297: 0 | G297: =IF(C297=0,"",LOOKUP(C297,B287:CX287,B288:CX288)) ->  | H297: =IF(D297=0,"",LOOKUP(D297,B287:CX287,B288:CX288)) ->  | I297: =IF(E297=0,"",LOOKUP(E297,B287:CX287,B288:CX288)) ->  | J297: =IF(F297=0,"",LOOKUP(F297,B287:CX287,B288:CX288)) ->  | K297: 1 | L297: 3 | M297: 5 | Q297: Zero
A298: 0 | B298: Zero rupees only | C298: 0 | D298: 0 | E298: 0 | F298: 0 | G298: =IF(C298=0,"",LOOKUP(C298,B287:CX287,B288:CX288)) ->  | H298: =IF(D298=0,"",LOOKUP(D298,B287:CX287,B288:CX288)) ->  | I298: =IF(E298=0,"",LOOKUP(E298,B287:CX287,B288:CX288)) ->  | J298: =IF(F298=0,"",LOOKUP(F298,B287:CX287,B288:CX288)) ->  | K298: 1 | L298: 3 | M298: 5 | Q298: Zero
A299: 0 | B299: Zero rupees only | C299: 0 | D299: 0 | E299: 0 | F299: 0 | G299: =IF(C299=0,"",LOOKUP(C299,B287:CX287,B288:CX288)) ->  | H299: =IF(D299=0,"",LOOKUP(D299,B287:CX287,B288:CX288)) ->  | I299: =IF(E299=0,"",LOOKUP(E299,B287:CX287,B288:CX288)) ->  | J299: =IF(F299=0,"",LOOKUP(F299,B287:CX287,B288:CX288)) ->  | K299: 1 | L299: 3 | M299: 5 | Q299: Zero
A300: 0 | B300: Zero rupees only | C300: 0 | D300: 0 | E300: 0 | F300: 0 | G300: =IF(C300=0,"",LOOKUP(C300,B287:CX287,B288:CX288)) ->  | H300: =IF(D300=0,"",LOOKUP(D300,B287:CX287,B288:CX288)) ->  | I300: =IF(E300=0,"",LOOKUP(E300,B287:CX287,B288:CX288)) ->  | J300: =IF(F300=0,"",LOOKUP(F300,B287:CX287,B288:CX288)) ->  | K300: 1 | L300: 3 | M300: 5 | Q300: Zero
A301: 0 | B301: Zero rupees only | C301: 0 | D301: 0 | E301: 0 | F301: 0 | G301: =IF(C301=0,"",LOOKUP(C301,B287:CX287,B288:CX288)) ->  | H301: =IF(D301=0,"",LOOKUP(D301,B287:CX287,B288:CX288)) ->  | I301: =IF(E301=0,"",LOOKUP(E301,B287:CX287,B288:CX288)) ->  | J301: =IF(F301=0,"",LOOKUP(F301,B287:CX287,B288:CX288)) ->  | K301: 1 | L301: 3 | M301: 5 | Q301: Zero
A302: 0 | B302: Zero rupees only | C302: 0 | D302: 0 | E302: 0 | F302: 0 | G302: =IF(C302=0,"",LOOKUP(C302,B287:CX287,B288:CX288)) ->  | H302: =IF(D302=0,"",LOOKUP(D302,B287:CX287,B288:CX288)) ->  | I302: =IF(E302=0,"",LOOKUP(E302,B287:CX287,B288:CX288)) ->  | J302: =IF(F302=0,"",LOOKUP(F302,B287:CX287,B288:CX288)) ->  | K302: 1 | L302: 3 | M302: 5 | Q302: Zero
A303: 0 | B303: Zero rupees only | C303: 0 | D303: 0 | E303: 0 | F303: 0 | G303: =IF(C303=0,"",LOOKUP(C303,B287:CX287,B288:CX288)) ->  | H303: =IF(D303=0,"",LOOKUP(D303,B287:CX287,B288:CX288)) ->  | I303: =IF(E303=0,"",LOOKUP(E303,B287:CX287,B288:CX288)) ->  | J303: =IF(F303=0,"",LOOKUP(F303,B287:CX287,B288:CX288)) ->  | K303: 1 | L303: 3 | M303: 5 | Q303: Zero
A304: 0 | B304: Zero rupees only | C304: 0 | D304: 0 | E304: 0 | F304: 0 | G304: =IF(C304=0,"",LOOKUP(C304,B287:CX287,B288:CX288)) ->  | H304: =IF(D304=0,"",LOOKUP(D304,B287:CX287,B288:CX288)) ->  | I304: =IF(E304=0,"",LOOKUP(E304,B287:CX287,B288:CX288)) ->  | J304: =IF(F304=0,"",LOOKUP(F304,B287:CX287,B288:CX288)) ->  | K304: 1 | L304: 3 | M304: 5 | Q304: Zero
A305: 0 | B305: Zero rupees only | C305: 0 | D305: 0 | E305: 0 | F305: 0 | G305: =IF(C305=0,"",LOOKUP(C305,B287:CX287,B288:CX288)) ->  | H305: =IF(D305=0,"",LOOKUP(D305,B287:CX287,B288:CX288)) ->  | I305: =IF(E305=0,"",LOOKUP(E305,B287:CX287,B288:CX288)) ->  | J305: =IF(F305=0,"",LOOKUP(F305,B287:CX287,B288:CX288)) ->  | K305: 1 | L305: 3 | M305: 5 | Q305: Zero

Sheet Mandals3 (hidden)
Y1: 10 | Z1: =LOOKUP(Y1,Y3:Z25,Z3:Z25) -> Krishan District | AA1: 5 | AF1: 10 | AG1: =LOOKUP(AF1,AF3:AG25,AG3:AG25) -> Krishan District
B2: Adilabad | C2: Anathapuram | D2: Chittoor District | E2: West godavari District | F2: Guntur District | G2: Hyderabad District | H2: kaddapah District | I2: Kareemnagar District | J2: Khammam District | K2: Krishan District | L2: Kurnool District | M2: Mahaboobnagar District | N2: Medak District | O2: Nalgonda District | P2: Nizamabad District | Q2: Nellore District | R2: Prakasam District | S2: Ranga reddy District | T2: Sreekakulam District | U2: Visakhapatnam District | V2: Vizianagaram District | W2: Warangal District | X2: West godavari District | Y2: S.No | Z2: Districts | AA2: =LOOKUP(AA1,Y3:Y68,AA3:AA68) -> Bapulapadu | AC2: 11 | AD2: =LOOKUP(AC2,Y3:AA68,AA3:AA68) -> Gannavaram | AF2: S.No | AG2: Districts
A3: 1 | B3: Adilabad | C3: Agali | D3: B Kothakota | E3: Achanta | F3: Achampeta | H3: Atlur | I3: Bheemadevarpalle | J3: Aswapuram | K3: A Konduru | L3: Adoni | M3: Achampeta | N3: Alladurg | O3: Alair | P3: Armur | Q3: Allur | R3: Addanki | S3: Balanagar | T3: Amadalavalasa | U3: Anakapalli | V3: Badangi | W3: Atmakur | X3: Achanta | Y3: 1 | Z3: Adilabad | AA3: =HLOOKUP($Z$1,$B$2:$X$68,AB3,FALSE) -> A Konduru | AB3: 2 | AF3: 1 | AG3: Adilabad
A4: 2 | B4: Narnoor | C4: Amadagur | D4: Baireddi Palle | E4: Akiveedu | F4: Amaravathi | H4: B Kodur | I4: Boinpalle | J4: Aswaraopeta | K4: Agiripalle | L4: Allagadda | M4: Addakal | N4: Andole | O4: Anumula | P4: Balkonda | Q4: Ananthasagaram | R4: Ardhaveedu | S4: Bantaram | T4: Battili | U4: Anandapuram | V4: Balajipeta | W4: Bachannapeta | X4: Akiveedu | Y4: 2 | Z4: Anathapuram | AA4: Agiripalle | AB4: 3 | AF4: 2 | AG4: Anathapuram
A5: 3 | B5: Bela | C5: Amarapuram | D5: Bangarupalem | E5: Attili | F5: Amruthalur | H5: Badvel | I5: Chandurthi | J5: Bayyaram | K5: Avanigadda | L5: Alur | M5: Aiza | N5: Chegunta | O5: Atmakur | P5: Banswada | Q5: Anumasamudrampeta | R5: Ballikuruva | S5: Basheerabad | T5: Bhamini | U5: Ananthagiri | V5: Bhoghapuram | W5: Bhupalpalle | X5: Attili | Y5: 3 | Z5: Chittoor District | AA5: Avanigadda | AB5: 4 | AF5: 3 | AG5: Chittoor District
A6: 4 | B6: Boath | C6: Anantapur | D6: Buchinaidu Khandriga | E6: Bheemavaram | F6: Bapatla | H6: Brahmamgarimattam | I6: Choppadandi | J6: Bhadrachalam | K6: Bantumilli | L6: Aspari | M6: Alampur | N6: Chinna Kodur | O6: Atmakur | P6: Bheemgal | Q6: Atmakur | R6: Bestavaripeta | S6: Chevella | T6: Burja | U6: Araku Valley | V6: Bobbili | W6: Chennaraopet | X6: Bheemavaram | Y6: 4 | Z6: West godavari District | AA6: Bantumilli | AB6: 5 | AF6: 4 | AG6: West godavari District
A7: 5 | B7: Dilawarpur | C7: Atmakur | D7: Chandragiri | E7: Bhimadole | F7: Bellamkonda | H7: Chakrayapet | I7: Dharmapuri | J7: Bonakal | K7: Bapulapadu | L7: Atmakur | M7: Amangal | N7: Doultabad | O7: Bhuvanagiri | P7: Bhiknur | Q7: Balayapalli | R7: Chadrasekara Puram | S7: Dharur | T7: Etcherla | U7: Atchutapuram | V7: Bondapalle | W7: Cheriyal | X7: Bhimadole | Y7: 5 | Z7: Guntur District | AA7: Bapulapadu | AB7: 6 | AF7: 5 | AG7: Guntur District
A8: 6 | B8: Jainad | C8: Bathalapalle | D8: Chinnagottigallu | E8: Buttayagudem | F8: Bhattiprolu | H8: Chapad | I8: Dharmaram | J8: Burgampadu | K8: Challapalli | L8: Banaganapalle | M8: Amrabad | N8: Dubbak | O8: Bibinagar | P8: Bichkunda | Q8: Bogole | R8: Chimakurthi | S8: Domah | T8: Ganguvari Singadam | U8: Bheemunipatnam | V8: Chintalavalasa | W8: Chityal | X8: Buttayagudem | Y8: 6 | Z8: Hyderabad District | AA8: Challapalli | AB8: 7 | AF8: 6 | AG8: Hyderabad District
A9: 7 | B9: Kaddampeddur | C9: Beluguppa | D9: Chittoor | E9: Chagallu | F9: Bollapalle | H9: Chennur | I9: Ellanthakunta | J9: Chandrugonda | K9: Chandarlapadu | L9: Bandi Atmakur | M9: Atmakur | N9: Eddumailaram | O9: Bommalaramaram | P9: Birkoor | Q9: Buchireddipalem | R9: Chinaganjam | S9: Gandeed | T9: Kaligapatnam | U9: Butchayyapeta | V9: Cheepurupalle | W9: Devaruppula | X9: Chagallu | Y9: 7 | Z9: Kaddapah District | AA9: Chandarlapadu | AB9: 8 | AF9: 7 | AG9: Kaddapah District
A10: 8 | B10: Khanpur | C10: Bommanahal | D10: Chowdepalle | E10: Chintalapudi | F10: Chebrole | H10: ChinnaChowk | I10: Gambhiraopet | J10: Cherla | K10: Chatrai | L10: Bethamcherla | M10: Balanagar | N10: Gajwel | O10: Chandam Pet | P10: Bodhan | Q10: Chejerla | R10: Chirala | S10: Ghatkesar | T10: Hiramandalam | U10: Cheedikada | V10: Dattirajeru | W10: Dharmasagar | X10: Chintalapudi | Y10: 8 | Z10: Kareemnagar District | AA10: Chatrai | AB10: 9 | AF10: 8 | AG10: Kareemnagar District
A11: 9 | B11: Kuntala | C11: Brahmasamudram | D11: Gangadhara Nellore | E11: Denduluru | F11: Cherukupalle | H11: Chinnamandem | I11: Gangadhara | J11: Chinthakani | K11: G Konduru | L11: Bugganipalle | M11: Balmoor | N11: Hathnoora | O11: Chandur | P11: Dhar Palle | Q11: Chillakur | R11: Cumbum | S11: Hayathnagar | T11: Ichchapuram | U11: Chintapalle | V11: Denkada | W11: Dornakal | X11: Denduluru | Y11: 9 | Z11: Khammam District | AA11: G Konduru | AB11: 10 | AF11: 9 | AG11: Khammam District
A12: 10 | B12: Mamda | C12: Bukkapatnam | D12: Gangavaram | E12: Devarapalle | F12: Chilakaluripet | H12: Chintha Kommadinne | I12: Gollapalle | J12: Chintur | K12: Gampalagudem | L12: C.Belagal | M12: Bhoothpur | N12: Jagdevpur | O12: Chilkur | P12: Dich Palle | Q12: Chittamur | R12: Darsi | S12: Ibrahimpatam | T12: Jalumuru | U12: Chodavaram | V12: Gajapathinagaram | W12: Duggondi | X12: Devarapalle | Y12: 10 | Z12: Krishan District | AA12: Gampalagudem | AB12: 11 | AF12: 10 | AG12: Krishan District
A13: 11 | B13: Rebbana | C13: Bukkarayasamudram | D13: Gudi Palle | E13: Dwaraka Tirumala | F13: Dachepalle | H13: Chitvel | I13: Husnabad | J13: Dammapeta | K13: Gannavaram | L13: Chagalamarri | M13: Bijinapalle | N13: Jharasangam | O13: Chintha Palle | P13: Domakonda | Q13: Dagadarthi | R13: Donakonda | S13: Kandukur | T13: Kanchili | U13: Devarapalle | V13: Gantyada | W13: Eturnagaram | X13: Dwaraka Tirumala | Y13: 11 | Z13: Kurnool District | AA13: Gannavaram | AB13: 12 | AF13: 11 | AG13: Kurnool District
A14: 12 | B14: Talamadugu | C14: Chenne Kothapalle | D14: Gudipala | E14: Eluru | F14: Duggirala | H14: Cuddapah | I14: Huzurabad | J14: Dummugudem | K14: Ghantasala | L14: Chippagiri | M14: Bomraspeta | N14: Jinnaram | O14: Chityala | P14: Gandhari | Q14: Dakkili | R14: Dornala | S14: Keesara | T14: Kaviti | U14: Dumbriguda | V14: Garividi | W14: Geesugonda | X14: Eluru | Y14: 12 | Z14: Mahaboobnagar District | AA14: Ghantasala | AB14: 13 | AF14: 12 | AG14: Mahaboobnagar District
A15: 13 | B15: Tiryani | C15: Chilamathur | D15: Gurramkonda | E15: Ganapavaram | F15: Durgi | H15: Duvvur | I15: Ibrahimpatnam | J15: Enkuru | K15: Gudivada | L15: Devanakonda | M15: Chinna Chinta Kunta | N15: Kalher | O15: Chivvemla | P15: Jakranpalle | Q15: Doravarisatram | R15: Giddaluru | S15: Kulkacharla | T15: Kotabommili | U15: Gajuwaka | V15: Garugubilli | W15: Ghanapur | X15: Ganapavaram | Y15: 13 | Z15: Medak District | AA15: Gudivada | AB15: 14 | AF15: 13 | AG15: Medak District
A16: 14 | B16: Asifabad | C16: D.Hirchal | D16: Irala | E16: Gopalapuram | F16: Edlapadu | H16: Galiveedu | I16: Jagtial | J16: Garla | K16: Gudlavalleru | L16: Dhone | M16: Damaragidda | N16: Kohir | O16: Choutuppal | P16: Jukkal | Q16: Duttalur | R16: Gudluru | S16: Maheswaram | T16: Kothuru | U16: Gangaraju Madugula | V16: Gummalakshmipuram | W16: Ghanpur(Stn) | X16: Gopalapuram | Y16: 14 | Z16: Nalgonda District | AA16: Gudlavalleru | AB16: 15 | AF16: 14 | AG16: Nalgonda District
A17: 15 | B17: Bellampalle | C17: Dharmavaram | D17: K V P Puram | E17: Iragavaram | F17: Guntur | H17: Gopavaram | I17: Jammikunta | J17: Gundala | K17: Gudur | L17: Dornipadu | M17: Devarkadara | N17: Kondapak | O17: Dameracherla | P17: Kamareddy | Q17: Gudur | R17: Hanumanthunipadu | S17: Malkajgiri | T17: Laveru | U17: Golugonda | V17: Gurla | W17: Govindaraopet | X17: Iragavaram | Y17: 15 | Z17: Nizamabad District | AA17: Gudur | AB17: 16 | AF17: 15 | AG17: Nizamabad District
A18: 16 | B18: Chennur | C18: Gandlapenta | D18: Kalakada | E18: Jangareddigudem | F18: Gurazala | H18: Jammalamadugu • | I18: Julapalle | J18: Julurpad | K18: Ibrahimpatnam | L18: Gadivemula | M18: Dhanwada | N18: Kondapur | O18: Devarakonda | P18: Kammar Palle | Q18: Indukurpet | R18: Inkollu | S18: Manchal | T18: Mandasa | U18: Gudem Kothaveedhi | V18: Jami | W18: Gudur | X18: Jangareddigudem | Y18: 16 | Z18: Nellore District | AA18: Ibrahimpatnam | AB18: 17 | AF18: 16 | AG18: Nellore District
A19: 17 | B19: Gudihathnur | C19: Garladinne | D19: Kalikiri | E19: Jeelugumilli | F19: Ipuru | H19: Kalasapadu | I19: Kamalapur | J19: Kalluru | K19: Jaggayyapeta | L19: Gonegandla | M19: Dharur | N19: Kowdipalle | O19: Garide Palle | P19: Kotgiri | Q19: Jaladanki | R19: Janakavaram Panguluru | S19: Marpalle | T19: Meilaputti | U19: Hukumpeta | V19: Jiyyamma Valasa | W19: Hanamkonda | X19: Jeelugumilli | Y19: 17 | Z19: Prakasam District | AA19: Jaggayyapeta | AB19: 18 | AF19: 17 | AG19: Prakasam District
A20: 18 | B20: Jainoor | C20: Gooty | D20: Kambhamvaripalle | E20: Kalla | F20: Kakumanu | H20: Kamalapuram | I20: Kamanpur | J20: Karepalli | K20: Kaikalur | L20: Gospadu | M20: Doulatabad | N20: Kulcharam | O20: Gundala | P20: Lingampet | Q20: Kaligiri | R20: Kandukur | S20: Medchal | T20: Nandigam | U20: K Kotapadu | V20: Komarada | W20: Hasanparthy | X20: Kalla | Y20: 18 | Z20: Ranga reddy District | AA20: Kaikalur | AB20: 19 | AF20: 18 | AG20: Ranga reddy District
A21: 19 | B21: Kagaz Nagar | C21: Gorantla | D21: Karvetinagar | E21: Kamavarapukota | F21: Karempudi | H21: Khajipet | I21: Karimnagar | J21: Khammam Rural | K21: Kalidindi | L21: Gudur | M21: Farooqnagar | N21: Manoor | O21: Gundla Palle | P21: Machareddy | Q21: Kaluvoya | R21: Kanigiri | S21: Moinabad | T21: Narasannapeta | U21: Kasimkota | V21: Kothavalasa | W21: Jangaon | X21: Kamavarapukota | Y21: 19 | Z21: Sreekakulam District | AA21: Kalidindi | AB21: 20 | AF21: 19 | AG21: Sreekakulam District
A22: 20 | B22: Kotapalle | C22: Gudibanda | D22: Kuppam | E22: Kovvur | F22: Karlapalem | H22: Kodur | I22: Kataram | J22: Khammam Urban | K22: Kanchika Cherla | L22: Halaharvi | M22: Gadwal | N22: Medak | O22: Gurrampode | P22: Madnur | Q22: Kavali | R22: Karamchedu | S22: Mominpet | T22: Palakonda | U22: Kotauratla | V22: Kurupam | W22: Kesamudram | X22: Kovvur | Y22: 20 | Z22: Visakhapatnam District | AA22: Kanchika Cherla | AB22: 21 | AF22: 20 | AG22: Visakhapatnam District
A23: 21 | B23: Laxmanchanda | C23: Gummagatta | D23: Kurabalakota | E23: Koyyalagudem | F23: Kollipara | H23: Kondapuram | I23: Kathlapur | J23: Konijerla | K23: Kankipadu | L23: Holagunda | M23: Ghanpur | N23: Mirdoddi | O23: Huzurnagar | P23: Makloor | Q23: Kodavalur | R23: Komarolu | S23: Nawabpet | T23: Palasa | U23: Koyyuru | V23: Lakkavarapukota | W23: Khanapur | X23: Koyyalagudem | Y23: 21 | Z23: Vizianagaram District | AA23: Kankipadu | AB23: 22 | AF23: 21 | AG23: Vizianagaram District
A24: 22 | B24: Mancherial | C24: Guntakal | D24: Mandanpalle | E24: Lingapalem | F24: Kollur | H24: Lakkireddipalle • | I24: Kesavapatnam | J24: Kothagudem | K24: Koduru | L24: Jupadu Bungalow | M24: Ghattu | N24: Mulug | O24: Jaji Reddi Gudem | P24: Mortad | Q24: Kondapuram | R24: Konakanamitla | S24: Pargi | T24: Pathapatnam | U24: Madugula | V24: Makkuva | W24: Kodakandla | X24: Lingapalem | Y24: 22 | Z24: Warangal District | AA24: Koduru | AB24: 23 | AF24: 22 | AG24: Warangal District
A25: 23 | B25: Nennal | C25: Hindupur | D25: Mulakalacheruvu | E25: Mogalthur | F25: Krosuru | H25: Lingala | I25: Kodimial | J25: Kukunoor | K25: Kruthivennu | L25: Kallur | M25: Gopalpeta | N25: Munpalle | O25: Kangal | P25: Naga Reddipet | Q25: Kota | R25: Kondapi | S25: Peddemul | T25: Polaki | U25: Makavarapalem | V25: Mentada | W25: Kothagudem | X25: Mogalthur | Y25: 23 | Z25: West godavari District | AA25: Kruthivennu | AB25: 24 | AF25: 23 | AG25: West godavari District
A26: 24 | B26: Sarangapur | C26: Kadiri | D26: Nagalapuram | E26: Nallajerla | F26: Machavaram | H26: Muddanur | I26: Koheda | J26: Kunavaram | K26: Machilipatnam | L26: Kodumur | M26: Hanwada | N26: Nanganur | O26: Kattangoor | P26: Nandipet | Q26: Kovur | R26: Korisapadu | S26: Pudur | T26: Ponduru | U26: Munagapaka | V26: Merakamudidam | W26: Kuravi | X26: Nallajerla | Y26: 24 | AA26: Machilipatnam | AB26: 25
A27: 25 | B27: Tamsi | C27: Kalyandurg | D27: Nagari | E27: Narasapuram | F27: Macherla | H27: Mylavaram | I27: Konaraopeta | J27: Kusumanchi | K27: Mandavalli | L27: Koilkuntla | M27: Itikyal | N27: Narayankhed | O27: Kethepalle | P27: Navipet | Q27: Manubolu | R27: Kothapatnam | S27: Quthbullapur | T27: Rajam | U27: Munchingiputtu | V27: Nellimarla | W27: Lingala Ghanpur | X27: Narasapuram | Y27: 25 | AA27: Mandavalli | AB27: 26
A28: 26 | B28: Utnur | C28: Kambadur | D28: Narayanavanam | E28: Nidadavole | F28: Mangalagiri | H28: Mydukur | I28: Koratla | J28: Madhira | K28: Mopidevi | L28: Kolimigundla | M28: Jadcherla | N28: Narsapur | O28: Kodad | P28: Nizam Sagar | Q28: Marripadu | R28: Kurichedu | S28: Rajendranagar | T28: Ranastalam | U28: Nakkapalli | V28: Pachipenta | W28: Maddur | X28: Nidadavole | Y28: 26 | AA28: Mopidevi | AB28: 27
A29: 27 | B29: Bazarhathnoor | C29: Kanaganapalle | D29: Nimmanapalle | E29: Nidamarru | F29: Medikonduru | H29: Nandalur | I29: Mahadevpur | J29: Manuguru | K29: Movva | L29: Kosigi | M29: Kalwakurthy | N29: Nyalkal | O29: M Turkapalle | P29: Nizamabad | Q29: Muthukur | R29: Lingasamudram | S29: Saroornagar | T29: Regidiamadalavalasa | U29: Narsipatnam | V29: Parvathipuram | W29: Mahabubabad | X29: Nidamarru | Y29: 27 | AA29: Movva | AB29: 28
A30: 28 | B30: Bhainsa | C30: Kanekal | D30: Nindra | E30: Palacole | F30: Muppalla | H30: Obulavaripalle | I30: Malharrao | J30: Mudigonda | K30: Mudinepalli | L30: Kothapalle | M30: Keshampeta | N30: Papannapet | O30: Marri Guda | P30: Pitlam | Q30: Naidupeta | R30: Maddipadu | S30: Serilingampalle | T30: Santhabommali | U30: Nathavaram | V30: Pusapatirega | W30: Mangapet | X30: Palacole | Y30: 28 | AA30: Mudinepalli | AB30: 29
A31: 29 | B31: Dahegaon | C31: Kothacheruvu | D31: Pakala | E31: Palakoderu | F31: Nadendla | H31: Peddamudium • | I31: Mallapur | J31: Mulakalapalle | K31: Musunuru | L31: Kowthalam | M31: Kodair | N31: Patancheru | O31: Mattampalle | P31: Ranjal | Q31: Nellore | R31: Markapur | S31: Shabad | T31: Santhakaviti | U31: Paderu | V31: Ramabhadrapuram | W31: Maripeda | X31: Palakoderu | Y31: 29 | AA31: Musunuru | AB31: 30
A32: 30 | B32: Ichoda | C32: Kudair | D32: Palamaner | E32: Pedapadu | F32: Nagaram | H32: Penagaluru | I32: Mallial | J32: Nelakondapalle | K32: Mylavaram | L32: Krishnagiri | M32: Kodangal | N32: Pulkal | O32: Mellachervu | P32: Sadasivanagar | Q32: Ojili | R32: Marripudi | S32: Shamirpet | T32: Saravakota | U32: Padmanabham | V32: Salur | W32: Mogullapalle | X32: Pedapadu | Y32: 30 | AA32: Mylavaram | AB32: 31
A33: 31 | B33: Jaipur | C33: Kundurpi | D33: Palasamudram | E33: Pedavegi | F33: Nakarikallu | H33: Pendlimarri | I33: Manakondur | J33: Palawancha | K33: Nagayalanka | L33: Kurnool | M33: Koilkonda | N33: Raikode | O33: Miryalaguda | P33: Sirkonda | Q33: Pellakur | R33: Martur | S33: Shamshabad | T33: Sarubujjili | U33: Paravada | V33: Seethanagaram | W33: Mulug | X33: Pedavegi | Y33: 31 | AA33: Nagayalanka | AB33: 32
A34: 32 | B34: Kasipet | C34: Lepakshi | D34: Pedda Panjani | E34: Pentapadu | F34: Narasaraopeta | H34: Porumamilla | I34: Manthani | J34: Penuballi | K34: Nandigama | L34: Maddikera East | M34: Kollapur | N34: Ramachandrapuram | O34: Mothey | P34: Tadwai | Q34: Podlakur | R34: Mundlamuru | S34: Shankarpalle | T34: Seethampeta | U34: Payakaraopeta | V34: Srungavarapukota | W34: Nallabelly | X34: Pentapadu | Y34: 32 | AA34: Nandigama | AB34: 33
A35: 33 | B35: Kouthala | C35: Mudigubba | D35: Peddamandyam | E35: Penugonda | F35: Nizampatnam | H35: Proddutur | I35: Medipalle | J35: Pinapaka | K35: Nandivada | L35: Mahanandi | M35: Kondurg | N35: Ramayampet | O35: Mothkur | P35: Varni | Q35: Rapur | R35: Naguluppalapadu | S35: Tandur | T35: Sompeta | U35: Pedabayalu | V35: Therlam | W35: Narmetta | X35: Penugonda | Y35: 33 | AA35: Nandivada | AB35: 34
A36: 34 | B36: Lohesra | C36: Nallacheruvu | D36: Peddathippasamudram | E36: Penumantra | F36: Nuzendla | H36: Pulivendla | I36: Metpalle | J36: Sathupalle | K36: Nuzvid | L36: Mantralayam | M36: Kosgi | N36: Regode | O36: Munagala | P36: Velpur | Q36: Sangam | R36: Ongole | S36: Uppal | T36: Srikakulam | U36: Pedagantyada | V36: Vepada | W36: Narsampet | X36: Penumantra | Y36: 34 | AA36: Nuzvid | AB36: 35
A37: 35 | B37: Mandamarri | C37: Nallamada | D37: Penumuru | E37: Peravali | F37: Pedakakani | H37: Pullampeta | I37: Mustabad | J37: Singareni | K37: Pamarru | L37: Midthur | M37: Kothakota | N37: Sadasivpet | O37: Munugode | P37: Yeda Palle | Q37: Seetharamapuram | R37: Pamur | S37: Vikarabad | T37: Tekkali | U37: Pendurthi | V37: Vizianagaram | W37: Narsimhulapet | X37: Peravali | Y37: 35 | AA37: Pamarru | AB37: 36
A38: 36 | B38: Neradigonda | C38: Nambulipulikunta | D38: Pichatur | E38: Poduru | F38: Pedakurapadu | H38: Railway Koduru • | I38: Mutharam Mahadevpur | J38: Thallada | K38: Pamidimukkala | L38: Nandavaram | M38: Kothur | N38: Sangareddy | O38: Nadigudem | P38: Yellareddy | Q38: Sullurpeta | R38: Parchur | S38: Yacharam | T38: Vajrapukothuru | U38: Rambilli | W38: Nekkonda | X38: Poduru | Y38: 36 | AA38: Pamidimukkala | AB38: 37
A39: 37 | B39: Sirpur (T) | C39: Narpala | D39: Pileru | E39: Polavaram | F39: Phirangipuram | H39: Rajampet | I39: Mutharam Manthani | J39: Thirumalayapalem | K39: Pedana | L39: Nandi Kotkur | M39: Lingal | N39: Shankarampet (A) | O39: Nakrekal | Q39: Sydapuram | R39: Pedaaraveedu | S39: Yelal | T39: Vangara | U39: Ravikamatham | W39: Nellikudur | X39: Polavaram | Y39: 37 | AA39: Pedana | AB39: 38
A40: 38 | B40: Tandur | C40: Obuladevaracheruvu | D40: Pulicherla | E40: T Narasapuram | F40: Piduguralla | H40: Raju Palem | I40: Odela | J40: Vararamachandrapuram | K40: Pedaparupudi | L40: Nandyal | M40: Maddur | N40: Shankarampet (R) | O40: Nalgonda | Q40: Tada | R40: Pedacherlopalle | T40: Veeraghattam | U40: Rolugunta | W40: Palakurthi | X40: T Narasapuram | Y40: 38 | AA40: Pedaparupudi | AB40: 39
A41: 39 | B41: Vemanpalle | C41: Pamidi | D41: Punganur | E41: Tadepalligudem | F41: Pittalavanipalem | H41: Ramapuram | I41: Peddapalle | J41: Velairpad | K41: Penamaluru | L41: Orvakal | M41: Madgul | N41: Shivampet | O41: Nampalle | Q41: Thotapalligudur | R41: Podili | U41: S Rayavaram | W41: Parkal | X41: Tadepalligudem | Y41: 39 | AA41: Penamaluru | AB41: 40
A42: 40 | B42: Bejjur | C42: Parigi | D42: Puthalapattu | E42: Tanuku | F42: Ponnur | H42: Rayachoti | I42: Pegadapalle | J42: Vemsoor | K42: Penuganchiprolu | L42: Owk | M42: Maganoor | N42: Siddipet | O42: Narayanapur | Q42: Udayagiri | R42: Ponnaluru | U42: Sabbavaram | W42: Parvathagiri | X42: Tanuku | Y42: 40 | AA42: Penuganchiprolu | AB42: 41
A43: 41 | B43: Bheemini | C43: Peddapappur | D43: Puttur | E43: Thallapudi | F43: Prathipadu | H43: S Mydukur | I43: Raikal | J43: Venkatapuram | K43: Reddigudem | L43: Pagidyala | M43: Mahbubnagar | N43: Tekmal | O43: Narketpalle | Q43: Vakadu | R43: Pullalacheruvu | U43: Visakhapatnam | W43: Raghunatha Palle | X43: Thallapudi | Y43: 41 | AA43: Reddigudem | AB43: 42
A44: 42 | B44: Dandepalle | C44: Peddavadugur | D44: Rama Kuppam | E44: Undi | F44: Rajupalem | H44: Sambepalle | I44: Ramadugu | J44: Wazeed | K44: Thotlavalluru | L44: Pamulapadu | M44: Makthal | N44: Tupran | O44: Nered Cherla | Q44: Varikuntapadu | R44: Racherla | U44: Visakhapatnam(U) | W44: Raiparthy | X44: Undi | Y44: 42 | AA44: Thotlavalluru | AB44: 43
A45: 43 | B45: Inderavelly | C45: Penu Konda | D45: Ramachandrapuram | E45: Undrajavaram | F45: Rentacrintala | H45: Sidhout | I45: Ramagundam | J45: Wyra | K45: Tiruvuru | L45: Panyam | M45: Maldakal | N45: Wargal | O45: Nidamanur | Q45: Venkatachalam | R45: Santhamaguluru | U45: Yelamanchili | W45: Regonda | X45: Undrajavaram | Y45: 43 | AA45: Tiruvuru | AB45: 44
A46: 44 | B46: Jannaram | C46: Putlur | D46: Ramasamudram | E46: Unguturu | F46: Repalle | H46: Simhadripuram • | I46: Saidapur | J46: Yellandu | K46: Unguturu | L46: Pattikanda | M46: Manopadu | N46: Yeldurthy | O46: Nuthankal | Q46: Venkatagiri | R46: Santhanuthlapadu | W46: Sangem | X46: Unguturu | Y46: 44 | AA46: Unguturu | AB46: 45
A47: 45 | B47: Kerameri | C47: Puttaparthi | D47: Renigunta | E47: Veeravasaram | F47: Rompicherla | H47: T Sundupalle | I47: Sarangapur | J47: Yerrupalem | K47: Vatsavai | L47: Peapally | M47: Midjil | N47: Zahirabad | O47: Pedda Adiserlapalle | Q47: Vidavalur | R47: Singarayakonda | W47: Shayampet | X47: Veeravasaram | Y47: 45 | AA47: Vatsavai | AB47: 46
A48: 46 | B48: Kubeer | C48: Ramagiri | D48: Rompicherla | E48: Yelamanchili | F48: Sattenapalle | H48: Thandur | I48: Sirsilla | K48: Veerullapadu | L48: Pedda Kadubur | M48: Nagar Kurnool | O48: Peddavura | Q48: Vinjamur | R48: Tangutur | W48: Tadvai | X48: Yelamanchili | Y48: 46 | AA48: Veerullapadu | AB48: 47
A49: 47 | B49: Luxettipet | C49: Raptadu | D49: Santhi Puram | F49: Savalyapuram | H49: Vallur | I49: Srirampur | K49: Vijayawada Rural | L49: Rudravaram | M49: Narayanpet | O49: Penpahad | R49: Tarlapadu | W49: Thorrur | Y49: 47 | AA49: Vijayawada Rural | AB49: 48
A50: 48 | B50: Mudhole | C50: Roddam | D50: Satyavedu | F50: Tadikonda | H50: Veeraballe | I50: Sultanabad | K50: Vijayawada Urban | L50: Sanjamala | M50: Narva | O50: Pochampalle | R50: Thallur | W50: Venkatapur | Y50: 48 | AA50: Vijayawada Urban | AB50: 49
A51: 49 | B51: Nirmal | C51: Rolla | D51: Sodam | F51: Tenali | H51: Veerapunayunipalle • | I51: Thimmapur | K51: Vissannapet | L51: Sirvel | M51: Nawabpet | O51: Rajapet | R51: Tripuranthakam | W51: Wardhannapet | Y51: 49 | AA51: Vissannapet | AB51: 50
A52: 50 | B52: Sirpur (U) | C52: Settur | D52: Somala | F52: Thadepalle | H52: Vempalle | I52: Veenavanka | K52: Vuyyuru | L52: Srisailam | M52: Pangal | O52: Ramannapeta | R52: Ulavapadu | W52: Zaffergadh | Y52: 50 | AA52: Vuyyuru | AB52: 51
A53: 51 | B53: Tanur | C53: Singanamala | D53: Srikalahasti | F53: Thullur | H53: Vemula | I53: Velgatoor | L53: Tuggali | M53: Pebbair | O53: Saligouraram | R53: Veligandla | Y53: 51 | AA53: 0 | AB53: 52
A54: 52 | B54: Wankdi | C54: Somandepalle | D54: Srirangarajapuram | F54: Tsundur | H54: Vontimitta | I54: Vemulawada | L54: Uyyalawada | M54: Peddakothapalle | O54: Suryapet | R54: Vetapalem | Y54: 52 | AA54: 0 | AB54: 53
A55: 53 | C55: Tadimarri | D55: Thamballapalle | F55: Vatticherukuru | H55: Yerraguntla | I55: Yella Reddi Peta | L55: Veldurthi | M55: Peddamandadi | O55: Thipparthi | R55: Voletivaripalem | Y55: 53 | AA55: 0 | AB55: 54
A56: 54 | C56: Tadpatri | D56: Thavanampalle | F56: Veldurthi | L56: Velgodu | M56: Tadoor | O56: Thirumalagiri | R56: Yeddanapudi | Y56: 54 | AA56: 0 | AB56: 55
A57: 55 | C57: Talupula | D57: Thottambedu | F57: Vemuru | L57: Yemmiganur | M57: Talakondapalle | O57: Thripuraram | R57: Yerragondapalem | Y57: 55 | AA57: 0 | AB57: 56
A58: 56 | C58: Tanakal | D58: Tirupati Rural | F58: Vinukonda | M58: Telkapalle | O58: Thunga Thurthi | R58: Zarugumilli | Y58: 56 | AA58: 0 | AB58: 57
A59: 57 | C59: Uravakonda | D59: Tirupati Urban | M59: Thimmajipeta | O59: Valigonda | Y59: 57 | AA59: 0 | AB59: 58
A60: 58 | C60: Vajrakarur | D60: Vadamalapeta | M60: Uppununthala | O60: Vemulapalle | Y60: 58 | AA60: 0 | AB60: 59
A61: 59 | C61: Vidapanakal | D61: Varadaiahpalem | M61: Utkoor | O61: Yadagirigutta | Y61: 59 | AA61: 0 | AB61: 60
A62: 60 | C62: Yadiki | D62: Vayalpad | M62: Vangoor | Y62: 60 | AA62: 0 | AB62: 61
A63: 61 | C63: Yellanur | D63: Veduru Kuppam | M63: Veepangandla | Y63: 61 | AA63: 0 | AB63: 62
A64: 62 | D64: Venkatagiri Kota | M64: Veldanda | Y64: 62 | AA64: 0 | AB64: 63
A65: 63 | D65: Vijaya Puram | M65: Waddepalle | Y65: 63 | AA65: 0 | AB65: 64
A66: 64 | D66: Yadamari | M66: Wanaparthy | Y66: 64 | AA66: 0 | AB66: 65
A67: 65 | D67: Yerpedu | Y67: 65 | AA67: =HLOOKUP($Z$1,$B$2:$X$68,AB67,FALSE) -> 0 | AB67: 66
A68: 66 | D68: Yerravaripalem | Y68: 66 | AA68: =HLOOKUP($Z$1,$B$2:$X$68,AB68,FALSE) -> 0 | AB68: 67
R86: =R88&"-"&S88&"-"&T87 -> 15-4-2011 | W86: =W88&"-"&X88&"-"&Y87 -> 15-6-2012 | AB86: =AB88&"-"&AC88&"-"&AD87 -> 15-11-2010
S87: =LOOKUP(S88,R89:S100,S89:S100) -> Apr | T87: =LOOKUP(T88,R89:T100,T89:T100) -> 2011 | X87: =LOOKUP(X88,W89:X100,X89:X100) -> Jun | Y87: =LOOKUP(Y88,W89:Y100,Y89:Y100) -> 2012 | AC87: =LOOKUP(AC88,AB89:AC100,AC89:AC100) -> Nov | AD87: =LOOKUP(AD88,AB89:AD100,AD89:AD100) -> 2010 | AE87: =LOOKUP(AE88,AB89:AE94,AE89:AE94) -> fifth
R88: 15 | S88: 4 | T88: 2 | W88: 15 | X88: 6 | Y88: 3 | AB88: 15 | AC88: 11 | AD88: 1 | AE88: 5
R89: 1 | S89: Jan | T89: 2010 | W89: 1 | X89: Jan | Y89: 2010 | AB89: 1 | AC89: Jan | AD89: 2010 | AE89: first
R90: 2 | S90: Feb | T90: 2011 | W90: 2 | X90: Feb | Y90: 2011 | AB90: 2 | AC90: Feb | AD90: 2011 | AE90: second
R91: 3 | S91: Mar | T91: 2012 | W91: 3 | X91: Mar | Y91: 2012 | AB91: 3 | AC91: Mar | AD91: 2012 | AE91: third
R92: 4 | S92: Apr | T92: 2013 | W92: 4 | X92: Apr | Y92: 2013 | AB92: 4 | AC92: Apr | AD92: 2013 | AE92: fourth
R93: 5 | S93: May | W93: 5 | X93: May | AB93: 5 | AC93: May | AE93: fifth
R94: 6 | S94: Jun | W94: 6 | X94: Jun | AB94: 6 | AC94: Jun | AE94: sixth
R95: 7 | S95: Jul | W95: 7 | X95: Jul | AB95: 7 | AC95: Jul
R96: 8 | S96: Aug | W96: 8 | X96: Aug | AB96: 8 | AC96: Aug
R97: 9 | S97: Sep | W97: 9 | X97: Sep | AB97: 9 | AC97: Sep
R98: 10 | S98: Oct | W98: 10 | X98: Oct | AB98: 10 | AC98: Oct
R99: 11 | S99: Nov | W99: 11 | X99: Nov | AB99: 11 | AC99: Nov
R100: 12 | S100: Dec | W100: 12 | X100: Dec | AB100: 12 | AC100: Dec
R101: 13 | W101: 13 | AB101: 13
R102: 14 | W102: 14 | AB102: 14
R103: 15 | W103: 15 | AB103: 15
R104: 16 | W104: 16 | AB104: 16
R105: 17 | W105: 17 | AB105: 17
R106: 18 | W106: 18 | AB106: 18
R107: 19 | W107: 19 | AB107: 19
R108: 20 | W108: 20 | AB108: 20
R109: 21 | W109: 21 | AB109: 21
R110: 22 | W110: 22 | AB110: 22
R111: 23 | W111: 23 | AB111: 23
R112: 24 | W112: 24 | AB112: 24
R113: 25 | W113: 25 | AB113: 25
R114: 26 | W114: 26 | AB114: 26
R115: 27 | W115: 27 | AB115: 27
R116: 28 | W116: 28 | AB116: 28
R117: 29 | W117: 29 | AB117: 29
R118: 30 | W118: 30 | AB118: 30
R119: 31 | W119: 31 | AB119: 31

Sheet Mandals2 (hidden)
Y1: 7 | Z1: =LOOKUP(Y1,Y3:Z25,Z3:Z25) -> Kaddapah District | AA1: 5 | AF1: 10 | AG1: =LOOKUP(AF1,AF3:AG25,AG3:AG25) -> Krishan District
B2: Adilabad | C2: Anathapuram | D2: Chittoor District | E2: West godavari District | F2: Guntur District | G2: Hyderabad District | H2: kaddapah District | I2: Kareemnagar District | J2: Khammam District | K2: Krishan District | L2: Kurnool District | M2: Mahaboobnagar District | N2: Medak District | O2: Nalgonda District | P2: Nizamabad District | Q2: Nellore District | R2: Prakasam District | S2: Ranga reddy District | T2: Sreekakulam District | U2: Visakhapatnam District | V2: Vizianagaram District | W2: Warangal District | X2: West godavari District | Y2: S.No | Z2: Districts | AA2: =LOOKUP(AA1,Y3:Y68,AA3:AA68) -> Chakrayapet | AC2: 9 | AD2: =LOOKUP(AC2,Y3:AA68,AA3:AA68) -> Chinnamandem | AF2: S.No | AG2: Districts
A3: 1 | B3: Adilabad | C3: Agali | D3: B Kothakota | E3: Achanta | F3: Achampeta | H3: Atlur | I3: Bheemadevarpalle | J3: Aswapuram | K3: A Konduru | L3: Adoni | M3: Achampeta | N3: Alladurg | O3: Alair | P3: Armur | Q3: Allur | R3: Addanki | S3: Balanagar | T3: Amadalavalasa | U3: Anakapalli | V3: Badangi | W3: Atmakur | X3: Achanta | Y3: 1 | Z3: Adilabad | AA3: =HLOOKUP($Z$1,$B$2:$X$68,AB3,FALSE) -> Atlur | AB3: 2 | AF3: 1 | AG3: Adilabad
A4: 2 | B4: Narnoor | C4: Amadagur | D4: Baireddi Palle | E4: Akiveedu | F4: Amaravathi | H4: B Kodur | I4: Boinpalle | J4: Aswaraopeta | K4: Agiripalle | L4: Allagadda | M4: Addakal | N4: Andole | O4: Anumula | P4: Balkonda | Q4: Ananthasagaram | R4: Ardhaveedu | S4: Bantaram | T4: Battili | U4: Anandapuram | V4: Balajipeta | W4: Bachannapeta | X4: Akiveedu | Y4: 2 | Z4: Anathapuram | AA4: B Kodur | AB4: 3 | AF4: 2 | AG4: Anathapuram
A5: 3 | B5: Bela | C5: Amarapuram | D5: Bangarupalem | E5: Attili | F5: Amruthalur | H5: Badvel | I5: Chandurthi | J5: Bayyaram | K5: Avanigadda | L5: Alur | M5: Aiza | N5: Chegunta | O5: Atmakur | P5: Banswada | Q5: Anumasamudrampeta | R5: Ballikuruva | S5: Basheerabad | T5: Bhamini | U5: Ananthagiri | V5: Bhoghapuram | W5: Bhupalpalle | X5: Attili | Y5: 3 | Z5: Chittoor District | AA5: Badvel | AB5: 4 | AF5: 3 | AG5: Chittoor District
A6: 4 | B6: Boath | C6: Anantapur | D6: Buchinaidu Khandriga | E6: Bheemavaram | F6: Bapatla | H6: Brahmamgarimattam | I6: Choppadandi | J6: Bhadrachalam | K6: Bantumilli | L6: Aspari | M6: Alampur | N6: Chinna Kodur | O6: Atmakur | P6: Bheemgal | Q6: Atmakur | R6: Bestavaripeta | S6: Chevella | T6: Burja | U6: Araku Valley | V6: Bobbili | W6: Chennaraopet | X6: Bheemavaram | Y6: 4 | Z6: West godavari District | AA6: Brahmamgarimattam | AB6: 5 | AF6: 4 | AG6: West godavari District
A7: 5 | B7: Dilawarpur | C7: Atmakur | D7: Chandragiri | E7: Bhimadole | F7: Bellamkonda | H7: Chakrayapet | I7: Dharmapuri | J7: Bonakal | K7: Bapulapadu | L7: Atmakur | M7: Amangal | N7: Doultabad | O7: Bhuvanagiri | P7: Bhiknur | Q7: Balayapalli | R7: Chadrasekara Puram | S7: Dharur | T7: Etcherla | U7: Atchutapuram | V7: Bondapalle | W7: Cheriyal | X7: Bhimadole | Y7: 5 | Z7: Guntur District | AA7: Chakrayapet | AB7: 6 | AF7: 5 | AG7: Guntur District
A8: 6 | B8: Jainad | C8: Bathalapalle | D8: Chinnagottigallu | E8: Buttayagudem | F8: Bhattiprolu | H8: Chapad | I8: Dharmaram | J8: Burgampadu | K8: Challapalli | L8: Banaganapalle | M8: Amrabad | N8: Dubbak | O8: Bibinagar | P8: Bichkunda | Q8: Bogole | R8: Chimakurthi | S8: Domah | T8: Ganguvari Singadam | U8: Bheemunipatnam | V8: Chintalavalasa | W8: Chityal | X8: Buttayagudem | Y8: 6 | Z8: Hyderabad District | AA8: Chapad | AB8: 7 | AF8: 6 | AG8: Hyderabad District
A9: 7 | B9: Kaddampeddur | C9: Beluguppa | D9: Chittoor | E9: Chagallu | F9: Bollapalle | H9: Chennur | I9: Ellanthakunta | J9: Chandrugonda | K9: Chandarlapadu | L9: Bandi Atmakur | M9: Atmakur | N9: Eddumailaram | O9: Bommalaramaram | P9: Birkoor | Q9: Buchireddipalem | R9: Chinaganjam | S9: Gandeed | T9: Kaligapatnam | U9: Butchayyapeta | V9: Cheepurupalle | W9: Devaruppula | X9: Chagallu | Y9: 7 | Z9: Kaddapah District | AA9: Chennur | AB9: 8 | AF9: 7 | AG9: Kaddapah District
A10: 8 | B10: Khanpur | C10: Bommanahal | D10: Chowdepalle | E10: Chintalapudi | F10: Chebrole | H10: ChinnaChowk | I10: Gambhiraopet | J10: Cherla | K10: Chatrai | L10: Bethamcherla | M10: Balanagar | N10: Gajwel | O10: Chandam Pet | P10: Bodhan | Q10: Chejerla | R10: Chirala | S10: Ghatkesar | T10: Hiramandalam | U10: Cheedikada | V10: Dattirajeru | W10: Dharmasagar | X10: Chintalapudi | Y10: 8 | Z10: Kareemnagar District | AA10: ChinnaChowk | AB10: 9 | AF10: 8 | AG10: Kareemnagar District
A11: 9 | B11: Kuntala | C11: Brahmasamudram | D11: Gangadhara Nellore | E11: Denduluru | F11: Cherukupalle | H11: Chinnamandem | I11: Gangadhara | J11: Chinthakani | K11: G Konduru | L11: Bugganipalle | M11: Balmoor | N11: Hathnoora | O11: Chandur | P11: Dhar Palle | Q11: Chillakur | R11: Cumbum | S11: Hayathnagar | T11: Ichchapuram | U11: Chintapalle | V11: Denkada | W11: Dornakal | X11: Denduluru | Y11: 9 | Z11: Khammam District | AA11: Chinnamandem | AB11: 10 | AF11: 9 | AG11: Khammam District
A12: 10 | B12: Mamda | C12: Bukkapatnam | D12: Gangavaram | E12: Devarapalle | F12: Chilakaluripet | H12: Chintha Kommadinne | I12: Gollapalle | J12: Chintur | K12: Gampalagudem | L12: C.Belagal | M12: Bhoothpur | N12: Jagdevpur | O12: Chilkur | P12: Dich Palle | Q12: Chittamur | R12: Darsi | S12: Ibrahimpatam | T12: Jalumuru | U12: Chodavaram | V12: Gajapathinagaram | W12: Duggondi | X12: Devarapalle | Y12: 10 | Z12: Krishan District | AA12: Chintha Kommadinne | AB12: 11 | AF12: 10 | AG12: Krishan District
A13: 11 | B13: Rebbana | C13: Bukkarayasamudram | D13: Gudi Palle | E13: Dwaraka Tirumala | F13: Dachepalle | H13: Chitvel | I13: Husnabad | J13: Dammapeta | K13: Gannavaram | L13: Chagalamarri | M13: Bijinapalle | N13: Jharasangam | O13: Chintha Palle | P13: Domakonda | Q13: Dagadarthi | R13: Donakonda | S13: Kandukur | T13: Kanchili | U13: Devarapalle | V13: Gantyada | W13: Eturnagaram | X13: Dwaraka Tirumala | Y13: 11 | Z13: Kurnool District | AA13: Chitvel | AB13: 12 | AF13: 11 | AG13: Kurnool District
A14: 12 | B14: Talamadugu | C14: Chenne Kothapalle | D14: Gudipala | E14: Eluru | F14: Duggirala | H14: Cuddapah | I14: Huzurabad | J14: Dummugudem | K14: Ghantasala | L14: Chippagiri | M14: Bomraspeta | N14: Jinnaram | O14: Chityala | P14: Gandhari | Q14: Dakkili | R14: Dornala | S14: Keesara | T14: Kaviti | U14: Dumbriguda | V14: Garividi | W14: Geesugonda | X14: Eluru | Y14: 12 | Z14: Mahaboobnagar District | AA14: Cuddapah | AB14: 13 | AF14: 12 | AG14: Mahaboobnagar District
A15: 13 | B15: Tiryani | C15: Chilamathur | D15: Gurramkonda | E15: Ganapavaram | F15: Durgi | H15: Duvvur | I15: Ibrahimpatnam | J15: Enkuru | K15: Gudivada | L15: Devanakonda | M15: Chinna Chinta Kunta | N15: Kalher | O15: Chivvemla | P15: Jakranpalle | Q15: Doravarisatram | R15: Giddaluru | S15: Kulkacharla | T15: Kotabommili | U15: Gajuwaka | V15: Garugubilli | W15: Ghanapur | X15: Ganapavaram | Y15: 13 | Z15: Medak District | AA15: Duvvur | AB15: 14 | AF15: 13 | AG15: Medak District
A16: 14 | B16: Asifabad | C16: D.Hirchal | D16: Irala | E16: Gopalapuram | F16: Edlapadu | H16: Galiveedu | I16: Jagtial | J16: Garla | K16: Gudlavalleru | L16: Dhone | M16: Damaragidda | N16: Kohir | O16: Choutuppal | P16: Jukkal | Q16: Duttalur | R16: Gudluru | S16: Maheswaram | T16: Kothuru | U16: Gangaraju Madugula | V16: Gummalakshmipuram | W16: Ghanpur(Stn) | X16: Gopalapuram | Y16: 14 | Z16: Nalgonda District | AA16: Galiveedu | AB16: 15 | AF16: 14 | AG16: Nalgonda District
A17: 15 | B17: Bellampalle | C17: Dharmavaram | D17: K V P Puram | E17: Iragavaram | F17: Guntur | H17: Gopavaram | I17: Jammikunta | J17: Gundala | K17: Gudur | L17: Dornipadu | M17: Devarkadara | N17: Kondapak | O17: Dameracherla | P17: Kamareddy | Q17: Gudur | R17: Hanumanthunipadu | S17: Malkajgiri | T17: Laveru | U17: Golugonda | V17: Gurla | W17: Govindaraopet | X17: Iragavaram | Y17: 15 | Z17: Nizamabad District | AA17: Gopavaram | AB17: 16 | AF17: 15 | AG17: Nizamabad District
A18: 16 | B18: Chennur | C18: Gandlapenta | D18: Kalakada | E18: Jangareddigudem | F18: Gurazala | H18: Jammalamadugu • | I18: Julapalle | J18: Julurpad | K18: Ibrahimpatnam | L18: Gadivemula | M18: Dhanwada | N18: Kondapur | O18: Devarakonda | P18: Kammar Palle | Q18: Indukurpet | R18: Inkollu | S18: Manchal | T18: Mandasa | U18: Gudem Kothaveedhi | V18: Jami | W18: Gudur | X18: Jangareddigudem | Y18: 16 | Z18: Nellore District | AA18: Jammalamadugu • | AB18: 17 | AF18: 16 | AG18: Nellore District
A19: 17 | B19: Gudihathnur | C19: Garladinne | D19: Kalikiri | E19: Jeelugumilli | F19: Ipuru | H19: Kalasapadu | I19: Kamalapur | J19: Kalluru | K19: Jaggayyapeta | L19: Gonegandla | M19: Dharur | N19: Kowdipalle | O19: Garide Palle | P19: Kotgiri | Q19: Jaladanki | R19: Janakavaram Panguluru | S19: Marpalle | T19: Meilaputti | U19: Hukumpeta | V19: Jiyyamma Valasa | W19: Hanamkonda | X19: Jeelugumilli | Y19: 17 | Z19: Prakasam District | AA19: Kalasapadu | AB19: 18 | AF19: 17 | AG19: Prakasam District
A20: 18 | B20: Jainoor | C20: Gooty | D20: Kambhamvaripalle | E20: Kalla | F20: Kakumanu | H20: Kamalapuram | I20: Kamanpur | J20: Karepalli | K20: Kaikalur | L20: Gospadu | M20: Doulatabad | N20: Kulcharam | O20: Gundala | P20: Lingampet | Q20: Kaligiri | R20: Kandukur | S20: Medchal | T20: Nandigam | U20: K Kotapadu | V20: Komarada | W20: Hasanparthy | X20: Kalla | Y20: 18 | Z20: Ranga reddy District | AA20: Kamalapuram | AB20: 19 | AF20: 18 | AG20: Ranga reddy District
A21: 19 | B21: Kagaz Nagar | C21: Gorantla | D21: Karvetinagar | E21: Kamavarapukota | F21: Karempudi | H21: Khajipet | I21: Karimnagar | J21: Khammam Rural | K21: Kalidindi | L21: Gudur | M21: Farooqnagar | N21: Manoor | O21: Gundla Palle | P21: Machareddy | Q21: Kaluvoya | R21: Kanigiri | S21: Moinabad | T21: Narasannapeta | U21: Kasimkota | V21: Kothavalasa | W21: Jangaon | X21: Kamavarapukota | Y21: 19 | Z21: Sreekakulam District | AA21: Khajipet | AB21: 20 | AF21: 19 | AG21: Sreekakulam District
A22: 20 | B22: Kotapalle | C22: Gudibanda | D22: Kuppam | E22: Kovvur | F22: Karlapalem | H22: Kodur | I22: Kataram | J22: Khammam Urban | K22: Kanchika Cherla | L22: Halaharvi | M22: Gadwal | N22: Medak | O22: Gurrampode | P22: Madnur | Q22: Kavali | R22: Karamchedu | S22: Mominpet | T22: Palakonda | U22: Kotauratla | V22: Kurupam | W22: Kesamudram | X22: Kovvur | Y22: 20 | Z22: Visakhapatnam District | AA22: Kodur | AB22: 21 | AF22: 20 | AG22: Visakhapatnam District
A23: 21 | B23: Laxmanchanda | C23: Gummagatta | D23: Kurabalakota | E23: Koyyalagudem | F23: Kollipara | H23: Kondapuram | I23: Kathlapur | J23: Konijerla | K23: Kankipadu | L23: Holagunda | M23: Ghanpur | N23: Mirdoddi | O23: Huzurnagar | P23: Makloor | Q23: Kodavalur | R23: Komarolu | S23: Nawabpet | T23: Palasa | U23: Koyyuru | V23: Lakkavarapukota | W23: Khanapur | X23: Koyyalagudem | Y23: 21 | Z23: Vizianagaram District | AA23: Kondapuram | AB23: 22 | AF23: 21 | AG23: Vizianagaram District
A24: 22 | B24: Mancherial | C24: Guntakal | D24: Mandanpalle | E24: Lingapalem | F24: Kollur | H24: Lakkireddipalle • | I24: Kesavapatnam | J24: Kothagudem | K24: Koduru | L24: Jupadu Bungalow | M24: Ghattu | N24: Mulug | O24: Jaji Reddi Gudem | P24: Mortad | Q24: Kondapuram | R24: Konakanamitla | S24: Pargi | T24: Pathapatnam | U24: Madugula | V24: Makkuva | W24: Kodakandla | X24: Lingapalem | Y24: 22 | Z24: Warangal District | AA24: Lakkireddipalle • | AB24: 23 | AF24: 22 | AG24: Warangal District
A25: 23 | B25: Nennal | C25: Hindupur | D25: Mulakalacheruvu | E25: Mogalthur | F25: Krosuru | H25: Lingala | I25: Kodimial | J25: Kukunoor | K25: Kruthivennu | L25: Kallur | M25: Gopalpeta | N25: Munpalle | O25: Kangal | P25: Naga Reddipet | Q25: Kota | R25: Kondapi | S25: Peddemul | T25: Polaki | U25: Makavarapalem | V25: Mentada | W25: Kothagudem | X25: Mogalthur | Y25: 23 | Z25: West godavari District | AA25: Lingala | AB25: 24 | AF25: 23 | AG25: West godavari District
A26: 24 | B26: Sarangapur | C26: Kadiri | D26: Nagalapuram | E26: Nallajerla | F26: Machavaram | H26: Muddanur | I26: Koheda | J26: Kunavaram | K26: Machilipatnam | L26: Kodumur | M26: Hanwada | N26: Nanganur | O26: Kattangoor | P26: Nandipet | Q26: Kovur | R26: Korisapadu | S26: Pudur | T26: Ponduru | U26: Munagapaka | V26: Merakamudidam | W26: Kuravi | X26: Nallajerla | Y26: 24 | AA26: Muddanur | AB26: 25
A27: 25 | B27: Tamsi | C27: Kalyandurg | D27: Nagari | E27: Narasapuram | F27: Macherla | H27: Mylavaram | I27: Konaraopeta | J27: Kusumanchi | K27: Mandavalli | L27: Koilkuntla | M27: Itikyal | N27: Narayankhed | O27: Kethepalle | P27: Navipet | Q27: Manubolu | R27: Kothapatnam | S27: Quthbullapur | T27: Rajam | U27: Munchingiputtu | V27: Nellimarla | W27: Lingala Ghanpur | X27: Narasapuram | Y27: 25 | AA27: Mylavaram | AB27: 26
A28: 26 | B28: Utnur | C28: Kambadur | D28: Narayanavanam | E28: Nidadavole | F28: Mangalagiri | H28: Mydukur | I28: Koratla | J28: Madhira | K28: Mopidevi | L28: Kolimigundla | M28: Jadcherla | N28: Narsapur | O28: Kodad | P28: Nizam Sagar | Q28: Marripadu | R28: Kurichedu | S28: Rajendranagar | T28: Ranastalam | U28: Nakkapalli | V28: Pachipenta | W28: Maddur | X28: Nidadavole | Y28: 26 | AA28: Mydukur | AB28: 27
A29: 27 | B29: Bazarhathnoor | C29: Kanaganapalle | D29: Nimmanapalle | E29: Nidamarru | F29: Medikonduru | H29: Nandalur | I29: Mahadevpur | J29: Manuguru | K29: Movva | L29: Kosigi | M29: Kalwakurthy | N29: Nyalkal | O29: M Turkapalle | P29: Nizamabad | Q29: Muthukur | R29: Lingasamudram | S29: Saroornagar | T29: Regidiamadalavalasa | U29: Narsipatnam | V29: Parvathipuram | W29: Mahabubabad | X29: Nidamarru | Y29: 27 | AA29: Nandalur | AB29: 28
A30: 28 | B30: Bhainsa | C30: Kanekal | D30: Nindra | E30: Palacole | F30: Muppalla | H30: Obulavaripalle | I30: Malharrao | J30: Mudigonda | K30: Mudinepalli | L30: Kothapalle | M30: Keshampeta | N30: Papannapet | O30: Marri Guda | P30: Pitlam | Q30: Naidupeta | R30: Maddipadu | S30: Serilingampalle | T30: Santhabommali | U30: Nathavaram | V30: Pusapatirega | W30: Mangapet | X30: Palacole | Y30: 28 | AA30: Obulavaripalle | AB30: 29
A31: 29 | B31: Dahegaon | C31: Kothacheruvu | D31: Pakala | E31: Palakoderu | F31: Nadendla | H31: Peddamudium • | I31: Mallapur | J31: Mulakalapalle | K31: Musunuru | L31: Kowthalam | M31: Kodair | N31: Patancheru | O31: Mattampalle | P31: Ranjal | Q31: Nellore | R31: Markapur | S31: Shabad | T31: Santhakaviti | U31: Paderu | V31: Ramabhadrapuram | W31: Maripeda | X31: Palakoderu | Y31: 29 | AA31: Peddamudium • | AB31: 30
A32: 30 | B32: Ichoda | C32: Kudair | D32: Palamaner | E32: Pedapadu | F32: Nagaram | H32: Penagaluru | I32: Mallial | J32: Nelakondapalle | K32: Mylavaram | L32: Krishnagiri | M32: Kodangal | N32: Pulkal | O32: Mellachervu | P32: Sadasivanagar | Q32: Ojili | R32: Marripudi | S32: Shamirpet | T32: Saravakota | U32: Padmanabham | V32: Salur | W32: Mogullapalle | X32: Pedapadu | Y32: 30 | AA32: Penagaluru | AB32: 31
A33: 31 | B33: Jaipur | C33: Kundurpi | D33: Palasamudram | E33: Pedavegi | F33: Nakarikallu | H33: Pendlimarri | I33: Manakondur | J33: Palawancha | K33: Nagayalanka | L33: Kurnool | M33: Koilkonda | N33: Raikode | O33: Miryalaguda | P33: Sirkonda | Q33: Pellakur | R33: Martur | S33: Shamshabad | T33: Sarubujjili | U33: Paravada | V33: Seethanagaram | W33: Mulug | X33: Pedavegi | Y33: 31 | AA33: Pendlimarri | AB33: 32
A34: 32 | B34: Kasipet | C34: Lepakshi | D34: Pedda Panjani | E34: Pentapadu | F34: Narasaraopeta | H34: Porumamilla | I34: Manthani | J34: Penuballi | K34: Nandigama | L34: Maddikera East | M34: Kollapur | N34: Ramachandrapuram | O34: Mothey | P34: Tadwai | Q34: Podlakur | R34: Mundlamuru | S34: Shankarpalle | T34: Seethampeta | U34: Payakaraopeta | V34: Srungavarapukota | W34: Nallabelly | X34: Pentapadu | Y34: 32 | AA34: Porumamilla | AB34: 33
A35: 33 | B35: Kouthala | C35: Mudigubba | D35: Peddamandyam | E35: Penugonda | F35: Nizampatnam | H35: Proddutur | I35: Medipalle | J35: Pinapaka | K35: Nandivada | L35: Mahanandi | M35: Kondurg | N35: Ramayampet | O35: Mothkur | P35: Varni | Q35: Rapur | R35: Naguluppalapadu | S35: Tandur | T35: Sompeta | U35: Pedabayalu | V35: Therlam | W35: Narmetta | X35: Penugonda | Y35: 33 | AA35: Proddutur | AB35: 34
A36: 34 | B36: Lohesra | C36: Nallacheruvu | D36: Peddathippasamudram | E36: Penumantra | F36: Nuzendla | H36: Pulivendla | I36: Metpalle | J36: Sathupalle | K36: Nuzvid | L36: Mantralayam | M36: Kosgi | N36: Regode | O36: Munagala | P36: Velpur | Q36: Sangam | R36: Ongole | S36: Uppal | T36: Srikakulam | U36: Pedagantyada | V36: Vepada | W36: Narsampet | X36: Penumantra | Y36: 34 | AA36: Pulivendla | AB36: 35
A37: 35 | B37: Mandamarri | C37: Nallamada | D37: Penumuru | E37: Peravali | F37: Pedakakani | H37: Pullampeta | I37: Mustabad | J37: Singareni | K37: Pamarru | L37: Midthur | M37: Kothakota | N37: Sadasivpet | O37: Munugode | P37: Yeda Palle | Q37: Seetharamapuram | R37: Pamur | S37: Vikarabad | T37: Tekkali | U37: Pendurthi | V37: Vizianagaram | W37: Narsimhulapet | X37: Peravali | Y37: 35 | AA37: Pullampeta | AB37: 36
A38: 36 | B38: Neradigonda | C38: Nambulipulikunta | D38: Pichatur | E38: Poduru | F38: Pedakurapadu | H38: Railway Koduru • | I38: Mutharam Mahadevpur | J38: Thallada | K38: Pamidimukkala | L38: Nandavaram | M38: Kothur | N38: Sangareddy | O38: Nadigudem | P38: Yellareddy | Q38: Sullurpeta | R38: Parchur | S38: Yacharam | T38: Vajrapukothuru | U38: Rambilli | W38: Nekkonda | X38: Poduru | Y38: 36 | AA38: Railway Koduru • | AB38: 37
A39: 37 | B39: Sirpur (T) | C39: Narpala | D39: Pileru | E39: Polavaram | F39: Phirangipuram | H39: Rajampet | I39: Mutharam Manthani | J39: Thirumalayapalem | K39: Pedana | L39: Nandi Kotkur | M39: Lingal | N39: Shankarampet (A) | O39: Nakrekal | Q39: Sydapuram | R39: Pedaaraveedu | S39: Yelal | T39: Vangara | U39: Ravikamatham | W39: Nellikudur | X39: Polavaram | Y39: 37 | AA39: Rajampet | AB39: 38
A40: 38 | B40: Tandur | C40: Obuladevaracheruvu | D40: Pulicherla | E40: T Narasapuram | F40: Piduguralla | H40: Raju Palem | I40: Odela | J40: Vararamachandrapuram | K40: Pedaparupudi | L40: Nandyal | M40: Maddur | N40: Shankarampet (R) | O40: Nalgonda | Q40: Tada | R40: Pedacherlopalle | T40: Veeraghattam | U40: Rolugunta | W40: Palakurthi | X40: T Narasapuram | Y40: 38 | AA40: Raju Palem | AB40: 39
A41: 39 | B41: Vemanpalle | C41: Pamidi | D41: Punganur | E41: Tadepalligudem | F41: Pittalavanipalem | H41: Ramapuram | I41: Peddapalle | J41: Velairpad | K41: Penamaluru | L41: Orvakal | M41: Madgul | N41: Shivampet | O41: Nampalle | Q41: Thotapalligudur | R41: Podili | U41: S Rayavaram | W41: Parkal | X41: Tadepalligudem | Y41: 39 | AA41: Ramapuram | AB41: 40
A42: 40 | B42: Bejjur | C42: Parigi | D42: Puthalapattu | E42: Tanuku | F42: Ponnur | H42: Rayachoti | I42: Pegadapalle | J42: Vemsoor | K42: Penuganchiprolu | L42: Owk | M42: Maganoor | N42: Siddipet | O42: Narayanapur | Q42: Udayagiri | R42: Ponnaluru | U42: Sabbavaram | W42: Parvathagiri | X42: Tanuku | Y42: 40 | AA42: Rayachoti | AB42: 41
A43: 41 | B43: Bheemini | C43: Peddapappur | D43: Puttur | E43: Thallapudi | F43: Prathipadu | H43: S Mydukur | I43: Raikal | J43: Venkatapuram | K43: Reddigudem | L43: Pagidyala | M43: Mahbubnagar | N43: Tekmal | O43: Narketpalle | Q43: Vakadu | R43: Pullalacheruvu | U43: Visakhapatnam | W43: Raghunatha Palle | X43: Thallapudi | Y43: 41 | AA43: S Mydukur | AB43: 42
A44: 42 | B44: Dandepalle | C44: Peddavadugur | D44: Rama Kuppam | E44: Undi | F44: Rajupalem | H44: Sambepalle | I44: Ramadugu | J44: Wazeed | K44: Thotlavalluru | L44: Pamulapadu | M44: Makthal | N44: Tupran | O44: Nered Cherla | Q44: Varikuntapadu | R44: Racherla | U44: Visakhapatnam(U) | W44: Raiparthy | X44: Undi | Y44: 42 | AA44: Sambepalle | AB44: 43
A45: 43 | B45: Inderavelly | C45: Penu Konda | D45: Ramachandrapuram | E45: Undrajavaram | F45: Rentacrintala | H45: Sidhout | I45: Ramagundam | J45: Wyra | K45: Tiruvuru | L45: Panyam | M45: Maldakal | N45: Wargal | O45: Nidamanur | Q45: Venkatachalam | R45: Santhamaguluru | U45: Yelamanchili | W45: Regonda | X45: Undrajavaram | Y45: 43 | AA45: Sidhout | AB45: 44
A46: 44 | B46: Jannaram | C46: Putlur | D46: Ramasamudram | E46: Unguturu | F46: Repalle | H46: Simhadripuram • | I46: Saidapur | J46: Yellandu | K46: Unguturu | L46: Pattikanda | M46: Manopadu | N46: Yeldurthy | O46: Nuthankal | Q46: Venkatagiri | R46: Santhanuthlapadu | W46: Sangem | X46: Unguturu | Y46: 44 | AA46: Simhadripuram • | AB46: 45
A47: 45 | B47: Kerameri | C47: Puttaparthi | D47: Renigunta | E47: Veeravasaram | F47: Rompicherla | H47: T Sundupalle | I47: Sarangapur | J47: Yerrupalem | K47: Vatsavai | L47: Peapally | M47: Midjil | N47: Zahirabad | O47: Pedda Adiserlapalle | Q47: Vidavalur | R47: Singarayakonda | W47: Shayampet | X47: Veeravasaram | Y47: 45 | AA47: T Sundupalle | AB47: 46
A48: 46 | B48: Kubeer | C48: Ramagiri | D48: Rompicherla | E48: Yelamanchili | F48: Sattenapalle | H48: Thandur | I48: Sirsilla | K48: Veerullapadu | L48: Pedda Kadubur | M48: Nagar Kurnool | O48: Peddavura | Q48: Vinjamur | R48: Tangutur | W48: Tadvai | X48: Yelamanchili | Y48: 46 | AA48: Thandur | AB48: 47
A49: 47 | B49: Luxettipet | C49: Raptadu | D49: Santhi Puram | F49: Savalyapuram | H49: Vallur | I49: Srirampur | K49: Vijayawada Rural | L49: Rudravaram | M49: Narayanpet | O49: Penpahad | R49: Tarlapadu | W49: Thorrur | Y49: 47 | AA49: Vallur | AB49: 48
A50: 48 | B50: Mudhole | C50: Roddam | D50: Satyavedu | F50: Tadikonda | H50: Veeraballe | I50: Sultanabad | K50: Vijayawada Urban | L50: Sanjamala | M50: Narva | O50: Pochampalle | R50: Thallur | W50: Venkatapur | Y50: 48 | AA50: Veeraballe | AB50: 49
A51: 49 | B51: Nirmal | C51: Rolla | D51: Sodam | F51: Tenali | H51: Veerapunayunipalle • | I51: Thimmapur | K51: Vissannapet | L51: Sirvel | M51: Nawabpet | O51: Rajapet | R51: Tripuranthakam | W51: Wardhannapet | Y51: 49 | AA51: Veerapunayunipalle • | AB51: 50
A52: 50 | B52: Sirpur (U) | C52: Settur | D52: Somala | F52: Thadepalle | H52: Vempalle | I52: Veenavanka | K52: Vuyyuru | L52: Srisailam | M52: Pangal | O52: Ramannapeta | R52: Ulavapadu | W52: Zaffergadh | Y52: 50 | AA52: Vempalle | AB52: 51
A53: 51 | B53: Tanur | C53: Singanamala | D53: Srikalahasti | F53: Thullur | H53: Vemula | I53: Velgatoor | L53: Tuggali | M53: Pebbair | O53: Saligouraram | R53: Veligandla | Y53: 51 | AA53: Vemula | AB53: 52
A54: 52 | B54: Wankdi | C54: Somandepalle | D54: Srirangarajapuram | F54: Tsundur | H54: Vontimitta | I54: Vemulawada | L54: Uyyalawada | M54: Peddakothapalle | O54: Suryapet | R54: Vetapalem | Y54: 52 | AA54: Vontimitta | AB54: 53
A55: 53 | C55: Tadimarri | D55: Thamballapalle | F55: Vatticherukuru | H55: Yerraguntla | I55: Yella Reddi Peta | L55: Veldurthi | M55: Peddamandadi | O55: Thipparthi | R55: Voletivaripalem | Y55: 53 | AA55: Yerraguntla | AB55: 54
A56: 54 | C56: Tadpatri | D56: Thavanampalle | F56: Veldurthi | L56: Velgodu | M56: Tadoor | O56: Thirumalagiri | R56: Yeddanapudi | Y56: 54 | AA56: 0 | AB56: 55
A57: 55 | C57: Talupula | D57: Thottambedu | F57: Vemuru | L57: Yemmiganur | M57: Talakondapalle | O57: Thripuraram | R57: Yerragondapalem | Y57: 55 | AA57: 0 | AB57: 56
A58: 56 | C58: Tanakal | D58: Tirupati Rural | F58: Vinukonda | M58: Telkapalle | O58: Thunga Thurthi | R58: Zarugumilli | Y58: 56 | AA58: 0 | AB58: 57
A59: 57 | C59: Uravakonda | D59: Tirupati Urban | M59: Thimmajipeta | O59: Valigonda | Y59: 57 | AA59: 0 | AB59: 58
A60: 58 | C60: Vajrakarur | D60: Vadamalapeta | M60: Uppununthala | O60: Vemulapalle | Y60: 58 | AA60: 0 | AB60: 59
A61: 59 | C61: Vidapanakal | D61: Varadaiahpalem | M61: Utkoor | O61: Yadagirigutta | Y61: 59 | AA61: 0 | AB61: 60
A62: 60 | C62: Yadiki | D62: Vayalpad | M62: Vangoor | Y62: 60 | AA62: 0 | AB62: 61
A63: 61 | C63: Yellanur | D63: Veduru Kuppam | M63: Veepangandla | Y63: 61 | AA63: 0 | AB63: 62
A64: 62 | D64: Venkatagiri Kota | M64: Veldanda | Y64: 62 | AA64: 0 | AB64: 63
A65: 63 | D65: Vijaya Puram | M65: Waddepalle | Y65: 63 | AA65: 0 | AB65: 64
A66: 64 | D66: Yadamari | M66: Wanaparthy | Y66: 64 | AA66: 0 | AB66: 65
A67: 65 | D67: Yerpedu | Y67: 65 | AA67: =HLOOKUP($Z$1,$B$2:$X$68,AB67,FALSE) -> 0 | AB67: 66
A68: 66 | D68: Yerravaripalem | Y68: 66 | AA68: =HLOOKUP($Z$1,$B$2:$X$68,AB68,FALSE) -> 0 | AB68: 67
R88: 15 | W88: 15 | AB88: 15
R89: 1 | W89: 1 | AB89: 1
R90: 2 | W90: 2 | AB90: 2
R91: 3 | W91: 3 | AB91: 3
R92: 4 | W92: 4 | AB92: 4
R93: 5 | W93: 5 | AB93: 5
R94: 6 | W94: 6 | AB94: 6
R95: 7 | W95: 7 | AB95: 7
R96: 8 | W96: 8 | AB96: 8
R97: 9 | W97: 9 | AB97: 147
R98: 10 | W98: 10 | AB98: 10
R99: 11 | W99: 11 | AB99: 11
R100: 12 | W100: 12 | AB100: 12
R101: 13 | W101: 13 | AB101: 13
R102: 14 | W102: 14 | AB102: 14
R103: 15 | W103: 15 | AB103: 15
R104: 16 | W104: 16 | AB104: 16
R105: 17 | W105: 17 | AB105: 17
R106: 18 | W106: 18 | AB106: 18
R107: 19 | W107: 19 | AB107: 19
R108: 20 | W108: 20 | AB108: 20
R109: 21 | W109: 21 | AB109: 21
R110: 22 | W110: 22 | AB110: 22
R111: 23 | W111: 23 | AB111: 23
R112: 24 | W112: 24 | AB112: 24
R113: 25 | W113: 25 | AB113: 25
R114: 26 | W114: 26 | AB114: 26
R115: 27 | W115: 27 | AB115: 27
R116: 28 | W116: 28 | AB116: 28
R117: 29 | W117: 29 | AB117: 29
R118: 30 | W118: 30 | AB118: 30
R119: 31 | W119: 31 | AB119: 31

Sheet Rec. Hos (hidden)
B1: LIST OF RECOGNIZED PRIVATE HOSPITALS
B2: S. NO. | C2: Name of the Hospital | D2: Date of Recognition /Renewal | E2: Proceedings No. | F2: Specialization for which recognized | G2: Last Date for expriy of recongition | O2: Details
B3: 1 | C3: A.P. Super Speciality Dental Hospital PVT Ltd,Road No. 2, Banjara Hills, Hyderabad. | D3: =I3 -> 11-Sep-2006 | E3: =J3 -> 19761/LC-B/2005 | F3: =K3 -> Dental | G3: =L3 -> 10-Sep-2009 | H3: A.P. Super Speciality Dental Hospital PVT Ltd, Road No. 2, Banjara Hills, Hyderabad. | I3: 11-Sep-2006 | J3: 19761/LC-B/2005 | K3: Dental | L3: 10-Sep-2009 | O3: =LOOKUP(Code!$N$1,'Rec. Hos'!$B$3:$G$487,'Rec. Hos'!C3:C487) -> Venkatapadma Hospitals, 15-1-45, Three Lamps Junction, Beside Masjid, Vizianagaram
B4: 2 | C4: A.P.Super Speciality Dental Hospital, Plot No.265J, Road No.10, Jubilee Hills, Hyderabad | D4: 04-Jan-2010 | E4: 37283/LC-B/2009 | F4: Dental | G4: 03-Jan-2013 | H4: A.P.Super Speciality Dental Hospital, Plot No. 265J, Road No.10, Jubilee Hills, Hyderabad | I4: 04-Jan-2010 | J4: 37283/LC-B/2009 | K4: Dental | L4: 03-Jan-2013 | O4: =DAY(LOOKUP(Code!$N$1,'Rec. Hos'!$B$3:$G$487,'Rec. Hos'!D3:D487))&"-"&MONTH(LOOKUP(Code!$N$1,'Rec. Hos'!$B$3:$G$487,'Rec. Hos'!D3:D487))&"-"&YEAR(LOOKUP(Code!$N$1,'Rec. Hos'!$B$3:$G$487,'Rec. Hos'!D3:D487)) -> 18-2-2010
B5: 3 | C5: A.V.R. Dento - Facial Hospital, Street No. 8 Habshiguda, Hyderabad. | D5: 6-Jan-2009 | E5: 38917/LC.B/2008 | F5: Dental | G5: 5-Jan-2012 | H5: A.V.R. Dento - Facial Hospital, Street No. 8 Habshiguda, Hyderabad. | I5: 6-Jan-2009 | J5: 38917/LC.B/2008 | K5: Dental | L5: 5-Jan-2012 | O5: =LOOKUP(Code!$N$1,'Rec. Hos'!$B$3:$G$487,'Rec. Hos'!E3:E487) -> 34435/LC-B/2009
B6: 4 | C6: Aayushman Hospital, Srirangam Street, Near Venkateswara Cology, Kurnool | D6: 2008-07-03 | E6: 37591/LC.B/2006 | F6: Genl. Medicine, Genl. Surgery, OBG., Orthopedics, Pediatrics, Neuro Surgery, ENT., Physiotherapy, Radiology, Anesthesiology, Emergency Medicine, Plastic Surgery, Pulmonology, Surgical Gastro Enterology, Urology, and Cardiology. | G6: 2011-07-02 | H6: Aayushman Hospital, Srirangam Street, Near Venkateswara Cology, Kurnool | I6: 2008-07-03 | J6: 37591/LC.B/2006 | K6: Genl. Medicine, Genl. Surgery, OBG., Orthopedics, Pediatrics, Neuro Surgery, ENT., Physiotherapy, Radiology, Anesthesiology, Emergency Medicine, Plastic Surgery, Pulmonology, Surgical Gastro Enterology, Urology, and Cardiology. | L6: 2011-07-02 | O6: =LOOKUP(Code!$N$1,'Rec. Hos'!$B$3:$G$487,'Rec. Hos'!F3:F487) -> General Medicine, General Surgery, Anaesthesiology, OBG, Orthopaedics, Neuro Surgery, ENT, Urology, Paediatrics, Radiology, Pathology, Plastic Surgery, Pulmonoogy and Physiotherapy
B7: 5 | C7: Abhilash Netra Vydyasala, 3/1350, Gandhi Road, Opp. Ishwarya Complex, Proddutur, Kadapa Dist. | D7: 18-Feb-2010 | E7: 22349/LC-B/2010 | F7: Ophthalmology | G7: 17-Feb-2013 | H7: Abhilash Netra Vydyasala, 3/1350, Gandhi Road, Opp. Ishwarya Complex, Proddutur, Kadapa Dist. | I7: 18-Feb-2010 | J7: 22349/LC-B/2010 | K7: Ophthalmology | L7: 17-Feb-2013 | O7: =DAY(LOOKUP(Code!$N$1,'Rec. Hos'!$B$3:$G$487,'Rec. Hos'!G3:G487))&"-"&MONTH(LOOKUP(Code!$N$1,'Rec. Hos'!$B$3:$G$487,'Rec. Hos'!G3:G487))&"-"&YEAR(LOOKUP(Code!$N$1,'Rec. Hos'!$B$3:$G$487,'Rec. Hos'!G3:G487)) -> 17-2-2013
B8: 6 | C8: Aditya Hospital, 4-1-16, Boggulakunta, Tilak Road, Abids, Hyderabad. | D8: 2006-07-22 | E8: 18537/LC-B/2005 | F8: Multi | G8: 2012-07-21 | H8: Aditya Hospital, 4-1-16, Boggulakunta, Tilak Road, Abids, Hyderabad. | I8: 2006-07-22 | J8: 18537/LC-B/2005 | K8: Multi | L8: 2012-07-21
B9: 7 | C9: Aditya Hospital, Opp. Police Parade Grounds Bus Stop, Near Petrol Pump, Hanumakonda, Warangal. | D9: 15-Sep-2008 | E9: 12309/LC.B/2008 | F9: General Surgery. | G9: 14-Sep-2011 | H9: Aditya Hospital, Opp. Police Parade Grounds Bus Stop, Near Petrol Pump, Hanumakonda, Warangal. | I9: 15-Sep-2008 | J9: 12309/LC.B/2008 | K9: General Surgery. | L9: 14-Sep-2011
B10: 8 | C10: Advally Damodar Reddy Memorial Hospital, 9-2, Ramanthapur, Hyderabad | D10: 2010-03-11 | E10: 32471/LC-B/2009 | F10: General Medicine, General Surgery,Cardiology, OBG, Orthopaedics, ENT, Paediatrics, Nephrology and Plastic Surgery | G10: 2013-03-10 | H10: Advally Damodar Reddy Memorial Hospital, 9- 2, Ramanthapur, Hyderabad | I10: 2010-03-11 | J10: 32471/LC-B/2009 | K10: General Medicine, General Surgery,Cardiology, OBG, Orthopaedics, ENT, Paediatrics, Nephrology and Plastic Surgery | L10: 2013-03-10
B11: 9 | C11: Akira Eye Hospital, Aryapuram, Rajahmundry,E.G. Dist. | D11: 6-Jan-2009 | E11: 8163/LC.B/2007 | F11: Ophthalmology | G11: 5-Jan-2012 | H11: Akira Eye Hospital, Aryapuram, Rajahmundry, E.G. Dist. | I11: 6-Jan-2009 | J11: 8163/LC.B/2007 | K11: Ophthalmology | L11: 5-Jan-2012
B12: 10 | C12: Alluri Sitarama Raju Academy of Medical Sciences and Hospital, N.H. 5, Malkapuram, Eluru, W.G. Dist. | D12: 3-Feb-2009 | E12: 32484/LC.B/2007 | F12: Genl. Medicine, Genl. Surgery, E.N.T., Pediatrics, OBG., Pulmanology, Urology, Cardiology, Neuro Surgery and Nephrology. | G12: 2012-02-02 | H12: Alluri Sitarama Raju Academy of Medical Sciences and Hospital, N.H. 5, Malkapuram, Eluru, W.G. Dist. | I12: 3-Feb-2009 | J12: 32484/LC.B/2007 | K12: Genl. Medicine, Genl. Surgery, E.N.T., Pediatrics, OBG., Pulmanology, Urology, Cardiology, Neuro Surgery and Nephrology. | L12: 2012-02-02
B13: 11 | C13: Alpha Hospital, 23-1-863, Near MCH Swimmingpool, Moghalpura, Hyderabad | D13: 2006-07-22 | E13: 14060/LC-B/2005 | F13: General Medicine, General Surgery, Emesrgency Medicine, Cardiology, OBG, Paediatrics, Nephrology, Urology, Orthopaedics, Pulmonology, Plastic Surgeryand Physiotherapy | G13: 2012-07-21 | H13: Alpha Hospital, 23-1-863, Near MCH Swimmingpool, Moghalpura, Hyderabad | I13: 2006-07-22 | J13: 14060/LC-B/2005 | K13: General Medicine, General Surgery, Emesrgency Medicine, Cardiology, OBG, Paediatrics, Nephrology, Urology, Orthopaedics, Pulmonology, Plastic Surgeryand Physiotherapy | L13: 2012-07-21
B14: 12 | C14: Amaravathi Institute of Medical Science Pvt. Ltd., Kothapet, Guntur | D14: 2006-03-18 | E14: 1672/LC-B/2004 | F14: Anaesthesiology, General Medicine, General Surgery, Emergency Medicine, Nephrology, Neuro Surgery, OBG, Orthopaedics, Paediatrics, ENT, Plastic Surgery, Urology, Radiology and Physiotherapy | G14: 2012-03-17 | H14: Amaravathi Institute of Medical Science Pvt. Ltd., Kothapet, Guntur | I14: 2006-03-18 | J14: 1672/LC-B/2004 | K14: Anaesthesiology, General Medicine, General Surgery, Emergency Medicine, Nephrology, Neuro Surgery, OBG, Orthopaedics, Paediatrics, ENT, Plastic Surgery, Urology, Radiology and Physiotherapy | L14: 2012-03-17
B15: 13 | C15: Ameerpet Super Speciality Dental Hospital & Implant Centre, 102 Classic Avenue, 6-3- 790/7, Behind chowdary Mansion, Ameerpet, Hyderabad. | D15: 2005-10-24 | E15: 18484/LC-B/2005 | F15: Dental | G15: 2008-10-23 | H15: Ameerpet Super Speciality Dental Hospital & Implant Centre, 102 Classic Avenue, 6-3- 790/7, Behind chowdary Mansion, Ameerpet, Hyderabad. | I15: 2005-10-24 | J15: 18484/LC-B/2005 | K15: Dental | L15: 2008-10-23
B16: 14 | C16: American Institute of Dentistry, Besides Chermas, 8-3-944/12/4, Ameerpet, Hyderabad. | D16: 2006-01-19 | E16: 19963/LC-B/2005 | F16: Dental | G16: 2012-01-18 | H16: American Institute of Dentistry, Besides Chermas, 8-3-944/12/4, Ameerpet, Hyderabad. | I16: 2006-01-19 | J16: 19963/LC-B/2005 | K16: Dental | L16: 2012-01-18
B17: 15 | C17: Amma Hospital, Madhava Nagar, Beside Siva Ramalayam, Nandyal Road, Kurnool | D17: 2008-08-13 | E17: 25957/LC.B/2005 | F17: Genl. Medicine, Genl. Surgery, Neuro Surgery, Orthopedics, Urology, OBG., Pulmanology, Neurology, Pediatrics, and E.N.T. | G17: 2011-08-12 | H17: Amma Hospital, Madhava Nagar, Beside Siva Ramalayam, Nandyal Road, Kurnool | I17: 2008-08-13 | J17: 25957/LC.B/2005 | K17: Genl. Medicine, Genl. Surgery, Neuro Surgery, Orthopedics, Urology, OBG., Pulmanology, Neurology, Pediatrics, and E.N.T. | L17: 2011-08-12
B18: 16 | C18: Amrutha Children Nursing Home, 5-10-15, Kishanpura, Hanamkonda, Warangal, Dist. | D18: 24-Jul-2009 | E18: 12485/LC-B/2008 | F18: Paediatrics | G18: 23-Jul-2012 | H18: Amrutha Children Nursing Home, 5-10-15, Kishanpura, Hanamkonda, Warangal, Dist. | I18: 24-Jul-2009 | J18: 12485/LC-B/2008 | K18: Paediatrics | L18: 23-Jul-2012
B19: 17 | C19: Amrutha Nursing Home, Besides Civil Hospital, Karimnagar. | D19: 2007-09-13 | E19: 22904/LC.B.2006 | F19: General Medicine, General Surgery, OBG, Urology, Physio Therapy, Plastic Surgery, Pediatric Surgery, Emergency Medicine, Orthopedics, and Surgical Oncology. | G19: 2010-09-12 | H19: Amrutha Nursing Home, Besides Civil Hospital, Karimnagar. | I19: 2007-09-13 | J19: 22904/LC.B.2006 | K19: General Medicine, General Surgery, OBG, Urology, Physio Therapy, Plastic Surgery, Pediatric Surgery, Emergency Medicine, Orthopedics, and Surgical Oncology. | L19: 2010-09-12
B20: 18 | C20: Amulya Multi Spefciality Dental Clinic, 12-13- 1282, Mehtab Arcade, Opp. Ganesh Temple, Tarnaka 'X' Road, Secunderabad | D20: 3-Jul-2010 | E20: 21023/LC-B/2010 | F20: Dental | G20: 2-Jul-2013 | H20: Amulya Multi Spefciality Dental Clinic, 12-13- 1282, Mehtab Arcade, Opp. Ganesh Temple, Tarnaka 'X' Road, Secunderabad | I20: 3-Jul-2010 | J20: 21023/LC-B/2010 | K20: Dental | L20: 2-Jul-2013
B21: 19 | C21: Amulya Nursing Home, Narasaropet, Guntur Dist. | D21: 23-Apr-2008 | E21: 48571/LC.B/2007 | F21: Orthopedics | G21: 22-Apr-2011 | H21: Amulya Nursing Home, Narasaropet, Guntur Dist. | I21: 23-Apr-2008 | J21: 48571/LC.B/2007 | K21: Orthopedics | L21: 22-Apr-2011
B22: 20 | C22: Anasuya Institute of Medical Sciences, Pogathota, Nellore. | D22: 2008-04-23 | E22: 25778/LC.B/2007 | F22: Genl. Medicine, Genl. Surgery, Cardiology, Pediatrics, OBG, and Orthopedics. Additionally Recognised for the following specialities w.e.f. 23-12-2009 1.ENT 2.Urology 3.C.T.Surgery | G22: 2011-04-22 | H22: Anasuya Institute of Medical Sciences, Pogathota, Nellore. | I22: 2008-04-23 | J22: 25778/LC.B/2007 | K22: Genl. Medicine, Genl. Surgery, Cardiology, Pediatrics, OBG, and Orthopedics. Additionally Recognised for the following specialities w.e.f. 23-12-2009 1.ENT 2.Urology 3.C.T.Surgery | L22: 2011-04-22
B23: 21 | C23: Andhra Hospitals, CVR Complex, Prakasam Road, Vijayawada | D23: 2006-05-06 | E23: 3264/LC.B/2004 | F23: General Medicine, General Surgery, Orthopaedics, OBG, Surgical Gastroenterology, Surgical Oncology, Nephrology, Urology, Paediatrics and Neuro Surgery | G23: 2012-05-05 | H23: Andhra Hospitals, CVR Complex, Prakasam Road, Vijayawada | I23: 2006-05-06 | J23: 3264/LC.B/2004 | K23: General Medicine, General Surgery, Orthopaedics, OBG, Surgical Gastroenterology, Surgical Oncology, Nephrology, Urology, Paediatrics and Neuro Surgery | L23: 2012-05-05
B24: 22 | C24: Ankith Multi SpecialtyHospital, Ibrahim Patnam, R.R. Dist. | D24: 2007-04-28 | E24: 18815/LC-B/2005 | F24: General Medicine, General Surgery, Anaesthesiology, OBG, Paediatrics, Orthopaedics, ENT, Urology, Neuro Surgery, Plastic Surgery and Pulmonology | G24: 2013-04-27 | H24: Ankith Multi SpecialtyHospital, Ibrahim Patnam, R.R. Dist. | I24: 2007-04-28 | J24: 18815/LC-B/2005 | K24: General Medicine, General Surgery, Anaesthesiology, OBG, Paediatrics, Orthopaedics, ENT, Urology, Neuro Surgery, Plastic Surgery and Pulmonology | L24: 2013-04-27
B25: 23 | C25: Anupama Hospital, 16-31/494 & 495, 6th Phase, KPHB Colony, JNTU Road, Kukatpally, Hyderabad | D25: 2010-02-03 | E25: 31250/LC-B/2009 | F25: Anaesthesiology, General Medicine, General Surgery, Cardiology, ENT, Emergency Medicine, OBG, Orthopaedics, Paediatrics, Pathology, Plastic Surgery, Pulmonology, Radiology, Surgical Gastroentesrology, Urology and Physiotherapy Unit | G25: 2013-02-02 | H25: Anupama Hospital, 16-31/494 & 495, 6th Phase, KPHB Colony, JNTU Road, Kukatpally, Hyderabad | I25: 2010-02-03 | J25: 31250/LC-B/2009 | K25: Anaesthesiology, General Medicine, General Surgery, Cardiology, ENT, Emergency Medicine, OBG, Orthopaedics, Paediatrics, Pathology, Plastic Surgery, Pulmonology, Radiology, Surgical Gastroentesrology, Urology and Physiotherapy Unit | L25: 2013-02-02
B26: 24 | C26: Aparna Hospitals Pvt. Ltd., 2-5-680, Subhedari, Hanumakonda, Warangal | D26: 12-Dec-2008 | E26: 27035/LC.B/2008 | F26: E.N.T. | G26: 11-Dec-2011 | H26: Aparna Hospitals Pvt. Ltd., 2-5-680, Subhedari, Hanumakonda, Warangal | I26: 12-Dec-2008 | J26: 27035/LC.B/2008 | K26: E.N.T. | L26: 11-Dec-2011
B27: 25 | C27: Apex Hosptials, 75-6-23, Prakash Nagar, Rajahmundry, E.G. Dist. | D27: 9-Apr-2009 | E27: 1996/LC.B/2007 | F27: General Surgery | G27: 8-Apr-2012 | H27: Apex Hosptials, 75-6-23, Prakash Nagar, Rajahmundry, E.G. Dist. | I27: 9-Apr-2009 | J27: 1996/LC.B/2007 | K27: General Surgery | L27: 8-Apr-2012
B28: 26 | C28: Apollo DRDO Hospital, DRML 'X' Road, Kanchanbagh, Hyderabad | D28: 2007-02-20 | E28: 3940/LC-B/2006 | F28: Anesthesiology, General Medicine, General Surgery, Cardiology, C.T. Surgery, Emergency Medicine, ENT, Surgical Gastroenterology, Nephrology, Neuro Surgery, OBG, Orthopedics, Pediatrics, Plastic Surgery, Pulmonology, Radiology, Urology, Physiotherapy and Dialysis | G28: 2013-02-19 | H28: Apollo DRDO Hospital, DRML 'X' Road, Kanchanbagh, Hyderabad | I28: 2007-02-20 | J28: 3940/LC-B/2006 | K28: Anesthesiology, General Medicine, General Surgery, Cardiology, C.T. Surgery, Emergency Medicine, ENT, Surgical Gastroenterology, Nephrology, Neuro Surgery, OBG, Orthopedics, Pediatrics, Plastic Surgery, Pulmonology, Radiology, Urology, Physiotherapy and Dialysis | L28: 2013-02-19
B29: 27 | C29: Apollo Hospital, Jublee Hills, Hyderabad | D29: 2006-07-22 | E29: 3941/LC-B/2006 | F29: Anaesthesiology, Cardiology, C.T.Surgery, ENT, Emergency Medicine, General Medicine, General Surgery, Nephrology, Neuro Surgery, Nuclear Medicine, OBG, Orthopaedics, Paediatrics, Plastic Surgery, Pulmonology, Radiology, Pathology, Urology, Surgical Gastroenterology, Surgical Oncology, Physiotherapy and Dialysis Unit | G29: 2012-07-21 | H29: Apollo Hospital, Jublee Hills, Hyderabad | I29: 2006-07-22 | J29: 3941/LC-B/2006 | K29: Anaesthesiology, Cardiology, C.T.Surgery, ENT, Emergency Medicine, General Medicine, General Surgery, Nephrology, Neuro Surgery, Nuclear Medicine, OBG, Orthopaedics, Paediatrics, Plastic Surgery, Pulmonology, Radiology, Pathology, Urology, Surgical Gastroenterology, Surgical Oncology, Physiotherapy and Dialysis Unit | L29: 2012-07-21
B30: 28 | C30: Apollo Hospital, Vikrampuri, Secunderabad. | D30: 2007-02-20 | E30: 3937/LC-B/2006 | F30: Anesthesiology, Cardiology, ENT, Emergency Medicine, General Medicine, General Surgery, Nephrology, Nuclear Medicine, Obst & Gynecology, Orthopedics, Pediatrics, Pathology, Plastic Surgery, Pulmonology, Gastroentrology Radiology, Oncology and Physiotherapy | G30: 2010-02-19 | H30: Apollo Hospital, Vikrampuri, Secunderabad. | I30: 2007-02-20 | J30: 3937/LC-B/2006 | K30: Anesthesiology, Cardiology, ENT, Emergency Medicine, General Medicine, General Surgery, Nephrology, Nuclear Medicine, Obst & Gynecology, Orthopedics, Pediatrics, Pathology, Plastic Surgery, Pulmonology, Gastroentrology Radiology, Oncology and Physiotherapy | L30: 2010-02-19
B31: 29 | C31: Apollo Hospital, Waltair Main Road, Visakhapatnam | D31: 2006-07-22 | E31: 18541/LC-B/2005 | F31: Anaesthesiology, Cardiology, C.T.Surgery, ENT, Emergency Medicine, General Medsicine, General Surgery, Nephrology, Neuro Surgery, OBG, Orthopaedics, Paediatrics, Pathology, Plastic Surgery, Pulmonology, Radiology, Surgical Gastroenterology, Surgical Oncology and Dialysis | G31: 2012-07-21 | H31: Apollo Hospital, Waltair Main Road, Visakhapatnam | I31: 2006-07-22 | J31: 18541/LC-B/2005 | K31: Anaesthesiology, Cardiology, C.T.Surgery, ENT, Emergency Medicine, General Medsicine, General Surgery, Nephrology, Neuro Surgery, OBG, Orthopaedics, Paediatrics, Pathology, Plastic Surgery, Pulmonology, Radiology, Surgical Gastroenterology, Surgical Oncology and Dialysis | L31: 2012-07-21
B32: 30 | C32: Apollo Hospitals, D.No. 13-1-13, Main Road, Kakinada. | D32: 2006-09-12 | E32: 10450/LC-B/2006 | F32: Anaesthesiology, Cardiology, C.T.Surgery, ENT, Emergency Medicine, General Medicine, General Surgesry, Nephrology, Neuro Surgery, Orthopaedics, Paediatrics, Pathology, Plastic Surgery, Pulmonology, Radiology, Surgical Gastroenterology, Susrgical Oncology, Urology, Physiotherapy and Dialysis | G32: 2012-09-11 | H32: Apollo Hospitals, D.No. 13-1-13, Main Road, Kakinada. | I32: 2006-09-12 | J32: 10450/LC-B/2006 | K32: Anaesthesiology, Cardiology, C.T.Surgery, ENT, Emergency Medicine, General Medicine, General Surgesry, Nephrology, Neuro Surgery, Orthopaedics, Paediatrics, Pathology, Plastic Surgery, Pulmonology, Radiology, Surgical Gastroenterology, Susrgical Oncology, Urology, Physiotherapy and Dialysis | L32: 2012-09-11
B33: 31 | C33: Apollo Nursing Home, 3-3-96, Civil Hospital Road, Karimnagar. | D33: 2009-05-30 | E33: 49078/LC.B/2008 | F33: Anesthesiology, Gen. Med. Gen. Surgery, OBG, Pediatrics, ENT, Orthopaedics, Surgical Oncology, Urology, Radiology, Pulmonology, Plastic Surgeryand Physiotherapy | G33: 29-May-2012 | H33: Apollo Nursing Home, 3-3-96, Civil Hospital Road, Karimnagar. | I33: 2009-05-30 | J33: 49078/LC.B/2008 | K33: Anesthesiology, Gen. Med. Gen. Surgery, OBG, Pediatrics, ENT, Orthopaedics, Surgical Oncology, Urology, Radiology, Pulmonology, Plastic Surgeryand Physiotherapy | L33: 29-May-2012
B34: 32 | C34: Apollo Reach Hospitals, Railway Station Road, Karimnagar | D34: 2009-10-09 | E34: 3541/LC-B/2009 | F34: Anaesthesiology, Cardiology, C.T.Surgery, Emergency Medicine, General Medicine, General Surgery, Nephrology, Neuro Surgery, Orthopaedics, Urology and Physiotherapy | G34: 2012-10-08 | H34: Apollo Reach Hospitals, Railway Station Road, Karimnagar | I34: 2009-10-09 | J34: 3541/LC-B/2009 | K34: Anaesthesiology, Cardiology, C.T.Surgery, Emergency Medicine, General Medicine, General Surgery, Nephrology, Neuro Surgery, Orthopaedics, Urology and Physiotherapy | L34: 2012-10-08
B35: 33 | C35: Apple Dental Care, Opp. Vijaya Talkies, Shanmuka Complex, Eluru Road, Vijayawada | D35: 26-Mar-2010 | E35: 30967/LC-B/2009 | F35: Dental | G35: 25-Mar-2013 | H35: Apple Dental Care, Opp. Vijaya Talkies, Shanmuka Complex, Eluru Road, Vijayawada | I35: 26-Mar-2010 | J35: 30967/LC-B/2009 | K35: Dental | L35: 25-Mar-2013
B36: 34 | C36: Aravind Eye Care Centre, 20/1100, Radha Krishna Nagar, Lane Opp. Ramesh Theatre, Kadapa | D36: 24-Apr-2010 | E36: 46774/LC-B/2009 | F36: Ophthalmology | G36: 23-Apr-2013 | H36: Aravind Eye Care Centre, 20/1100, Radha Krishna Nagar, Lane Opp. Ramesh Theatre, Kadapa | I36: 24-Apr-2010 | J36: 46774/LC-B/2009 | K36: Ophthalmology | L36: 23-Apr-2013
B37: 35 | C37: Aravind Eye Hospital and Lasic Center, Santhosh Nagar Colony, Mehadipatnam, Hyderabad. | D37: 6-Nov-2007 | E37: 1805/LC.B/2006 | F37: Ophthalmology | G37: 5-Nov-2010 | H37: Aravind Eye Hospital and Lasic Center, Santhosh Nagar Colony, Mehadipatnam, Hyderabad. | I37: 6-Nov-2007 | J37: 1805/LC.B/2006 | K37: Ophthalmology | L37: 5-Nov-2010
B38: 36 | C38: Aravind Kidney Centre, 15/402,Brindavanam, Main Road, Nellore. | D38: 2006-05-06 | E38: 8202/LC.B/2005 | F38: General Medicine, Anaesthesiology, OBG, Urology and Nephrology | G38: 2012-05-05 | H38: Aravind Kidney Centre, 15/402,Brindavanam, Main Road, Nellore. | I38: 2006-05-06 | J38: 8202/LC.B/2005 | K38: General Medicine, Anaesthesiology, OBG, Urology and Nephrology | L38: 2012-05-05
B39: 37 | C39: Aravind Nethralaya Meenakshi Diabetes and Endocrinology and Super Speciality Hospital, Swathantra Park Street, Gandhi Nagar, Nellore | D39: 2006-04-26 | E39: 14515/LC.B/2005 | F39: Ophthalmology | G39: 2012-04-25 | H39: Aravind Nethralaya Meenakshi Diabetes and Endocrinology and Super Speciality Hospital, Swathantra Park Street, Gandhi Nagar, Nellore | I39: 2006-04-26 | J39: 14515/LC.B/2005 | K39: Ophthalmology | L39: 2012-04-25
B40: 38 | C40: ARK Hospital, Kukatpally, Hyderabad. | D40: 6-May-2006 | E40: 17515/LC.B/2005 | F40: Medical & General SurgeryObstetrics & Gynecology and Pediatrics | G40: 5-May-2009 | H40: ARK Hospital, Kukatpally, Hyderabad. | I40: 6-May-2006 | J40: 17515/LC.B/2005 | K40: Medical & General SurgeryObstetrics & Gynecology and Pediatrics | L40: 5-May-2009
B41: 39 | C41: Arun Kidney Center, 29-23-9, Tadepallivari Street, Suryaraopet, Vijayawada | D41: 28-Apr-2007 | E41: 21930/LC-B/2006 | F41: Nephrology, Urology (Kidney transplantation) | G41: 27-Apr-2010 | H41: Arun Kidney Center, 29-23-9, Tadepallivari Street, Suryaraopet, Vijayawada | I41: 28-Apr-2007 | J41: 21930/LC-B/2006 | K41: Nephrology, Urology (Kidney transplantation) | L41: 27-Apr-2010
B42: 40 | C42: Aruna Hospital, Road No. 4, Chandrapuri Colony, L.B. Nagar, Hyderabad. | D42: 23-Apr-2008 | E42: 46405/LC.B/2007 | F42: Ophthalmology | G42: 22-Apr-2011 | H42: Aruna Hospital, Road No. 4, Chandrapuri Colony, L.B. Nagar, Hyderabad. | I42: 23-Apr-2008 | J42: 46405/LC.B/2007 | K42: Ophthalmology | L42: 22-Apr-2011
B43: 41 | C43: Asha Hospitals, 7/201, Court Road, Anantapur. | D43: 2005-11-16 | E43: 18471/LC-B/2005 | F43: General Medicine, General Surgery, Orthopaedics and Urology | G43: 2011-11-15 | H43: Asha Hospitals, 7/201, Court Road, Anantapur. | I43: 2005-11-16 | J43: 18471/LC-B/2005 | K43: General Medicine, General Surgery, Orthopaedics and Urology | L43: 2011-11-15
B44: 42 | C44: Ashok Super Speciality Dental & Orthodontic and Implantology Centre, Opp. K.K.Nursing Home, Civil Hospital Road, Karimnagar | D44: 2010-02-03 | E44: 37113/LC-B/2009 | F44: Dental | G44: 2013-02-02 | H44: Ashok Super Speciality Dental & Orthodontic and Implantology Centre, Opp. K.K.Nursing Home, Civil Hospital Road, Karimnagar | I44: 2010-02-03 | J44: 37113/LC-B/2009 | K44: Dental | L44: 2013-02-02
B45: 43 | C45: Ashwini SpecialtyDental Hospital, Humayun Nagar, Hyderabad | D45: 22-May-2008 | E45: 23737/LC.B/2006 | F45: Dental | G45: 21-May-2011 | H45: Ashwini SpecialtyDental Hospital, Humayun Nagar, Hyderabad | I45: 22-May-2008 | J45: 23737/LC.B/2006 | K45: Dental | L45: 21-May-2011
B46: 44 | C46: Asian Institute of Gastroenterology, 6-3-661, Somajiguda, Hyderabad | D46: 2006-02-03 | E46: 7525/LC-B/2005 | F46: Medical Gastroenterological, Surgical Gastroenterological, Oncology, General Surgery, Anaesthesiology, Pathology, Radiology & Dialysis Unit. | G46: 2012-02-02 | H46: Asian Institute of Gastroenterology, 6-3-661, Somajiguda, Hyderabad | I46: 2006-02-03 | J46: 7525/LC-B/2005 | K46: Medical Gastroenterological, Surgical Gastroenterological, Oncology, General Surgery, Anaesthesiology, Pathology, Radiology & Dialysis Unit. | L46: 2012-02-02
B47: 45 | C47: Aswini Dental Hospital, 143-A Block, Aditya Enclave, opp. Saradhi Studio, Ameerpet, Hyderabad. | D47: 26-Apr-2007 | E47: 16368/LC-B/2006 | F47: Dental | G47: 25-Apr-2010 | H47: Aswini Dental Hospital, 143-A Block, Aditya Enclave, opp. Saradhi Studio, Ameerpet, Hyderabad. | I47: 26-Apr-2007 | J47: 16368/LC-B/2006 | K47: Dental | L47: 25-Apr-2010
B48: 46 | C48: Aswini Hospital, Near RTC Bus Stand Mangalagiri Road, Guntur | D48: 27-Jul-2007 | E48: 30814/LC-B/2006 | F48: Urology, Nephrology | G48: 26-Jul-2010 | H48: Aswini Hospital, Near RTC Bus Stand Mangalagiri Road, Guntur | I48: 27-Jul-2007 | J48: 30814/LC-B/2006 | K48: Urology, Nephrology | L48: 26-Jul-2010
B49: 47 | C49: Aswini Netralayam, Guntur Road, Narsaraopeta, Guntur Dist. | D49: 11-Jun-2010 | E49: 12269/LC-B/2010 | F49: Ophthalmology | G49: 10-Jun-2013 | H49: Aswini Netralayam, Guntur Road, Narsaraopeta, Guntur Dist. | I49: 11-Jun-2010 | J49: 12269/LC-B/2010 | K49: Ophthalmology | L49: 10-Jun-2013
B50: 48 | C50: Aswini Super Specialty Dental Hospital, 29-13- 84, Opp. Badri Heritage Apartments, Kaleswararao Road, suryaraopet, Vijayawada | D50: 2010-01-22 | E50: 26005/LC-B/2009 | F50: Dental | G50: 2013-01-21 | H50: Aswini Super Specialty Dental Hospital, 29-13- 84, Opp. Badri Heritage Apartments, Kaleswararao Road, suryaraopet, Vijayawada | I50: 2010-01-22 | J50: 26005/LC-B/2009 | K50: Dental | L50: 2013-01-21
B51: 49 | C51: AVPR Super Specialtiy Dental Hl., 1-1-191, Tahasil Chowrastha, Jagityal, Karimnagar Dist. | D51: 1-Aug-2009 | E51: 45725/LC-B/2008 | F51: Dental | G51: 31-Jul-2012 | H51: AVPR Super Specialtiy Dental Hl., 1-1-191, Tahasil Chowrastha, Jagityal, Karimnagar Dist. | I51: 1-Aug-2009 | J51: 45725/LC-B/2008 | K51: Dental | L51: 31-Jul-2012
B52: 50 | C52: Aware Global Hospitals, 8-16-01, Sowbhagya Nagar, Sagar Road, Lingoliguda, Saroornagar, Hyderabad. | D52: 24-Jul-2009 | E52: 13385/LC-B/2009 | F52: Multi Spescialisation | G52: 23-Jul-2012 | H52: Aware Global Hospitals, 8-16-01, Sowbhagya Nagar, Sagar Road, Lingoliguda, Saroornagar, Hyderabad. | I52: 24-Jul-2009 | J52: 13385/LC-B/2009 | K52: Multi Spescialisation | L52: 23-Jul-2012
B53: 51 | C53: Axon Hospitals, 8-3-215. Srinivasanagar Colony West, Opp. ICICI Bank, S.R.Nagar, Hyderabad | D53: 2009-10-09 | E53: 24364/LC-B/2009 | F53: Anaesthesiology, Cardiology, C.T.Surgery, General Medicine, General Surgery, Neuro Surgery, OBG, Orthopaedics, Urology, Physiotherapy and Dialysis Unit | G53: 2012-10-08 | H53: Axon Hospitals, 8-3-215. Srinivasanagar Colony West, Opp. ICICI Bank, S.R.Nagar, Hyderabad | I53: 2009-10-09 | J53: 24364/LC-B/2009 | K53: Anaesthesiology, Cardiology, C.T.Surgery, General Medicine, General Surgery, Neuro Surgery, OBG, Orthopaedics, Urology, Physiotherapy and Dialysis Unit | L53: 2012-10-08
B54: 52 | C54: Baba Dental Clinic, 2nd Floor, Mediworld, 14- 37-39, Maharanipet, Visakhapatnam | D54: 22-Jul-2006 | E54: 20302/LC-B/2005 | F54: Dental | G54: 21-Jul-2009 | H54: Baba Dental Clinic, 2nd Floor, Mediworld, 14- 37-39, Maharanipet, Visakhapatnam | I54: 22-Jul-2006 | J54: 20302/LC-B/2005 | K54: Dental | L54: 21-Jul-2009
B55: 53 | C55: Balaji Cancer Center, Gowri Shankar Theatre Road, Kothapet, Guntur. | D55: 13-Sep-2007 | E55: 2886/LC.B/2005 | F55: Cancer | G55: 12-Sep-2010 | H55: Balaji Cancer Center, Gowri Shankar Theatre Road, Kothapet, Guntur. | I55: 13-Sep-2007 | J55: 2886/LC.B/2005 | K55: Cancer | L55: 12-Sep-2010
B56: 54 | C56: Balaji Dental Hospital,11-231 , Opp:Girls Jr. College, Sai Nagar, Ananthapur. | D56: 13-May-2009 | E56: 6215/LC.B/2009 | F56: Dental | G56: 12-May-2012 | H56: Balaji Dental Hospital,11-231 , Opp:Girls Jr. College, Sai Nagar, Ananthapur. | I56: 13-May-2009 | J56: 6215/LC.B/2009 | K56: Dental | L56: 12-May-2012
B57: 55 | C57: Balaji Eye Care & Laser Centre, 1st Floor, 6-3- 788/32, Durga Nagar Colony, Opp. Chandana Bros. Ameerpet, Hyderabad | D57: 1-Aug-2009 | E57: 38914/LC-B/2008 | F57: Ophthalmology | G57: 31-Jul-2012 | H57: Balaji Eye Care & Laser Centre, 1st Floor, 6-3- 788/32, Durga Nagar Colony, Opp. Chandana Bros. Ameerpet, Hyderabad | I57: 1-Aug-2009 | J57: 38914/LC-B/2008 | K57: Ophthalmology | L57: 31-Jul-2012
B58: 56 | C58: Balaji Hospital, Opp. Ram Laxman Theater, S.V.N. Road, Warangal | D58: 20-Jun-2008 | E58: 6138/LC.B/2008 | F58: Orthopedics | G58: 19-Jun-2011 | H58: Balaji Hospital, Opp. Ram Laxman Theater, S.V.N. Road, Warangal | I58: 20-Jun-2008 | J58: 6138/LC.B/2008 | K58: Orthopedics | L58: 19-Jun-2011
B59: 57 | C59: Balaji Hospital, Plot No. 34,34/A, N.C.L. South, Pet Basheerabad, Medchal Road, Secunderabad. | D59: 2008-04-25 | E59: 3156/LC.B/2007 | F59: Genl. Medicine, Genl. Surgery, Emergency Medicine, Orthopedics, Pediatrics, OBG., Pulmanology, Cardiology, Urology, Neurology, Neuro Surgery, E.N.T., Gastroenterology, Surgical Gastroenterology, Plastic Surgery, Physiotherapy, Surgical Oncology | G59: 2011-04-24 | H59: Balaji Hospital, Plot No. 34,34/A, N.C.L. South, Pet Basheerabad, Medchal Road, Secunderabad. | I59: 2008-04-25 | J59: 3156/LC.B/2007 | K59: Genl. Medicine, Genl. Surgery, Emergency Medicine, Orthopedics, Pediatrics, OBG., Pulmanology, Cardiology, Urology, Neurology, Neuro Surgery, E.N.T., Gastroenterology, Surgical Gastroenterology, Plastic Surgery, Physiotherapy, Surgical Oncology | L59: 2011-04-24
B60: 58 | C60: Balaji Multi Speciality Hospital, Near RTC Bus Stand Circle, Madanapalli, Chittoor District. | D60: 7-Aug-2010 | E60: 24294/LC-B/2010 | F60: General Medicine, General Surgery, ENT, OBG, Paediatrics and Orthopaedics | G60: 6-Aug-2013 | H60: Balaji Multi Speciality Hospital, Near RTC Bus Stand Circle, Madanapalli, Chittoor District. | I60: 7-Aug-2010 | J60: 24294/LC-B/2010 | K60: General Medicine, General Surgery, ENT, OBG, Paediatrics and Orthopaedics | L60: 6-Aug-2013
B61: 59 | C61: Balaji Orthopaedic & Trauma Hospital, 13-7- 939/4, Tuda Office Road, Tirupathi | D61: 30-Sep-2009 | E61: 24745/LC-b/2009 | F61: Orthopaedics & Traumatology | G61: 29-Sept-2012 | H61: Balaji Orthopaedic & Trauma Hospital, 13-7- 939/4, Tuda Office Road, Tirupathi | I61: 30-Sep-2009 | J61: 24745/LC-b/2009 | K61: Orthopaedics & Traumatology | L61: 29-Sept-2012
B62: 60 | C62: Bharat Dental Care Multi Speciality Dental Hospital, Theatre Road, Tuni, E.G.Dist. | D62: 27-Mar-2010 | E62: 41259/LC-B/2009 | F62: Dental | G62: 26-Mar-2013 | H62: Bharat Dental Care Multi Speciality Dental Hospital, Theatre Road, Tuni, E.G.Dist. | I62: 27-Mar-2010 | J62: 41259/LC-B/2009 | K62: Dental | L62: 26-Mar-2013
B63: 61 | C63: Bharathi Hospitals, Gandhi Nagar, R.S. Road, Y.M. Palli, Kadapa. | D63: 16-Dec-2008 | E63: 23336/LC.B/2007 | F63: Ophthalmology | G63: 15-Dec-2011 | H63: Bharathi Hospitals, Gandhi Nagar, R.S. Road, Y.M. Palli, Kadapa. | I63: 16-Dec-2008 | J63: 23336/LC.B/2007 | K63: Ophthalmology | L63: 15-Dec-2011
B64: 62 | C64: Bhavya Multi Speciality Hospital, Plot NO.65, Road No.5, New Samathapuri Colony, Nagole X Roads, Hyderabad | D64: 3-Jul-2010 | E64: 42403/LC-B/2009 | F64: Ophthalmology ( for Anterior Segment diseases only) | G64: 2-Jul-2013 | H64: Bhavya Multi Speciality Hospital, Plot NO.65, Road No.5, New Samathapuri Colony, Nagole X Roads, Hyderabad | I64: 3-Jul-2010 | J64: 42403/LC-B/2009 | K64: Ophthalmology ( for Anterior Segment diseases only) | L64: 2-Jul-2013
B65: 63 | C65: Bhimavaram Hospital, J.P. Road, Bhimavaram. | D65: 2005-10-24 | E65: 7144/LC-B/2005 | F65: Anaesthesiology, General Medicine, General Surgery, Cardiology, ENT, Nephrology, Neuro Surgery, OBG, Orthopaedics, Paediatrics, Pathology, Radiology, Surgical Gastroenterology, Urology, Physiotherapy and Dialysis Unit | G65: 2011-10-23 | H65: Bhimavaram Hospital, J.P. Road, Bhimavaram. | I65: 2005-10-24 | J65: 7144/LC-B/2005 | K65: Anaesthesiology, General Medicine, General Surgery, Cardiology, ENT, Nephrology, Neuro Surgery, OBG, Orthopaedics, Paediatrics, Pathology, Radiology, Surgical Gastroenterology, Urology, Physiotherapy and Dialysis Unit | L65: 2011-10-23
B66: 64 | C66: Bhuma Super Speciality Dental Hospital, 21/604, Opp. Masjid, 7 Roads Circle, Kadapa | D66: 30-Jul-2010 | E66: 14597/LC-B/2010 | F66: Dental | G66: 29-Jul-2013 | H66: Bhuma Super Speciality Dental Hospital, 21/604, Opp. Masjid, 7 Roads Circle, Kadapa | I66: 30-Jul-2010 | J66: 14597/LC-B/2010 | K66: Dental | L66: 29-Jul-2013
B67: 65 | C67: Bollineni Eye Hospital and Research Center, Dargametta, Nellore. | D67: =I67 -> 10-Aug-2007 | E67: =J67 -> 7789/LC.B/2007 | F67: =K67 -> Ophthalmology | G67: =L67 -> 9-Aug-2010 | H67: Bollineni Eye Hospital and Research Center, Dargametta, Nellore. | I67: 10-Aug-2007 | J67: 7789/LC.B/2007 | K67: Ophthalmology | L67: 9-Aug-2010
B68: 66 | C68: Bollineni Heart Centre Pvt. Ltd. 77-9-37/1, Seelam Nookaraju Complex Street, Rajhmundry, E.G.Dist. | D68: 12-Mar-2010 | E68: 28621/LC-B/2009 | F68: Cardiology, C.T.Surgery, Orthopaedics, Urology and Nephrology | G68: 11-Mar-2013 | H68: Bollineni Heart Centre Pvt. Ltd. 77-9-37/1, Seelam Nookaraju Complex Street, Rajhmundry, E.G.Dist. | I68: 12-Mar-2010 | J68: 28621/LC-B/2009 | K68: Cardiology, C.T.Surgery, Orthopaedics, Urology and Nephrology | L68: 11-Mar-2013
B69: 67 | C69: Bollineni Heart Centre, 46-7-47, Danavaipet, Rajhmundry. | D69: 11-Sep-2006 | E69: 10025/LC-B/2003 | F69: Cardiac | G69: 10-Sep-2009 | H69: Bollineni Heart Centre, 46-7-47, Danavaipet, Rajhmundry. | I69: 11-Sep-2006 | J69: 10025/LC-B/2003 | K69: Cardiac | L69: 10-Sep-2009
B70: 68 | C70: Bollineni Ramanaiah Memorial Hospital Pvt. Ltd., (Dental Department) Ambuja Centre, Durgamitta, Nellore. | D70: 6-Nov-2007 | E70: 7791/LC.B/2007 | F70: Dental | G70: 5-Nov-2010 | H70: Bollineni Ramanaiah Memorial Hospital Pvt. Ltd., (Dental Department) Ambuja Centre, Durgamitta, Nellore. | I70: 6-Nov-2007 | J70: 7791/LC.B/2007 | K70: Dental | L70: 5-Nov-2010
B71: 69 | C71: Bollineni Ramanaiah Memorial Hospital, Ambuja Centre, Durgamitta, Nellore. | D71: 2006-10-16 | E71: 18530/LC-B/2005 | F71: Cardiology, C.T.Surgery, ENT, General Medicine, General Surgery,Nephrology, Neuro Surgery, OBG,Orthopaedics, Paediatrics, Plastic Surgery, Pulmonology, Radiology, Surgical Gastroenterology, Surgical Oncology and Urology | G71: 2012-10-15 | H71: Bollineni Ramanaiah Memorial Hospital, Ambuja Centre, Durgamitta, Nellore. | I71: 2006-10-16 | J71: 18530/LC-B/2005 | K71: Cardiology, C.T.Surgery, ENT, General Medicine, General Surgery,Nephrology, Neuro Surgery, OBG,Orthopaedics, Paediatrics, Plastic Surgery, Pulmonology, Radiology, Surgical Gastroenterology, Surgical Oncology and Urology | L71: 2012-10-15
B72: 70 | C72: Bombay Nursing Home, Hyderabad Road, Nizamabad. | D72: 17-Apr-2008 | E72: 18575/LC.B/2006 | F72: Genl. Surgery, Urology, E.N.T., Orthopedics and Neuro Surgery. | G72: 16-Apr-2011 | H72: Bombay Nursing Home, Hyderabad Road, Nizamabad. | I72: 17-Apr-2008 | J72: 18575/LC.B/2006 | K72: Genl. Surgery, Urology, E.N.T., Orthopedics and Neuro Surgery. | L72: 16-Apr-2011
B73: 71 | C73: C.C. Shoroff Memorial Hospital, Barkatpura, Hyderabad | D73: 2008-05-22 | E73: 7057/LC.B/2005 | F73: General Medicine, General Surgery, Anaesthesiology, E.N.T. Emergency Medicine, Nephrology, Neuro Surgery, O.B.G., Orthopedics, Pediatrics, Pathology, Plastic Surgery, Radiology, Surgical Gastroenterology, Surgical Oncology, Urology, Physiotherapy and Dialysis | G73: 2011-05-21 | H73: C.C. Shoroff Memorial Hospital, Barkatpura, Hyderabad | I73: 2008-05-22 | J73: 7057/LC.B/2005 | K73: General Medicine, General Surgery, Anaesthesiology, E.N.T. Emergency Medicine, Nephrology, Neuro Surgery, O.B.G., Orthopedics, Pediatrics, Pathology, Plastic Surgery, Radiology, Surgical Gastroenterology, Surgical Oncology, Urology, Physiotherapy and Dialysis | L73: 2011-05-21
B74: 72 | C74: C.N. Hospitals, Birla Compound, B-Camp, kurnool. | D74: 2008-04-17 | E74: 25264/LC.B/2007 | F74: Genl. Medicine, Genl. Surgery, Anaesthesiology, E.N.T., Emergency Medicine, Cardiology, Laproscopic Surgery, OBG., Pediatrics, Orthopedics, Plastic Surgery, Pulmanology, Radiology, Surgical Gastroenterology, Urology, Neuro Surgery, and Physiotherapy,. | G74: 2011-04-16 | H74: C.N. Hospitals, Birla Compound, B-Camp, kurnool. | I74: 2008-04-17 | J74: 25264/LC.B/2007 | K74: Genl. Medicine, Genl. Surgery, Anaesthesiology, E.N.T., Emergency Medicine, Cardiology, Laproscopic Surgery, OBG., Pediatrics, Orthopedics, Plastic Surgery, Pulmanology, Radiology, Surgical Gastroenterology, Urology, Neuro Surgery, and Physiotherapy,. | L74: 2011-04-16
B75: 73 | C75: C.S. Reddy Super, Speciality Dental Hospital, 3/271 Dr. Prabhakar Rao, Hospital Complex, Christial Lane , Kadapa. | D75: 7-Jul-2009 | E75: 6112/LC-B/2009 | F75: Dental | G75: 6-Jul-2012 | H75: C.S. Reddy Super, Speciality Dental Hospital, 3/271 Dr. Prabhakar Rao, Hospital Complex, Christial Lane , Kadapa. | I75: 7-Jul-2009 | J75: 6112/LC-B/2009 | K75: Dental | L75: 6-Jul-2012
B76: 74 | C76: Care Dental Specialities Hospital, 40/353-C, Gandhi Nagar, Kurnool | D76: 30-Jul-2010 | E76: 6153/LC-B/2010 | F76: Dental | G76: 29-Jul-2013 | H76: Care Dental Specialities Hospital, 40/353-C, Gandhi Nagar, Kurnool | I76: 30-Jul-2010 | J76: 6153/LC-B/2010 | K76: Dental | L76: 29-Jul-2013
B77: 75 | C77: Care Hospital (A unit of Quality care India Ltd), Banjara Hills, Hyderabad. | D77: 2006-01-03 | E77: 17353/LC-B/2005 | F77: Multi | G77: 2012-01-02 | H77: Care Hospital (A unit of Quality care India Ltd), Banjara Hills, Hyderabad. | I77: 2006-01-03 | J77: 17353/LC-B/2005 | K77: Multi | L77: 2012-01-02
B78: 76 | C78: Care Hospital (Quality Care Inida Limited) Exhibition Road, Nampally, Hyderabad. | D78: 2006-02-23 | E78: 25630/LC-B/2005 | F78: Multi | G78: 2012-02-22 | H78: Care Hospital (Quality Care Inida Limited) Exhibition Road, Nampally, Hyderabad. | I78: 2006-02-23 | J78: 25630/LC-B/2005 | K78: Multi | L78: 2012-02-22
B79: 77 | C79: Care Hospital, Waltair Main Road, Visakhapatnam | D79: 2006-05-06 | E79: 6808/LC.B/2006 | F79: Anaesthesiology, General Medicine, General Surgery, Cardiology, Orthopaedics, C.T.Surgery, ENT, Emergency Medicine, Nephrology, Neuro Surgery, OBG, Paediatrics, Pathology, Plastic Surgery, Pulmolology, Radiology, Surgical Gastroenterology, Oncology and Dialysis Unit | G79: 2012-05-05 | H79: Care Hospital, Waltair Main Road, Visakhapatnam | I79: 2006-05-06 | J79: 6808/LC.B/2006 | K79: Anaesthesiology, General Medicine, General Surgery, Cardiology, Orthopaedics, C.T.Surgery, ENT, Emergency Medicine, Nephrology, Neuro Surgery, OBG, Paediatrics, Pathology, Plastic Surgery, Pulmolology, Radiology, Surgical Gastroenterology, Oncology and Dialysis Unit | L79: 2012-05-05
B80: 78 | C80: Care Super Specialty Dental Hospital Pvt. Ltd, Juvvalapalem Road, Bhimavaram. | D80: 20-Mar-2009 | E80: 20461/LC.B.2008 | F80: Dental | G80: 19-Mar-2012 | H80: Care Super Specialty Dental Hospital Pvt. Ltd, Juvvalapalem Road, Bhimavaram. | I80: 20-Mar-2009 | J80: 20461/LC.B.2008 | K80: Dental | L80: 19-Mar-2012
B81: 79 | C81: Care Super Specialty Hospital, 16-11/72, Pogathota, Nellore. | D81: 8-Sep-2008 | E81: 20552/LC.B/2007 | F81: Dental | G81: 7-Sep-2011 | H81: Care Super Specialty Hospital, 16-11/72, Pogathota, Nellore. | I81: 8-Sep-2008 | J81: 20552/LC.B/2007 | K81: Dental | L81: 7-Sep-2011
B82: 80 | C82: Chaitanya Dental Hospital, 1-1-230/33 Jyothi Bhavan, Chikkadpally, Hyderabad. | D82: 11-May-2007 | E82: 16635/LC.B/2006 | F82: Dental | G82: 10-May-2010 | H82: Chaitanya Dental Hospital, 1-1-230/33 Jyothi Bhavan, Chikkadpally, Hyderabad. | I82: 11-May-2007 | J82: 16635/LC.B/2006 | K82: Dental | L82: 10-May-2010
B83: 81 | C83: Chaitanya Eye Hospital, Tikkili Road, Near Siddhartha Arts College, Mogalrajpuram, Vijayawada. | D83: 15-Sep-2008 | E83: 28736/LC.B/2006 | F83: Opthalomology | G83: 14-Sep-2011 | H83: Chaitanya Eye Hospital, Tikkili Road, Near Siddhartha Arts College, Mogalrajpuram, Vijayawada. | I83: 15-Sep-2008 | J83: 28736/LC.B/2006 | K83: Opthalomology | L83: 14-Sep-2011
B84: 82 | C84: Chaitanya Hospital, Near By-Pass, Anjaiah Road, Ongole, Prakasam Dist. | D84: 30-Jul-2010 | E84: 5816/LC-B/2010 | F84: General Medicine, General Surgery, Anaesthesiology, OBG, Orthopaedics and Paediatrics | G84: 29-Jul-2013 | H84: Chaitanya Hospital, Near By-Pass, Anjaiah Road, Ongole, Prakasam Dist. | I84: 30-Jul-2010 | J84: 5816/LC-B/2010 | K84: General Medicine, General Surgery, Anaesthesiology, OBG, Orthopaedics and Paediatrics | L84: 29-Jul-2013
B85: 83 | C85: Challa Eye Care Centre, Plot No. 8-2-268/R/9- P, Sagar Society Main Road, Road No.2, Banjara Hills, Hyderabad | D85: 2-Jul-2010 | E85: 46229/LC-B/2009 | F85: Ophthalmology ( for Anterior Segment diseases only ) | G85: 1-Jul-2013 | H85: Challa Eye Care Centre, Plot No. 8-2-268/R/9- P, Sagar Society Main Road, Road No.2, Banjara Hills, Hyderabad | I85: 2-Jul-2010 | J85: 46229/LC-B/2009 | K85: Ophthalmology ( for Anterior Segment diseases only ) | L85: 1-Jul-2013
B86: 84 | C86: Challa Hospital, 7-1-71/A/1, Dharam Karan Road, Ameerpet, Hyderabad. | D86: 2007-01-06 | E86: 1806/LC-B/2006 | F86: Anesthesiology, Cardiology, ENT, General Medicine, General Surgery, Nephrology, Neuro Surgery, Plastic Surgery, Obstt & Gynecology, Orthopaedics, Pediatrics, Urology, Emergency Medicine, Pathology, Pulmonology, Radiology and Oncology | G86: 2010-01-05 | H86: Challa Hospital, 7-1-71/A/1, Dharam Karan Road, Ameerpet, Hyderabad. | I86: 2007-01-06 | J86: 1806/LC-B/2006 | K86: Anesthesiology, Cardiology, ENT, General Medicine, General Surgery, Nephrology, Neuro Surgery, Plastic Surgery, Obstt & Gynecology, Orthopaedics, Pediatrics, Urology, Emergency Medicine, Pathology, Pulmonology, Radiology and Oncology | L86: 2010-01-05
B87: 85 | C87: Chandamama Children's Hospital, Sundaraiah Bhavan Road, Ongole, Prakasam Dist. | D87: 16-Apr-2010 | E87: 43601/LC-B/2009 | F87: Paediatrics | G87: 2013-04-15 | H87: Chandamama Children's Hospital, Sundaraiah Bhavan Road, Ongole, Prakasam Dist. | I87: 16-Apr-2010 | J87: 43601/LC-B/2009 | K87: Paediatrics | L87: 2013-04-15
B88: 86 | C88: Charitasri Hospitals Ltd., 29-6-8/1, Ramachandra Rao Road, Suryaraopet, Vijayawada - 520002. | D88: 2006-11-10 | E88: 8806/LC-B/2006 | F88: Anaesthesiology, General Medicine, General Surgery, ENT, Emergency Medicine, Cardiology, OBG, Nephrology, Neuro Surgery, Orthopaedics, Paediatrics, Pathology, Plastic Surgery, Pulmonology, Radiology, Surgical Gastroenterology, Surgical Oncology, Urology, PHysiotherapy and Dialysis | G88: 2012-11-09 | H88: Charitasri Hospitals Ltd., 29-6-8/1, Ramachandra Rao Road, Suryaraopet, Vijayawada - 520002. | I88: 2006-11-10 | J88: 8806/LC-B/2006 | K88: Anaesthesiology, General Medicine, General Surgery, ENT, Emergency Medicine, Cardiology, OBG, Nephrology, Neuro Surgery, Orthopaedics, Paediatrics, Pathology, Plastic Surgery, Pulmonology, Radiology, Surgical Gastroenterology, Surgical Oncology, Urology, PHysiotherapy and Dialysis | L88: 2012-11-09
B89: 87 | C89: Chelmada Ananda Rao Institute of Medical Sciences, Karimnagar | D89: 2008-08-14 | E89: 10750/LC.B/2005 | F89: Genl. Medicine, Genl. Surgery, Anaesthesiology, Neuro Surgery, Orthopedics, Pulmanology, Physio Therapy, Pediatrics,.ENT., and OBG. | G89: 2011-08-13 | H89: Chelmada Ananda Rao Institute of Medical Sciences, Karimnagar | I89: 2008-08-14 | J89: 10750/LC.B/2005 | K89: Genl. Medicine, Genl. Surgery, Anaesthesiology, Neuro Surgery, Orthopedics, Pulmanology, Physio Therapy, Pediatrics,.ENT., and OBG. | L89: 2011-08-13
B90: 88 | C90: Citi Orthopaedic Centre, H.No. 32-6-18A, Sikha Mani Centre, Prajasaktinagar, Vijayawada | D90: 08-Dec-2009 | E90: 35503/LC-B/2009 | F90: Orthopaedics & Trauma Care | G90: 07-Dec-2012 | H90: Citi Orthopaedic Centre, H.No. 32-6-18A, Sikha Mani Centre, Prajasaktinagar, Vijayawada | I90: 08-Dec-2009 | J90: 35503/LC-B/2009 | K90: Orthopaedics & Trauma Care | L90: 07-Dec-2012
B91: 89 | C91: City Cancer Center, 33-25-33, Ch. Venkata Krishnaiah Street, Suryaraopet, Vijayawada. | D91: 13-Sep-2007 | E91: 13647/LC.B/2006 | F91: Cancer | G91: 12-Sep-2010 | H91: City Cancer Center, 33-25-33, Ch. Venkata Krishnaiah Street, Suryaraopet, Vijayawada. | I91: 13-Sep-2007 | J91: 13647/LC.B/2006 | K91: Cancer | L91: 12-Sep-2010
B92: 90 | C92: City Super Speciality Dental Hospital, Shobha Pavani Complex, 1 st Floor, Vidya Nagar, Hyderabad. | D92: 2006-09-11 | E92: 14464/LC-B/2006 | F92: Dental | G92: 2012-09-10 | H92: City Super Speciality Dental Hospital, Shobha Pavani Complex, 1 st Floor, Vidya Nagar, Hyderabad. | I92: 2006-09-11 | J92: 14464/LC-B/2006 | K92: Dental | L92: 2012-09-10
B93: 91 | C93: Clear Vision Eye Hospital, 3-6-272, Opp. Telugu Academy, Himayatnagar, Hyd. | D93: 17-Apr-2008 | E93: 11154/LC.B/2006 | F93: Ophthalmology | G93: 16-Apr-2011 | H93: Clear Vision Eye Hospital, 3-6-272, Opp. Telugu Academy, Himayatnagar, Hyd. | I93: 17-Apr-2008 | J93: 11154/LC.B/2006 | K93: Ophthalmology | L93: 16-Apr-2011
B94: 92 | C94: Curie City Cancer Hospital, Padavalarevu, Gunadala, Vijayawada | D94: 22-Jan-2010 | E94: 36997/LC-B/2009 | F94: Cancer | G94: 21-Jan-2013 | H94: Curie City Cancer Hospital, Padavalarevu, Gunadala, Vijayawada | I94: 22-Jan-2010 | J94: 36997/LC-B/2009 | K94: Cancer | L94: 21-Jan-2013
B95: 93 | C95: D.B.R. & S.K. Super Specilaity Hospital, 18-1- 505, Mask Road, Opp: V.V.Mahal, Tirupathi | D95: 25-May-2009 | E95: 36385/LC.B/2006 | F95: Gen. Med. Gen. Surgery, Surgical Gastroenterology, Nephrology and OBG | G95: 24-May-2012 | H95: D.B.R. & S.K. Super Specilaity Hospital, 18-1- 505, Mask Road, Opp: V.V.Mahal, Tirupathi | I95: 25-May-2009 | J95: 36385/LC.B/2006 | K95: Gen. Med. Gen. Surgery, Surgical Gastroenterology, Nephrology and OBG | L95: 24-May-2012
B96: 94 | C96: D.B.R. Dental Hospital, H. No. 6-2-122/1, Behind Z.P. Khammam. | D96: 23-Apr-2008 | E96: 36519/LC.B/2007 | F96: Dental | G96: 22-Apr-2011 | H96: D.B.R. Dental Hospital, H. No. 6-2-122/1, Behind Z.P. Khammam. | I96: 23-Apr-2008 | J96: 36519/LC.B/2007 | K96: Dental | L96: 22-Apr-2011
B97: 95 | C97: D.V.Raju Eye Hospital, P.R.College Road, Kakinada, East Godavary Dist. | D97: 11-Jun-2010 | E97: 4826/LC-B/2010 | F97: Ophthalmology | G97: 10-Jun-2013 | H97: D.V.Raju Eye Hospital, P.R.College Road, Kakinada, East Godavary Dist. | I97: 11-Jun-2010 | J97: 4826/LC-B/2010 | K97: Ophthalmology | L97: 10-Jun-2013
B98: 96 | C98: Dental Venue Multi Speciality Hospital, F-14, First Floor, Deepthi Apartments, S.P. Road, Secunderabad. | D98: 22-Jul-2006 | E98: 7302/LC-B/2005 | F98: Dental | G98: 21-Jul-2009 | H98: Dental Venue Multi Speciality Hospital, F-14, First Floor, Deepthi Apartments, S.P. Road, Secunderabad. | I98: 22-Jul-2006 | J98: 7302/LC-B/2005 | K98: Dental | L98: 21-Jul-2009
B99: 97 | C99: Dentnova Denal Hospital, 1st floor, Taj Complex, Nampally, Hyderabad. | D99: 2-May-2009 | E99: 21360/LC.B/2006 | F99: Dental | G99: 1-May-2012 | H99: Dentnova Denal Hospital, 1st floor, Taj Complex, Nampally, Hyderabad. | I99: 2-May-2009 | J99: 21360/LC.B/2006 | K99: Dental | L99: 1-May-2012
B100: 98 | C100: Dentocare Super speciailty Dental Hospital, 12-2-962, Opp: Baby Hospital, 2nd cross, Sai Nagar, Ananthapur. | D100: 25-May-2009 | E100: 447/LC.B/2009 | F100: Dental | G100: 24-May-2012 | H100: Dentocare Super speciailty Dental Hospital, 12-2-962, Opp: Baby Hospital, 2nd cross, Sai Nagar, Ananthapur. | I100: 25-May-2009 | J100: 447/LC.B/2009 | K100: Dental | L100: 24-May-2012
B101: 99 | C101: Denty's (A unit of Today's Health Care India Pvt. Ltd.) 60-1-7/1, Siddhartha Nagar, Vijayawada | D101: 29-Jul-2010 | E101: 1763/LC-B/2010 | F101: Dental | G101: 28-Jul-2013 | H101: Denty's (A unit of Today's Health Care India Pvt. Ltd.) 60-1-7/1, Siddhartha Nagar, Vijayawada | I101: 29-Jul-2010 | J101: 1763/LC-B/2010 | K101: Dental | L101: 28-Jul-2013
B102: 100 | C102: Devishetty Super Speciality Hospital, Civil Hospital Road, Karimnagar | D102: 24-Oct-2009 | E102: 10873/LC-B/2008 | F102: General Medicine, General Surgery, Orthopaedics, Paediatrics, ENT, Neuro Surgery and Pulmonology | G102: 23-Oct-2012 | H102: Devishetty Super Speciality Hospital, Civil Hospital Road, Karimnagar | I102: 24-Oct-2009 | J102: 10873/LC-B/2008 | K102: General Medicine, General Surgery, Orthopaedics, Paediatrics, ENT, Neuro Surgery and Pulmonology | L102: 23-Oct-2012
B103: 101 | C103: Diacon Diabetes Specialty Centre & Diagnostics, VV's Vintage Boulavard, 1st Floor, H.No. 6-3-1093, Rajbhavan Road, Somajiguda, Hyderabad. | D103: 2006-12-29 | E103: 1801/LC-B/2006 | F103: Diabetes | G103: 2009-12-28 | H103: Diacon Diabetes Specialty Centre & Diagnostics, VV's Vintage Boulavard, 1st Floor, H.No. 6-3-1093, Rajbhavan Road, Somajiguda, Hyderabad. | I103: 2006-12-29 | J103: 1801/LC-B/2006 | K103: Diabetes | L103: 2009-12-28
B104: 102 | C104: Dilsuknagar Super Speciality Dental Hospital, Sirigiri Complex, Dilsulknagar, Hyderabad. | D104: 2007-05-11 | E104: 22432/LC.B/2006 | F104: Dental | G104: 2013-05-10 | H104: Dilsuknagar Super Speciality Dental Hospital, Sirigiri Complex, Dilsulknagar, Hyderabad. | I104: 2007-05-11 | J104: 22432/LC.B/2006 | K104: Dental | L104: 2013-05-10
B105: 103 | C105: DNR Advanced Dental Hospital, 16-2-149, Pogathota, Nellore | D105: 1-Aug-2009 | E105: 10163/LC-B/2008 | F105: Dental | G105: 31-Jul-2012 | H105: DNR Advanced Dental Hospital, 16-2-149, Pogathota, Nellore | I105: 1-Aug-2009 | J105: 10163/LC-B/2008 | K105: Dental | L105: 31-Jul-2012
B106: 104 | C106: Dr. Akbar Eye Hospital and Laser Center, 12- 3-234, 6th Lane, Srinagar, Ananthapur | D106: 12-Dec-2008 | E106: 17658/LC.B/2007 | F106: Ophthalmology | G106: 11-Dec-2011 | H106: Dr. Akbar Eye Hospital and Laser Center, 12- 3-234, 6th Lane, Srinagar, Ananthapur | I106: 12-Dec-2008 | J106: 17658/LC.B/2007 | K106: Ophthalmology | L106: 11-Dec-2011
B107: 105 | C107: Dr. Anji Reddy Multi Specialty Hospital Pvt. Ltd., 16-687, Main Road, Piduguralla, Guntur. | D107: 2008-11-14 | E107: 36349/LC.B/2008 | F107: Genl. Medicine, Genl. Surgery, OBG., Orthopedics, Gastro Enterology, Surgical Gastroentorology. | G107: 2011-11-13 | H107: Dr. Anji Reddy Multi Specialty Hospital Pvt. Ltd., 16-687, Main Road, Piduguralla, Guntur. | I107: 2008-11-14 | J107: 36349/LC.B/2008 | K107: Genl. Medicine, Genl. Surgery, OBG., Orthopedics, Gastro Enterology, Surgical Gastroentorology. | L107: 2011-11-13
B108: 106 | C108: Dr. Gowds Dental Hospitals, #19, Durga Enclave, Road No.12, Banjara Hills, Hyderabad | D108: 2006-05-06 | E108: 19509/LC.B/2005 | F108: Dental | G108: 2012-05-05 | H108: Dr. Gowds Dental Hospitals, #19, Durga Enclave, Road No.12, Banjara Hills, Hyderabad | I108: 2006-05-06 | J108: 19509/LC.B/2005 | K108: Dental | L108: 2012-05-05
B109: 107 | C109: Dr. J.S.R. Dental Health Speciality, 1-128, Surya Towers, Bhavani Nagar, Malkajgiri, Hyderabad. | D109: 2006-09-11 | E109: 14467/LC-B/2006 | F109: Dental | G109: 2012-09-10 | H109: Dr. J.S.R. Dental Health Speciality, 1-128, Surya Towers, Bhavani Nagar, Malkajgiri, Hyderabad. | I109: 2006-09-11 | J109: 14467/LC-B/2006 | K109: Dental | L109: 2012-09-10
B110: 108 | C110: Dr. Konda Reddy Dental Hospital, 16/749, Shankara Agraharam, Nellore. | D110: 8-Sep-2008 | E110: 18657/LC.B/2007 | F110: Dental | G110: 8-Sep-2011 | H110: Dr. Konda Reddy Dental Hospital, 16/749, Shankara Agraharam, Nellore. | I110: 8-Sep-2008 | J110: 18657/LC.B/2007 | K110: Dental | L110: 8-Sep-2011
B111: 109 | C111: Dr. Kotareddy Hospital, Main Road, Kandukur, Prakasam Dist. | D111: 23-Dec-2009 | E111: 33987/LC-B/2006 | F111: General Medicine, General Surgery, OBG and Orthopaedics | G111: 22-Dec-2012 | H111: Dr. Kotareddy Hospital, Main Road, Kandukur, Prakasam Dist. | I111: 23-Dec-2009 | J111: 33987/LC-B/2006 | K111: General Medicine, General Surgery, OBG and Orthopaedics | L111: 22-Dec-2012
B112: 110 | C112: Dr. Lakshman's Institute of Orthopedics, C.V.R.N. Road, Karimnagar. | D112: 2009-03-21 | E112: 13336/LC.B/2007 | F112: Orthopedics, Surgical Gastro Enterology, Plastic Surgery, OBG., Urology, Neuro Surgery, Genl. Surgery and Anaesthesiology. | G112: 2012-03-20 | H112: Dr. Lakshman's Institute of Orthopedics, C.V.R.N. Road, Karimnagar. | I112: 2009-03-21 | J112: 13336/LC.B/2007 | K112: Orthopedics, Surgical Gastro Enterology, Plastic Surgery, OBG., Urology, Neuro Surgery, Genl. Surgery and Anaesthesiology. | L112: 2012-03-20
B113: 111 | C113: Dr. Malik Speciality Dental Cosmotic & Surgery Centre, R.P.Road, Secunderabad | D113: 22-Jan-2010 | E113: 26201/LC-B/2009 | F113: Dental | G113: 21-Jan-2013 | H113: Dr. Malik Speciality Dental Cosmotic & Surgery Centre, R.P.Road, Secunderabad | I113: 22-Jan-2010 | J113: 26201/LC-B/2009 | K113: Dental | L113: 21-Jan-2013
B114: 112 | C114: Dr. PJR Super Speciality Dental Hospital, 8-3- 318/6B/7, Engineers Colony, Yousufguda Main Road, Hyderabad | D114: 29-Jul-2010 | E114: 49039/LC-B/2010 | F114: Dental | G114: 28-Jul-2013 | H114: Dr. PJR Super Speciality Dental Hospital, 8-3- 318/6B/7, Engineers Colony, Yousufguda Main Road, Hyderabad | I114: 29-Jul-2010 | J114: 49039/LC-B/2010 | K114: Dental | L114: 28-Jul-2013
B115: 113 | C115: Dr. Prasad's Multi Specialty Dental Hospital, Banjara Hills, Hyderabad. | D115: 17-Apr-2008 | E115: 2838/LC.B/2006 | F115: Dental | G115: 16-Apr-2011 | H115: Dr. Prasad's Multi Specialty Dental Hospital, Banjara Hills, Hyderabad. | I115: 17-Apr-2008 | J115: 2838/LC.B/2006 | K115: Dental | L115: 16-Apr-2011
B116: 114 | C116: Dr. Ramayya's Urology, Nephrology Institute & Hospital Pvt. Ltd. Adg. New MLA Quarters, Basheerbagh, Hyderabad. | D116: 24-Jul-2009 | E116: 10429/LC-B/2009 | F116: Multi Spescialisation | G116: 23-Jul-2012 | H116: Dr. Ramayya's Urology, Nephrology Institute & Hospital Pvt. Ltd. Adg. New MLA Quarters, Basheerbagh, Hyderabad. | I116: 24-Jul-2009 | J116: 10429/LC-B/2009 | K116: Multi Spescialisation | L116: 23-Jul-2012
B117: 115 | C117: Dr. Sridhar International Dental Hospital & Research Center, Eluru Road, Vijayawada. | D117: 2006-09-24 | E117: 25802/LC-B/2003 | F117: Dental | G117: 2012-09-23 | H117: Dr. Sridhar International Dental Hospital & Research Center, Eluru Road, Vijayawada. | I117: 2006-09-24 | J117: 25802/LC-B/2003 | K117: Dental | L117: 2012-09-23
B118: 116 | C118: Dr. Vivekananda Reddy's Dental Hospital Multi Specialty and Inplant Center, Dilsukhnagar, Hyderabad. | D118: 18-Apr-2008 | E118: 23977/LC.B/2007 | F118: Dental | G118: 17-Apr-2011 | H118: Dr. Vivekananda Reddy's Dental Hospital Multi Specialty and Inplant Center, Dilsukhnagar, Hyderabad. | I118: 18-Apr-2008 | J118: 23977/LC.B/2007 | K118: Dental | L118: 17-Apr-2011
B119: 117 | C119: Dr.Bhoom Reddy's Hospital, Civil Hospital Raod, Karimnagar. | D119: 2008-12-16 | E119: 2509/LC.B/2008 | F119: Genl. Medicine,Genl. Surgery, OBG., Anaesthesiology, Orthopedics, Neuro Surgery, Plastic Surgery, Surgical Oncology, Pediatrics and Urology. | G119: 2011-12-15 | H119: Dr.Bhoom Reddy's Hospital, Civil Hospital Raod, Karimnagar. | I119: 2008-12-16 | J119: 2509/LC.B/2008 | K119: Genl. Medicine,Genl. Surgery, OBG., Anaesthesiology, Orthopedics, Neuro Surgery, Plastic Surgery, Surgical Oncology, Pediatrics and Urology. | L119: 2011-12-15
B120: 118 | C120: Dr.Ramesh Cardiac & Multi Speciality Hospital Ltd., (City Cardiac Research Center Ltd) Ring Road, Near ITI College, Vijyawada - 520008. | D120: 2006-06-27 | E120: 18536/LC-B/2005 | F120: Cardiology, C.T.Surgery, General Medicine, General Surgery and Nephrology | G120: 2012-06-26 | H120: Dr.Ramesh Cardiac & Multi Speciality Hospital Ltd., (City Cardiac Research Center Ltd) Ring Road, Near ITI College, Vijyawada - 520008. | I120: 2006-06-27 | J120: 18536/LC-B/2005 | K120: Cardiology, C.T.Surgery, General Medicine, General Surgery and Nephrology | L120: 2012-06-26
B121: 119 | C121: Dr.Sreeedhar's Kidney & Multi Speciality Hospital, 13-6-437/I/L/I, Near Al-Quaba Masjid, Khadesrbagh, Nanal Nagar 'X' Road, Mehidipatnam, Hyderabad | D121: 2010-04-24 | E121: 33874/LC-B/2009 | F121: Urology | G121: 2013-04-23 | H121: Dr.Sreeedhar's Kidney & Multi Speciality Hospital, 13-6-437/I/L/I, Near Al-Quaba Masjid, Khadesrbagh, Nanal Nagar 'X' Road, Mehidipatnam, Hyderabad | I121: 2010-04-24 | J121: 33874/LC-B/2009 | K121: Urology | L121: 2013-04-23
B122: 120 | C122: Drishti Eye Care, Flat No.114-A, Lane Opp: SBI, Srinagar Colony Main Road, Hyderabad. | D122: 25-May-2009 | E122: 36843/LC.B/2008 | F122: Ophthalmology | G122: 24-May-2012 | H122: Drishti Eye Care, Flat No.114-A, Lane Opp: SBI, Srinagar Colony Main Road, Hyderabad. | I122: 25-May-2009 | J122: 36843/LC.B/2008 | K122: Ophthalmology | L122: 24-May-2012
B123: 121 | C123: Durga Nursing Home, 20-6-138(2), Anjaiah Road, Ongole, Prakasam Dist. | D123: 30-Jul-2010 | E123: 14901/LC-B/2010 | F123: Ophthalmology | G123: 29-Jul-2013 | H123: Durga Nursing Home, 20-6-138(2), Anjaiah Road, Ongole, Prakasam Dist. | I123: 30-Jul-2010 | J123: 14901/LC-B/2010 | K123: Ophthalmology | L123: 29-Jul-2013
B124: 122 | C124: Durga Nursing Home, 20-6-138(2), Anjaiah Road, Ongole, Prakasam Dist. | D124: 30-Jul-2010 | E124: 15501/LC-B/2010 | F124: General Medicine, General Surgery, OBG and Paediatrics | G124: 29-Jul-2013 | H124: Durga Nursing Home, 20-6-138(2), Anjaiah Road, Ongole, Prakasam Dist. | I124: 30-Jul-2010 | J124: 15501/LC-B/2010 | K124: General Medicine, General Surgery, OBG and Paediatrics | L124: 29-Jul-2013
B125: 123 | C125: Durgabai Deshmukh Hospital & Research Centre, University Road, Vidyanagar, Hyderabad | D125: 2009-10-24 | E125: 11779/LC-B/2009 | F125: Anaesthesiology, General Medicine, General Surgery, ENT, OBG, Orthopaedics, Paediatrics, Radiology, Pathology, Physiotherapy, Cardiology, C.T.Surgery, Surgical Gastroenterology, Neuro Surgery, Surgical Oncology, Plastic Surgery, Urology and Nephrology | G125: 2012-10-23 | H125: Durgabai Deshmukh Hospital & Research Centre, University Road, Vidyanagar, Hyderabad | I125: 2009-10-24 | J125: 11779/LC-B/2009 | K125: Anaesthesiology, General Medicine, General Surgery, ENT, OBG, Orthopaedics, Paediatrics, Radiology, Pathology, Physiotherapy, Cardiology, C.T.Surgery, Surgical Gastroenterology, Neuro Surgery, Surgical Oncology, Plastic Surgery, Urology and Nephrology | L125: 2012-10-23
B126: 124 | C126: E.N.T. Nursing Home, Bhagathsingh Statu Center, Kothapet, Guntur | D126: 10-Aug-2007 | E126: 4929/LC.B/2007 | F126: E.N.T. | G126: 9-Aug-2010 | H126: E.N.T. Nursing Home, Bhagathsingh Statu Center, Kothapet, Guntur | I126: 10-Aug-2007 | J126: 4929/LC.B/2007 | K126: E.N.T. | L126: 9-Aug-2010
B127: 125 | C127: Eshwar Super Speciality Dental Hospital, 50- 726-6 B, Kurnool | D127: 29-Jul-2010 | E127: 6151/LC-B/2010 | F127: Dental | G127: 28-Jul-2013 | H127: Eshwar Super Speciality Dental Hospital, 50- 726-6 B, Kurnool | I127: 29-Jul-2010 | J127: 6151/LC-B/2010 | K127: Dental | L127: 28-Jul-2013
B128: 126 | C128: FMS Dental Hospital, Aiyangar Plaza, Bank Street, Koti, Hyderbad | D128: 2006-06-09 | E128: 20712/LC.B/2005 | F128: Dental | G128: 2012-06-08 | H128: FMS Dental Hospital, Aiyangar Plaza, Bank Street, Koti, Hyderbad | I128: 2006-06-09 | J128: 20712/LC.B/2005 | K128: Dental | L128: 2012-06-08
B129: 127 | C129: Frontier Lifeline Pvt. Ltd., R-30-C, Ambattur Industrial 17514Estate Road, Mogappair, Chennai | D129: 13-Apr-2007 | E129: 1809/LC.B/2006 | F129: Cardiology, Cardio thoracic surgery | G129: 12-Apr-2010 | H129: Frontier Lifeline Pvt. Ltd., R-30-C, Ambattur Industrial 17514Estate Road, Mogappair, Chennai | I129: 13-Apr-2007 | J129: 1809/LC.B/2006 | K129: Cardiology, Cardio thoracic surgery | L129: 12-Apr-2010
B130: 128 | C130: G.K.Multi Speciality Hospital, 6-1-1, Chintkuntwada, Nirmal, Adilabad District. | D130: 7-Aug-2010 | E130: 19305/LC-B/2010 | F130: Dental | G130: 6-Aug-2013 | H130: G.K.Multi Speciality Hospital, 6-1-1, Chintkuntwada, Nirmal, Adilabad District. | I130: 7-Aug-2010 | J130: 19305/LC-B/2010 | K130: Dental | L130: 6-Aug-2013
B131: 129 | C131: G.R.Hospital, 4-8-114, Opp. Hanamkonda Police Station, Kumarpalli, Hanamkonda, Warangal | D131: =I131 -> 27-Nov-2009 | E131: =J131 -> 22428/LC-B/2009 | F131: =K131 -> General Surgery | G131: =L131 -> 26-Nov-2012 | H131: G.R.Hospital, 4-8-114, Opp. Hanamkonda Police Station, Kumarpalli, Hanamkonda, Warangal | I131: 27-Nov-2009 | J131: 22428/LC-B/2009 | K131: General Surgery | L131: 26-Nov-2012
B132: 130 | C132: Gadam Multi Speciality Dental Hospital & Implant Centre, 1st floor, Redman Plaza, 2nd Line Dwarakanagar, Visakhapatnam | D132: 22-Jan-2010 | E132: 36770/LC-B/2009 | F132: Dental | G132: 21-Jan-2013 | H132: Gadam Multi Speciality Dental Hospital & Implant Centre, 1st floor, Redman Plaza, 2nd Line Dwarakanagar, Visakhapatnam | I132: 22-Jan-2010 | J132: 36770/LC-B/2009 | K132: Dental | L132: 21-Jan-2013
B133: 131 | C133: Geetha Mullapudi International Hi-technology Dental Hospital, 1st floor, Sri Challa Apparao Municipal Complex, Near Kotipalli Bus Stand, Rajahmundry, E..G.Dist. | D133: 2009-12-08 | E133: 23538/LC-B/2009 | F133: Dental | G133: 2012-12-07 | H133: Geetha Mullapudi International Hi-technology Dental Hospital, 1st floor, Sri Challa Apparao Municipal Complex, Near Kotipalli Bus Stand, Rajahmundry, E..G.Dist. | I133: 2009-12-08 | J133: 23538/LC-B/2009 | K133: Dental | L133: 2012-12-07
B134: 132 | C134: Geetha Mutli Speciality Hospital, Seceunderabad. | D134: 2006-01-03 | E134: 29526/LC-B/2005 | F134: Multi | G134: 2012-01-02 | H134: Geetha Mutli Speciality Hospital, Seceunderabad. | I134: 2006-01-03 | J134: 29526/LC-B/2005 | K134: Multi | L134: 2012-01-02
B135: 133 | C135: Giridhar ENT Hospital & Laser Centre Ch. Durgaiah Street, Suryaraopet, Vijayawada | D135: 27-Mar-2010 | E135: 48824/LC-B/2009 | F135: ENT | G135: 26-Mar-2013 | H135: Giridhar ENT Hospital & Laser Centre Ch. Durgaiah Street, Suryaraopet, Vijayawada | I135: 27-Mar-2010 | J135: 48824/LC-B/2009 | K135: ENT | L135: 26-Mar-2013
B136: 134 | C136: Global Dental Hospital, Vajra Residency, Ground Floor, Musheerabad, Hyderabad. | D136: 23-Oct-2008 | E136: 46821/LC.B/2007 | F136: Dental | G136: 22-Oct-2011 | H136: Global Dental Hospital, Vajra Residency, Ground Floor, Musheerabad, Hyderabad. | I136: 23-Oct-2008 | J136: 46821/LC.B/2007 | K136: Dental | L136: 22-Oct-2011
B137: 135 | C137: Global Hospitals, 6-1-1070/1 to 4, Lakadi-Ka- Pool, Hyderabad | D137: 2006-03-25 | E137: 18543/LC-B/2005 | F137: Multi | G137: 2012-03-24 | H137: Global Hospitals, 6-1-1070/1 to 4, Lakadi-Ka- Pool, Hyderabad | I137: 2006-03-25 | J137: 18543/LC-B/2005 | K137: Multi | L137: 2012-03-24
B138: 136 | C138: Global Hospitals, Banjara Hills, Hyderabad | D138: 3-Feb-2006 | E138: 20746/LC-B/2005 | F138: Multi | G138: 2009-02-02 | H138: Global Hospitals, Banjara Hills, Hyderabad | I138: 3-Feb-2006 | J138: 20746/LC-B/2005 | K138: Multi | L138: 2009-02-02
B139: 137 | C139: Global Multi Speciality Hospital, 27-39-1, MG Road, Vijayawada - 520 002 | D139: 2006-06-09 | E139: 21526/LC.B/2003 | F139: Anaesthesiology, General Medicine, General Surgery, ENT, Cardiology, Emergency Medicine, OBG, Surgical Gastroenterology, Nephrology, Neuro Surgery, Orthopaedics, Paediatrics, Plastic Surgery, Pulmonology, Radiology, Urology, Surgical Oncology, Physiotherapy and Dialysis | G139: 2012-06-08 | H139: Global Multi Speciality Hospital, 27-39-1, MG Road, Vijayawada - 520 002 | I139: 2006-06-09 | J139: 21526/LC.B/2003 | K139: Anaesthesiology, General Medicine, General Surgery, ENT, Cardiology, Emergency Medicine, OBG, Surgical Gastroenterology, Nephrology, Neuro Surgery, Orthopaedics, Paediatrics, Plastic Surgery, Pulmonology, Radiology, Urology, Surgical Oncology, Physiotherapy and Dialysis | L139: 2012-06-08
B140: 138 | C140: Goodwill Kidney and Surgical Center, Opp. Khaja Mansion, Masabtank Road, Hyd. | D140: 20-Jun-2008 | E140: 10926/LC.B/2008 | F140: Kidney | G140: 19-Jun-2011 | H140: Goodwill Kidney and Surgical Center, Opp. Khaja Mansion, Masabtank Road, Hyd. | I140: 20-Jun-2008 | J140: 10926/LC.B/2008 | K140: Kidney | L140: 19-Jun-2011
B141: 139 | C141: Gowri Gopal Hospitals Pvt. Ltd., Kurnool | D141: 2006-01-03 | E141: 19751/LC-B/2005 | F141: Multi | G141: 2012-01-02 | H141: Gowri Gopal Hospitals Pvt. Ltd., Kurnool | I141: 2006-01-03 | J141: 19751/LC-B/2005 | K141: Multi | L141: 2012-01-02
B142: 140 | C142: Gowtami Eye Institute, 1, R.V.Nagar, Korukonda Road, Opp. Market Yard, Rajahmundry, E.G.Dt. | D142: 24-Oct-2009 | E142: 10422/LC-B/2009 | F142: Ophthalmology | G142: 23-Oct-2012 | H142: Gowtami Eye Institute, 1, R.V.Nagar, Korukonda Road, Opp. Market Yard, Rajahmundry, E.G.Dt. | I142: 24-Oct-2009 | J142: 10422/LC-B/2009 | K142: Ophthalmology | L142: 23-Oct-2012
B143: 141 | C143: GSL General Hospital, NH-5, Lakshmi Puram, Rajhmundry. | D143: 20-Dec-2006 | E143: 20475/LC-B/2005 | F143: Multi | G143: 19-Dec-2009 | H143: GSL General Hospital, NH-5, Lakshmi Puram, Rajhmundry. | I143: 20-Dec-2006 | J143: 20475/LC-B/2005 | K143: Multi | L143: 19-Dec-2009
B144: 142 | C144: Guardian Multi Speciality Hospital, 15-1-237, Opp. L.B.College, Mulugu 'X' Road, Warangal | D144: 2010-08-07 | E144: 22488/LC-B/2010 | F144: General Medicine, General Surgery, Orthopaedics, OBG, Pulmonology, Neuro Surgery, Urology, Paediatrics, Pathology, Surgical Oncology, ENT, Plastic Surgery, Anaesthesiology and Physiotherapy | G144: 2013-08-06 | H144: Guardian Multi Speciality Hospital, 15-1-237, Opp. L.B.College, Mulugu 'X' Road, Warangal | I144: 2010-08-07 | J144: 22488/LC-B/2010 | K144: General Medicine, General Surgery, Orthopaedics, OBG, Pulmonology, Neuro Surgery, Urology, Paediatrics, Pathology, Surgical Oncology, ENT, Plastic Surgery, Anaesthesiology and Physiotherapy | L144: 2013-08-06
B145: 143 | C145: Guntur Dental SpecialtyHospital, Beside Pallavi Complex, Station Road, Guntur | D145: 21-Oct-2008 | E145: 34927/LC.B/2006 | F145: Dental | G145: 20-Oct-2011 | H145: Guntur Dental SpecialtyHospital, Beside Pallavi Complex, Station Road, Guntur | I145: 21-Oct-2008 | J145: 34927/LC.B/2006 | K145: Dental | L145: 20-Oct-2011
B146: 144 | C146: Gurunanak Care Hospital, 1-4-908/7/1, Musheerabad Main Road, Musheerabad, Hyderabad | D146: 2009-09-15 | E146: 41736/LC-B/2007 | F146: Cardiology, OBG, Neuro Surgery, Orthoplaedics, ENT, Nephrology, Urology, Paediatrics, Surgical Gastroenterology, Gen. Surgery, Anaesthesiology, Plastic Surgery, Emergency Medicine, Surgical Oncology, Radiology and Pulmonology | G146: 2012-09-14 | H146: Gurunanak Care Hospital, 1-4-908/7/1, Musheerabad Main Road, Musheerabad, Hyderabad | I146: 2009-09-15 | J146: 41736/LC-B/2007 | K146: Cardiology, OBG, Neuro Surgery, Orthoplaedics, ENT, Nephrology, Urology, Paediatrics, Surgical Gastroenterology, Gen. Surgery, Anaesthesiology, Plastic Surgery, Emergency Medicine, Surgical Oncology, Radiology and Pulmonology | L146: 2012-09-14
B147: 145 | C147: GVR Childrens Hospital, 43/48, 2nd Lane, N.R.Pet, Kurnool - 518004. | D147: 2006-11-10 | E147: 12856/LC-B/2006 | F147: Paediatrics, Urology, Plastic Surgery, OBG and General Surgery | G147: 09-11-2012 | H147: GVR Childrens Hospital, 43/48, 2nd Lane, N.R.Pet, Kurnool - 518004. | I147: 2006-11-10 | J147: 12856/LC-B/2006 | K147: Paediatrics, Urology, Plastic Surgery, OBG and General Surgery | L147: 09-11-2012
B148: 146 | C148: Harini Gastro & Liver Centre, 29-14-51, Prakasam Road, Suryaraopet, Vijayawada. | D148: 17-Feb-2007 | E148: 17827/LC-B/2006 | F148: Gastroenterology | G148: 16-Feb-2010 | H148: Harini Gastro & Liver Centre, 29-14-51, Prakasam Road, Suryaraopet, Vijayawada. | I148: 17-Feb-2007 | J148: 17827/LC-B/2006 | K148: Gastroenterology | L148: 16-Feb-2010
B149: 147 | C149: Haripriya Dantha Vaidyasala, 18-1-503, V.V. Mahal Road, Opp. Incometax Office, Tirupathi | D149: 15-Dec-2008 | E149: 21075/LC.B/2007 | F149: Dental | G149: 14-Dec-2011 | H149: Haripriya Dantha Vaidyasala, 18-1-503, V.V. Mahal Road, Opp. Incometax Office, Tirupathi | I149: 15-Dec-2008 | J149: 21075/LC.B/2007 | K149: Dental | L149: 14-Dec-2011
B150: 148 | C150: Harsha Sai Eye Hospital, Dwarakanagar, Nizamabad. | D150: 19-Feb-2008 | E150: 18010/LC.B/2007 | F150: Ophthalmology | G150: 18-Feb-2011 | H150: Harsha Sai Eye Hospital, Dwarakanagar, Nizamabad. | I150: 19-Feb-2008 | J150: 18010/LC.B/2007 | K150: Ophthalmology | L150: 18-Feb-2011
B151: 149 | C151: Health Hospitals Prakasam Road, Tenali - 522201,Guntur District. | D151: 2007-02-17 | E151: 19354/LC-B/2006 | F151: Cardiology, ENT, General Medicine, Emergency Medicine, General Surgery, Obst & Gynecology, Orthopedics, Pediatrics, Neuro Surgery, Plastic Surgery, Surgical Gastroentrology, Urology, Pulmonology, Physiotherapy Unit and Clinical Pathology Services | G151: 2010-02-16 | H151: Health Hospitals Prakasam Road, Tenali - 522201,Guntur District. | I151: 2007-02-17 | J151: 19354/LC-B/2006 | K151: Cardiology, ENT, General Medicine, Emergency Medicine, General Surgery, Obst & Gynecology, Orthopedics, Pediatrics, Neuro Surgery, Plastic Surgery, Surgical Gastroentrology, Urology, Pulmonology, Physiotherapy Unit and Clinical Pathology Services | L151: 2010-02-16
B152: 150 | C152: Heart Care Centre, Dornakal Raod, Near Andhra Bank, Suryaraopet, Vijayawada. | D152: 2006-08-24 | E152: 25958/LC-B/2005 | F152: Cardiology | G152: 2012-08-23 | H152: Heart Care Centre, Dornakal Raod, Near Andhra Bank, Suryaraopet, Vijayawada. | I152: 2006-08-24 | J152: 25958/LC-B/2005 | K152: Cardiology | L152: 2012-08-23
B153: 151 | C153: Help Hospital, MG Road, Vijayawada | D153: 2006-01-03 | E153: 18470/LC-B/2005 | F153: Gen. Med. Orthopedics, Anesthesiolgy, Neuro Surgery, Gen. Surgeryand Gynec. | G153: 2012-01-02 | H153: Help Hospital, MG Road, Vijayawada | I153: 2006-01-03 | J153: 18470/LC-B/2005 | K153: Gen. Med. Orthopedics, Anesthesiolgy, Neuro Surgery, Gen. Surgeryand Gynec. | L153: 2012-01-02
B154: 152 | C154: Heritage Hospital, 6-3-907/2, Somajiguda, Hyderabad | D154: 19-Jan-2006 | E154: 22130/LC-B/2005 | F154: Multi | G154: 18-Jan-2009 | H154: Heritage Hospital, 6-3-907/2, Somajiguda, Hyderabad | I154: 19-Jan-2006 | J154: 22130/LC-B/2005 | K154: Multi | L154: 18-Jan-2009
B155: 153 | C155: Himabindu Multi Specialty Hospital, Vinay Nagar, Sagar Road, Santhoshnagar, Hyd. | D155: 2008-07-03 | E155: 1082/LC.B/2008 | F155: Genl. Medicine, Genl. Surgery, OBG., Orthopedics, Urology, Neuro Surgery, Plastic Surgery, ENT., Pediatrics, Cardiology, Surgical Gastroentrology, Anesthesiology, Pulmonology, Radiology, Pathology, Oncology, and Physiotherapy. | G155: 2011-07-02 | H155: Himabindu Multi Specialty Hospital, Vinay Nagar, Sagar Road, Santhoshnagar, Hyd. | I155: 2008-07-03 | J155: 1082/LC.B/2008 | K155: Genl. Medicine, Genl. Surgery, OBG., Orthopedics, Urology, Neuro Surgery, Plastic Surgery, ENT., Pediatrics, Cardiology, Surgical Gastroentrology, Anesthesiology, Pulmonology, Radiology, Pathology, Oncology, and Physiotherapy. | L155: 2011-07-02
B156: 154 | C156: Hope Childrens Hospital, 5-9-24/81, Lake Hills Road, Basheerbagh, Hyderabad - 500463. | D156: 3-Apr-2007 | E156: 13646/LC-B/2006 | F156: Paediatric | G156: 2010-04-02 | H156: Hope Childrens Hospital, 5-9-24/81, Lake Hills Road, Basheerbagh, Hyderabad - 500463. | I156: 3-Apr-2007 | J156: 13646/LC-B/2006 | K156: Paediatric | L156: 2010-04-02
B157: 155 | C157: Hope Super SpecialtyHospital, Balaji Nagar, Khammam | D157: 2008-04-18 | E157: 309/LC.B/2007 | F157: Neurology, Neuro Surgery, Genl. Medicine, Genl. Surgery, Orthopedics, OBG., Pediatrics, Cardiology, and Emergency Medicine | G157: 2011-04-17 | H157: Hope Super SpecialtyHospital, Balaji Nagar, Khammam | I157: 2008-04-18 | J157: 309/LC.B/2007 | K157: Neurology, Neuro Surgery, Genl. Medicine, Genl. Surgery, Orthopedics, OBG., Pediatrics, Cardiology, and Emergency Medicine | L157: 2011-04-17
B158: 156 | C158: Hyderabad Kidney & Laproscopic Centre, Judges Colony,Malakpet, Hyderabad. | D158: 2006-01-03 | E158: 29526/LC-B/2005 | F158: Urology, Nephrology, General Surgery, Surgical Gastroenterology and Orthopaedics | G158: 2012-01-02 | H158: Hyderabad Kidney & Laproscopic Centre, Judges Colony,Malakpet, Hyderabad. | I158: 2006-01-03 | J158: 29526/LC-B/2005 | K158: Urology, Nephrology, General Surgery, Surgical Gastroenterology and Orthopaedics | L158: 2012-01-02
B159: 157 | C159: Hyderabad Nusing Home Pvt. Ltd., Basheerbagh, Hyderabad. | D159: 2008-04-17 | E159: 3836/LC.B/2006 | F159: General Medicine, Genl. Surgery, Anaesthesiology, Emergency Medicine, E.N.T., OBG., Orthopedics, Pediatrics, Pathology, Plastic Surgery, Radiology, Surgical Gastroenterology, Medical Oncology, Surgical Oncology, Urology and Physiotherapy. | G159: 2011-04-16 | H159: Hyderabad Nusing Home Pvt. Ltd., Basheerbagh, Hyderabad. | I159: 2008-04-17 | J159: 3836/LC.B/2006 | K159: General Medicine, Genl. Surgery, Anaesthesiology, Emergency Medicine, E.N.T., OBG., Orthopedics, Pediatrics, Pathology, Plastic Surgery, Radiology, Surgical Gastroenterology, Medical Oncology, Surgical Oncology, Urology and Physiotherapy. | L159: 2011-04-16
B160: 158 | C160: Identity Multi Specialty Dental Hospital and Research Center, 21/139, R.S. Road, Kadapa. | D160: 3-Feb-2009 | E160: 14278/LC.B/2008 | F160: Dental | G160: 2-Feb-2012 | H160: Identity Multi Specialty Dental Hospital and Research Center, 21/139, R.S. Road, Kadapa. | I160: 3-Feb-2009 | J160: 14278/LC.B/2008 | K160: Dental | L160: 2-Feb-2012
B161: 159 | C161: Image Hospital, 8-3-903/F/12 & 13, Image House, Ameerpet, Hyderabad | D161: 2006-03-18 | E161: 21092/LC-B/2005 | F161: Cardiology, C.T.Surgery, Neuro Surgery, Orthopaedics, Surgical Gastroenterology, Pulmonology, OBG, Nephrology, Urology, General Medicine, General Surgery, ENT, Paediatrics and Dialysis Unit | G161: 2012-03-17 | H161: Image Hospital, 8-3-903/F/12 & 13, Image House, Ameerpet, Hyderabad | I161: 2006-03-18 | J161: 21092/LC-B/2005 | K161: Cardiology, C.T.Surgery, Neuro Surgery, Orthopaedics, Surgical Gastroenterology, Pulmonology, OBG, Nephrology, Urology, General Medicine, General Surgery, ENT, Paediatrics and Dialysis Unit | L161: 2012-03-17
B162: 160 | C162: Image Hospitals, 1-90/2/G/2, Arunodaya Co- operative Housing Society, Madhapur, Hyderabad | D162: 2009-12-08 | E162: 26548/LC-B/2009 | F162: Cardiology, C.T.Surgery, Neuro Surgery, Orthopaedics, General Medicine, Pulmonology, Radiology, Medical Oncology, OBG, Paediatrics, Urology, ENT and Emergency Medicine | G162: 2012-12-07 | H162: Image Hospitals, 1-90/2/G/2, Arunodaya Co- operative Housing Society, Madhapur, Hyderabad | I162: 2009-12-08 | J162: 26548/LC-B/2009 | K162: Cardiology, C.T.Surgery, Neuro Surgery, Orthopaedics, General Medicine, Pulmonology, Radiology, Medical Oncology, OBG, Paediatrics, Urology, ENT and Emergency Medicine | L162: 2012-12-07
B163: 161 | C163: Indian Red Cross Society, Red Cross Road, Near Vegitable Market, Nellore. | D163: 2008-10-14 | E163: 1871/LC.B/2006 | F163: Oncology | G163: 13-Oct-2011 | H163: Indian Red Cross Society, Red Cross Road, Near Vegitable Market, Nellore. | I163: 2008-10-14 | J163: 1871/LC.B/2006 | K163: Oncology | L163: 13-Oct-2011
B164: 162 | C164: Indira Multi Speciality Dental Hospital, 16-2- 307, Near Sunday Market, Subrahmanya Swamy Temple Street, Pogathota, Nellore | D164: 7-Jul-2009 | E164: 1600/LC-B/2009 | F164: Dental | G164: 6-Jul-2012 | H164: Indira Multi Speciality Dental Hospital, 16-2- 307, Near Sunday Market, Subrahmanya Swamy Temple Street, Pogathota, Nellore | I164: 7-Jul-2009 | J164: 1600/LC-B/2009 | K164: Dental | L164: 6-Jul-2012
B165: 163 | C165: Indo- American Cancer Institute & Research Centre, Banjara Hills, Hyderabad | D165: 2005-12-05 | E165: 18434/LC-B/2005 | F165: Cancer | G165: 2011-12-04 | H165: Indo- American Cancer Institute & Research Centre, Banjara Hills, Hyderabad | I165: 2005-12-05 | J165: 18434/LC-B/2005 | K165: Cancer | L165: 2011-12-04
B166: 164 | C166: Indur Cancer Hospital, Krishnapuri Colony, Madhavanagar, Nizamabad | D166: 08-Dec-2009 | E166: 19098/LC-B/2009 | F166: Cancer | G166: 07-Dec-2012 | H166: Indur Cancer Hospital, Krishnapuri Colony, Madhavanagar, Nizamabad | I166: 08-Dec-2009 | J166: 19098/LC-B/2009 | K166: Cancer | L166: 07-Dec-2012
B167: 165 | C167: Indus Hospitals, 18-1-6, K.G.H. Down Road, Maharanipet, Visakhapatnam | D167: 2008-10-23 | E167: 2037/LC.B/2008 | F167: Anaesthesiology, Cardiology, C.T. Surgery, E.N.T., Emergency Medicine, Genl. Medicine, Genl. Surgery, Nephrology, Neuro Surgery, Pulmanology, Radiology, Surgical Gastro Enterology, Oncology, and Dialysis Unit. | G167: 2011-10-22 | H167: Indus Hospitals, 18-1-6, K.G.H. Down Road, Maharanipet, Visakhapatnam | I167: 2008-10-23 | J167: 2037/LC.B/2008 | K167: Anaesthesiology, Cardiology, C.T. Surgery, E.N.T., Emergency Medicine, Genl. Medicine, Genl. Surgery, Nephrology, Neuro Surgery, Pulmanology, Radiology, Surgical Gastro Enterology, Oncology, and Dialysis Unit. | L167: 2011-10-22
B168: 166 | C168: Innova Children's Heart Hospital Pvt., Ltd., 12- 5-30, White House, Tarnaka, Moulali Road, Secunderabad | D168: 13-Aug-2008 | E168: 42244/LC.B/2007 | F168: Pediatric Specialization | G168: 12-Aug-2011 | H168: Innova Children's Heart Hospital Pvt., Ltd., 12- 5-30, White House, Tarnaka, Moulali Road, Secunderabad | I168: 13-Aug-2008 | J168: 42244/LC.B/2007 | K168: Pediatric Specialization | L168: 12-Aug-2011
B169: 167 | C169: J.J.Dental Clinic, Temple Street, Kakinada, E.G.Dist. | D169: 8-Dec-2009 | E169: 33969/LC-B/2009 | F169: Dental | G169: 07-Dec-2012 | H169: J.J.Dental Clinic, Temple Street, Kakinada, E.G.Dist. | I169: 8-Dec-2009 | J169: 33969/LC-B/2009 | K169: Dental | L169: 07-Dec-2012
B170: 168 | C170: J.J.Hospital, Plot No. 57, Kalyan Nagar, 1st Phase, Behind T.B.Hospital, Hyderabad | D170: 24-Apr-2010 | E170: 20033/LC-B/2008 | F170: Obstetrics & Gynaecology | G170: 23-Apr-2013 | H170: J.J.Hospital, Plot No. 57, Kalyan Nagar, 1st Phase, Behind T.B.Hospital, Hyderabad | I170: 24-Apr-2010 | J170: 20033/LC-B/2008 | K170: Obstetrics & Gynaecology | L170: 23-Apr-2013
B171: 169 | C171: Jabilli Mother & Child Hospital, Beside Church, Wyra Road, Khammam. | D171: 1-Aug-2009 | E171: 19134/LC-B/2009 | F171: Gen. Med. Gen. Surgery, OBG Pediatrics, Orthopaedics and Plastic Surgery | G171: 31-Jul-2012 | H171: Jabilli Mother & Child Hospital, Beside Church, Wyra Road, Khammam. | I171: 1-Aug-2009 | J171: 19134/LC-B/2009 | K171: Gen. Med. Gen. Surgery, OBG Pediatrics, Orthopaedics and Plastic Surgery | L171: 31-Jul-2012
B172: 170 | C172: Jaya Hospitals, Chowrastha, Hanamkonda, Warangal | D172: 2006-07-22 | E172: 20303/LC-B/2005 | F172: General Medicine, General Surgery, Anaesthesiology, Emergency Medicine, Cardiology, C.T.Surgery, ENT, OBG, Paediatrics, Urology, Orthopaedics, Neuro Surgery, Pulmonology, Plastic Surgery, Pathology, Surgical Oncology and Physiotherapy | G172: 2013-07-21 | H172: Jaya Hospitals, Chowrastha, Hanamkonda, Warangal | I172: 2006-07-22 | J172: 20303/LC-B/2005 | K172: General Medicine, General Surgery, Anaesthesiology, Emergency Medicine, Cardiology, C.T.Surgery, ENT, OBG, Paediatrics, Urology, Orthopaedics, Neuro Surgery, Pulmonology, Plastic Surgery, Pathology, Surgical Oncology and Physiotherapy | L172: 2013-07-21
B173: 171 | C173: Jayabharath Hospital, 16/2884, Somasekharapuram, Nellore | D173: 2008-12-12 | E173: 43400/LC.B/2007 | F173: Anaesthesiology, Emergency Medicine, General Surgery, General Medicine, OBG., Orthopedics, Plastic Surgery, Urology, E.N.T., Pediatrics, Pathology, Radiology and Physio- therapy | G173: 2011-12-11 | H173: Jayabharath Hospital, 16/2884, Somasekharapuram, Nellore | I173: 2008-12-12 | J173: 43400/LC.B/2007 | K173: Anaesthesiology, Emergency Medicine, General Surgery, General Medicine, OBG., Orthopedics, Plastic Surgery, Urology, E.N.T., Pediatrics, Pathology, Radiology and Physio- therapy | L173: 2011-12-11
B174: 172 | C174: Jayalakshmi Hospitals, 9-5-15, J.P.N. Road, Warangal | D174: 13-May-2009 | E174: 5912/LC.B/2009 | F174: OBG | G174: 12-May-2012 | H174: Jayalakshmi Hospitals, 9-5-15, J.P.N. Road, Warangal | I174: 13-May-2009 | J174: 5912/LC.B/2009 | K174: OBG | L174: 12-May-2012
B175: 173 | C175: Jayam Super Specialty Dental Hospital, Shop No. 15 and 16, Municipal Shopping Complex, Ananthapur | D175: 18-Feb-2009 | E175: 30888/LC.B/2008 | F175: Dental | G175: 17-Feb-2012 | H175: Jayam Super Specialty Dental Hospital, Shop No. 15 and 16, Municipal Shopping Complex, Ananthapur | I175: 18-Feb-2009 | J175: 30888/LC.B/2008 | K175: Dental | L175: 17-Feb-2012
B176: 174 | C176: Jeevana Jyothi Hospitals, D.No. 15/381, Kamalanagar, Anantapur | D176: 09-Oct-2009 | E176: 15689/LC-B/2009 | F176: General Medicine, General Surgery, OBG, Orthopaedics, Cardiology and Urology | G176: 08-Oct-2012 | H176: Jeevana Jyothi Hospitals, D.No. 15/381, Kamalanagar, Anantapur | I176: 09-Oct-2009 | J176: 15689/LC-B/2009 | K176: General Medicine, General Surgery, OBG, Orthopaedics, Cardiology and Urology | L176: 08-Oct-2012
B177: 175 | C177: Jnanananda Ophthalmic Institute, Bhimavaram, W.G. Dist. | D177: 22-May-2008 | E177: 41288/LC.B/2007 | F177: Ophthalmology | G177: 21-May-2011 | H177: Jnanananda Ophthalmic Institute, Bhimavaram, W.G. Dist. | I177: 22-May-2008 | J177: 41288/LC.B/2007 | K177: Ophthalmology | L177: 21-May-2011
B178: 176 | C178: Jyothi Hospitals, 19/1350, Beside Anjaneya Swamy Temple, Church Road, Miryalaguda, Nalgonda. | D178: 2008-12-15 | E178: 2898/LC.B/2008 | F178: General Medicine,General Surgery, Anaesthesiology, E.N.T., OBG., Orthopedics, Pediatrics, Pathology, urology, Cardiology, Radiology and Physio Therapy. | G178: 14-Dec-2011 | H178: Jyothi Hospitals, 19/1350, Beside Anjaneya Swamy Temple, Church Road, Miryalaguda, Nalgonda. | I178: 2008-12-15 | J178: 2898/LC.B/2008 | K178: General Medicine,General Surgery, Anaesthesiology, E.N.T., OBG., Orthopedics, Pediatrics, Pathology, urology, Cardiology, Radiology and Physio Therapy. | L178: 14-Dec-2011
B179: 177 | C179: K.M. Dental Hosptials, Global Nagar, Munbai Road, Buchireddy Palem, Nellore | D179: 2009-03-20 | E179: 44722/LC.B/2008 | F179: Dental | G179: 19-Mar-2012 | H179: K.M. Dental Hosptials, Global Nagar, Munbai Road, Buchireddy Palem, Nellore | I179: 2009-03-20 | J179: 44722/LC.B/2008 | K179: Dental | L179: 19-Mar-2012
B180: 178 | C180: Kadapa Super Speciality Dental Hospital 4/468, Behind Ramalayam, Kadapa | D180: 11-Mar-2010 | E180: 42760/LC-B/2009 | F180: Dental | G180: 10-Mar-2013 | H180: Kadapa Super Speciality Dental Hospital 4/468, Behind Ramalayam, Kadapa | I180: 11-Mar-2010 | J180: 42760/LC-B/2009 | K180: Dental | L180: 10-Mar-2013
B181: 179 | C181: Kakathiya Super Specialty Dental Hospital, Hanumakonda, Warangal. | D181: 6-Nov-2008 | E181: 24076/LC.B/2006 | F181: Dental | G181: 5-Nov-2011 | H181: Kakathiya Super Specialty Dental Hospital, Hanumakonda, Warangal. | I181: 6-Nov-2008 | J181: 24076/LC.B/2006 | K181: Dental | L181: 5-Nov-2011
B182: 180 | C182: Kalyani Dental Hospital Dentistry & Implant Centre, Opp. Green Park Hotel, Begumpet, Hyderabad. | D182: 2005-12-05 | E182: 18469/LC-B/2005 | F182: Dental | G182: 2011-12-04 | H182: Kalyani Dental Hospital Dentistry & Implant Centre, Opp. Green Park Hotel, Begumpet, Hyderabad. | I182: 2005-12-05 | J182: 18469/LC-B/2005 | K182: Dental | L182: 2011-12-04
B183: 181 | C183: Kalyani Hospital, 6-1-69, Stadium Road, Hanumakonda, Warangal. | D183: 16-Jan-2009 | E183: 10437/LC.B/2007 | F183: Genl. Medicine,Genl. Surgery, Orthopedics, OBG., Urology, E.N.T., and Pulmanology. | G183: 15-Jan-2012 | H183: Kalyani Hospital, 6-1-69, Stadium Road, Hanumakonda, Warangal. | I183: 16-Jan-2009 | J183: 10437/LC.B/2007 | K183: Genl. Medicine,Genl. Surgery, Orthopedics, OBG., Urology, E.N.T., and Pulmanology. | L183: 15-Jan-2012
B184: 182 | C184: Kamal Vilekar's Multi Speciality Dental Hospital, D.No. 6-2-15, Chinna Bazar, Srikakulam | D184: 22-Jan-2010 | E184: 1598/LC-B/2009 | F184: Dental | G184: 21-Jan-2013 | H184: Kamal Vilekar's Multi Speciality Dental Hospital, D.No. 6-2-15, Chinna Bazar, Srikakulam | I184: 22-Jan-2010 | J184: 1598/LC-B/2009 | K184: Dental | L184: 21-Jan-2013
B185: 183 | C185: Kamala Hospital, Kamala Complex, Chandna Brother's Center, Dilsuknagar, Hyderabad. | D185: 2008-08-29 | E185: 14767/LC.B./2008 | F185: Anaesthesiology, Cardiology, E.N.T., Emergency Medicine, Genl. Medicine, Genl. Surgery, Neuro Surgery, OBG., Orthopedics, Nephrology, Pediatrics, Pathology, Radiology, Urology, Oncology, and Dialysis Unit. | G185: 2011-08-28 | H185: Kamala Hospital, Kamala Complex, Chandna Brother's Center, Dilsuknagar, Hyderabad. | I185: 2008-08-29 | J185: 14767/LC.B./2008 | K185: Anaesthesiology, Cardiology, E.N.T., Emergency Medicine, Genl. Medicine, Genl. Surgery, Neuro Surgery, OBG., Orthopedics, Nephrology, Pediatrics, Pathology, Radiology, Urology, Oncology, and Dialysis Unit. | L185: 2011-08-28
B186: 184 | C186: Kamineni Hospitals ( Previously called Wockhadt Hospitals which is taken over by the Management of kamineni Hospitas) 4-1- 1227, King Koti Road, Abids, Hyderabad – 500001. | D186: 2006-10-17 | E186: 21452/LC-B/2005 | F186: General Medicine, General Surgery, Emergency Medicine, Cardiology, C.T.Surgery, OBG, Paediatrics, Orthopaedics, ENT, Anaesthesiology, Nuero Surgery, Surgical Oncology, Surgical Gastroenterology, Urology, Nephrology and Dialysis. | G186: 17-10-2009 | H186: Kamineni Hospitals ( Previously called Wockhadt Hospitals which is taken over by the Management of kamineni Hospitas) 4-1- 1227, King Koti Road, Abids, Hyderabad – 500001. | I186: 2006-10-17 | J186: 21452/LC-B/2005 | K186: General Medicine, General Surgery, Emergency Medicine, Cardiology, C.T.Surgery, OBG, Paediatrics, Orthopaedics, ENT, Anaesthesiology, Nuero Surgery, Surgical Oncology, Surgical Gastroenterology, Urology, Nephrology and Dialysis. | L186: 17-10-2009
B187: 185 | C187: Kamineni Hospitals, Basheer Bagh, Hyderabad. | D187: 2008-10-21 | E187: 11828/LC.B/2007 | F187: Anaesthesiology, E.N.T., Emergency Medicine, General Medicine, General Surgery, Neuro Surgery, OBG., Orthopedics, Pediatrics, Pathology, Plastic Surgery, Pulmanology, Cardiology, Oncology, Urology and Physiotherapy | G187: 2011-10-20 | H187: Kamineni Hospitals, Basheer Bagh, Hyderabad. | I187: 2008-10-21 | J187: 11828/LC.B/2007 | K187: Anaesthesiology, E.N.T., Emergency Medicine, General Medicine, General Surgery, Neuro Surgery, OBG., Orthopedics, Pediatrics, Pathology, Plastic Surgery, Pulmanology, Cardiology, Oncology, Urology and Physiotherapy | L187: 2011-10-20
B188: 186 | C188: Kamineni Hospitals, L.B.Nagar, Hyderabad | D188: 2006-02-03 | E188: 21625/LC-B/2005 | F188: Multi | G188: 2012-02-02 | H188: Kamineni Hospitals, L.B.Nagar, Hyderabad | I188: 2006-02-03 | J188: 21625/LC-B/2005 | K188: Multi | L188: 2012-02-02
B189: 187 | C189: Kamineni Institute of Medical Sciences and Hospital, Sripuram, Narketpally, Nalgonda. | D189: 2007-11-06 | E189: 17822/LC.B/2006 | F189: Anaesthesiology, General Medicine, General Surgery, E.N.T., Emergency Medicine, Nephrology, Neuro Surgery, Neclear Medicine, OBG., Orthopedics, Pediatrics, Pathology, Plastic Surgery, Pulmanology, Radiology, Oncology, Urology, Physio Therapy unit and Dialysis | G189: 2010-11-05 | H189: Kamineni Institute of Medical Sciences and Hospital, Sripuram, Narketpally, Nalgonda. | I189: 2007-11-06 | J189: 17822/LC.B/2006 | K189: Anaesthesiology, General Medicine, General Surgery, E.N.T., Emergency Medicine, Nephrology, Neuro Surgery, Neclear Medicine, OBG., Orthopedics, Pediatrics, Pathology, Plastic Surgery, Pulmanology, Radiology, Oncology, Urology, Physio Therapy unit and Dialysis | L189: 2010-11-05
B190: 188 | C190: Kandukuri Hospitals, Vishnava Street, Kavali, Nellore, Dist. | D190: 23-Apr-2008 | E190: 35266/LC.B/2006 | F190: Genl. Medicine, Genl. Surgery, Orthopedics and OBG. | G190: 2011-04-22 | H190: Kandukuri Hospitals, Vishnava Street, Kavali, Nellore, Dist. | I190: 23-Apr-2008 | J190: 35266/LC.B/2006 | K190: Genl. Medicine, Genl. Surgery, Orthopedics and OBG. | L190: 2011-04-22
B191: 189 | C191: Karumuri Super Speciality Hospitals, 3-4-73, Old Club Road, Guntur - 522001. | D191: 2006-09-23 | E191: 16866/LC-B/2006 | F191: Cardiaology | G191: 2012-09-22 | H191: Karumuri Super Speciality Hospitals, 3-4-73, Old Club Road, Guntur - 522001. | I191: 2006-09-23 | J191: 16866/LC-B/2006 | K191: Cardiaology | L191: 2012-09-22
B192: 190 | C192: Kinnera Super Speciality Hospital, Wyra Road, Khammam | D192: 2006-07-22 | E192: 4445/LC-B/2005 | F192: General Medicine, General Surgery, Anaesthesiology, OBG, Orthopaedics, Neuro Surgery, ENT, Urology, Plastic Surgery, Pathology, Radiology and Physiotherapy | G192: 2012-07-21 | H192: Kinnera Super Speciality Hospital, Wyra Road, Khammam | I192: 2006-07-22 | J192: 4445/LC-B/2005 | K192: General Medicine, General Surgery, Anaesthesiology, OBG, Orthopaedics, Neuro Surgery, ENT, Urology, Plastic Surgery, Pathology, Radiology and Physiotherapy | L192: 2012-07-21
B193: 191 | C193: KNM Smile Dental Hospital, 104, Sai Towers, Beside Kalaniketan, Main Road, Dilshuk Nagar, Hyderabad.The hospital was shifted to G-5, Kochar Apartments, Opp. Pantaloons & Sony Centre, Shamlal Buildings, Begumpet, Hyderabad | D193: 2006-09-23 | E193: 14473/LC-B/2006 | F193: Dental | G193: 2012-09-22 | H193: KNM Smile Dental Hospital, 104, Sai Towers, Beside Kalaniketan, Main Road, Dilshuk Nagar, Hyderabad.The hospital was shifted to G-5, Kochar Apartments, Opp. Pantaloons & Sony Centre, Shamlal Buildings, Begumpet, Hyderabad | I193: 2006-09-23 | J193: 14473/LC-B/2006 | K193: Dental | L193: 2012-09-22
B194: 192 | C194: Kommineni Super Speciality Dental Hospital, 490A, 1st Floor, Reddy & Reddy Colony, Tirupathi | D194: 30-Sep-2009 | E194: 22568/LC-B/2009 | F194: Dental | G194: 21-Sept-2012 | H194: Kommineni Super Speciality Dental Hospital, 490A, 1st Floor, Reddy & Reddy Colony, Tirupathi | I194: 30-Sep-2009 | J194: 22568/LC-B/2009 | K194: Dental | L194: 21-Sept-2012
B195: 193 | C195: Konark Hospitals, Plot No.13 and 14, Beside Sharwood Public School, Patbasheerbad Village, Qutubullapur Mandal, Kompally, R.R.Dist. | D195: =I195 -> 2010-05-13 | E195: =J195 -> 2985/LC-B/2010 | F195: =K195 -> General Medicine, General Surgery, ENT, Neuro Surgery, OBG, Orthopaedics, Pathology, Plastic Surgery, Radiology, Urology and Physiotherapy | G195: =L195 -> 2013-05-12 | H195: Konark Hospitals, Plot No.13 and 14, Beside Sharwood Public School, Patbasheerbad Village, Qutubullapur Mandal, Kompally, R.R.Dist. | I195: 2010-05-13 | J195: 2985/LC-B/2010 | K195: General Medicine, General Surgery, ENT, Neuro Surgery, OBG, Orthopaedics, Pathology, Plastic Surgery, Radiology, Urology and Physiotherapy | L195: 2013-05-12
B196: 194 | C196: Konaseema Institute of Medical Sciences, NH - 214, Chaitanya Nagar, Amalapuram - 533 201, East Godavari. | D196: 3-Jul-2006 | E196: 2453/LC.B/2005 | F196: Multi | G196: 2009-07-02 | H196: Konaseema Institute of Medical Sciences, NH - 214, Chaitanya Nagar, Amalapuram - 533 201, East Godavari. | I196: 3-Jul-2006 | J196: 2453/LC.B/2005 | K196: Multi | L196: 2009-07-02
B197: 195 | C197: Krishna Children's Hospital, (A unit of Ashwik Hospital Pvt Ltd), 11-5-423/A&B, Niloufer Hospital Road, Opp-Hanuman Temple, Lakdikapool, Hyderabad - 500006. | D197: 2006-06-27 | E197: 18483/LC-B/2005 | F197: Paediatric | G197: 2012-06-26 | H197: Krishna Children's Hospital, (A unit of Ashwik Hospital Pvt Ltd), 11-5-423/A&B, Niloufer Hospital Road, Opp-Hanuman Temple, Lakdikapool, Hyderabad - 500006. | I197: 2006-06-27 | J197: 18483/LC-B/2005 | K197: Paediatric | L197: 2012-06-26
B198: 196 | C198: Krishna Denta Cure Advanced Super Specialty Dental Hospital, 29-33-9/10, Alluri Sitharamaraju Junction, Rajahmundry | D198: 2008-09-15 | E198: 6974/LC.B/2007 | F198: Dental | G198: 2011-09-14 | H198: Krishna Denta Cure Advanced Super Specialty Dental Hospital, 29-33-9/10, Alluri Sitharamaraju Junction, Rajahmundry | I198: 2008-09-15 | J198: 6974/LC.B/2007 | K198: Dental | L198: 2011-09-14
B199: 197 | C199: Krishna Institute of Medical Sceinces, Minister Road, Begumpet, Hyderabad. | D199: 2005-10-24 | E199: 5380/LC-B/2005 | F199: Multi | G199: 2011-10-23 | H199: Krishna Institute of Medical Sceinces, Minister Road, Begumpet, Hyderabad. | I199: 2005-10-24 | J199: 5380/LC-B/2005 | K199: Multi | L199: 2011-10-23
B200: 198 | C200: Kurnool Heart & Brain Centre, 43-1-1-K-B-4, Sapthagiri Nagar, A-Camp Extension, Near New Ayyappa swamy Temple, Kurnool. | D200: 2006-11-10 | E200: 10242/LC-B/2006 | F200: General Medicine, General Surgery, Cardiology, C.T.Surgery, Neuro Surgery, Nephrology, Plastic Surgery, ENT, OBG, Paediatrics, Pulmonology and Urology | G200: 2012-11-09 | H200: Kurnool Heart & Brain Centre, 43-1-1-K-B-4, Sapthagiri Nagar, A-Camp Extension, Near New Ayyappa swamy Temple, Kurnool. | I200: 2006-11-10 | J200: 10242/LC-B/2006 | K200: General Medicine, General Surgery, Cardiology, C.T.Surgery, Neuro Surgery, Nephrology, Plastic Surgery, ENT, OBG, Paediatrics, Pulmonology and Urology | L200: 2012-11-09
... 287 more rows

Sheet Code (hidden)
A1: DESIGNATION | C1: DISTRICT | E1: GENDER | I1: BASIC PAY | L1: LIST OF RECOGNISED HOSPITALS | N1: 462 | O1: =LOOKUP(N1,L2:M487,M2:M487) -> Venkatapadma Hospitals, 15-1-45, Three Lamps Junction, Beside Masjid, Vizianagaram
A2: 1 | B2: Assistant Director | C2: 1 | D2: Adilabad District | E2: 1 | F2: Male | G2: 1 | H2: Yes | I2: 1 | J2: 6700 | L2: S. NO. | M2: Name of the Hospital | O2: Emp Res | Q2: Name of the Employee | R2: Designation | S2: Place of working | T2: Mandal | U2: District | V2: Scale of Pay | W2: Basic Pay | X2: Add1 | Y2: Add2 | Z2: Add3 | AA2: Add4
A3: 2 | B3: Assistant Engineer | C3: 2 | D3: Ananthapur District | E3: 2 | F3: Female | G3: 2 | H3: No | I3: 2 | J3: 6900 | L3: 1 | M3: ='Rec. Hos'!C3 -> A.P. Super Speciality Dental Hospital PVT Ltd,Road No. 2, Banjara Hills, Hyderabad. | O3: =VLOOKUP(MAIN!G6,C61:D63,2,FALSE) -> Smt. | P3: =IF(MAIN!I6="","",MAIN!I6) -> G.Saivijaya Kumar | Q3: =CONCATENATE(O3," ",P3) -> Smt. G.Saivijaya Kumar | R3: =VLOOKUP(MAIN!G7,Code!A2:B50,2,FALSE) -> School Assistant (English) | S3: =IF(MAIN!G8="","",MAIN!G8) -> ZPP. High School, Balayapalli | T3: =IF(MAIN!G9="","",CONCATENATE(MAIN!G9," Mandal")) -> Balayapalli Mandal | U3: =VLOOKUP(MAIN!G10,C2:D24,2,FALSE) -> Medak District | V3: =VLOOKUP(MAIN!G11,Code!C28:D59,2,FALSE) -> 23650-49360 | W3: =VLOOKUP(MAIN!G12,I2:J135,2,FALSE) -> 17540 | X3: =IF(MAIN!G13="","",MAIN!G13) -> 7-197,PS street | Y3: =IF(MAIN!G14="","",MAIN!G14) -> Venkatagiri | Z3: =IF(MAIN!G15="","",MAIN!G15) ->  | AA3: =IF(MAIN!J16="","",CONCATENATE("PIN - ",MAIN!J16)) -> 
A4: 3 | B4: Asst. Commissioner for Govt. Exams | C4: 3 | D4: SPSR Nellore District | I4: 3 | J4: 7100 | L4: 2 | M4: ='Rec. Hos'!C4 -> A.P.Super Speciality Dental Hospital, Plot No.265J, Road No.10, Jubilee Hills, Hyderabad | U4: =VLOOKUP(MAIN!G10,A101:C123,3,FALSE) -> Sanga Reddy | V4: =CONCATENATE(V3," / ",W3) -> 23650-49360 / 17540
A5: 4 | B5: Asst. Section Officer | C5: 4 | D5: Chittoor District | E5: TYPE OF RESIDENCE | G5: HRA PERCENTAGE | I5: 4 | J5: 7300 | L5: 3 | M5: ='Rec. Hos'!C5 -> A.V.R. Dento - Facial Hospital, Street No. 8 Habshiguda, Hyderabad.
A6: 5 | B6: Asst. Statistical Officer | C6: 5 | D6: East Godavari District | E6: 1 | F6: Govt. Quarters | G6: 1 | H6: 10 | I6: 5 | J6: 7520 | L6: 4 | M6: ='Rec. Hos'!C6 -> Aayushman Hospital, Srirangam Street, Near Venkateswara Cology, Kurnool
A7: 6 | B7: Auditor | C7: 6 | D7: Guntur District | E7: 2 | F7: Own House | G7: 2 | H7: 12.5 | I7: 6 | J7: 7740 | L7: 5 | M7: ='Rec. Hos'!C7 -> Abhilash Netra Vydyasala, 3/1350, Gandhi Road, Opp. Ishwarya Complex, Proddutur, Kadapa Dist. | Q7: Name of the Patient | R7: Relationship with Emp | S7: Age of Patient | T7: Name of the Hospital | U7: Name of the Treatment | V7: Amount in Figures | W7: Amount in Words | X7: Date of Joining | Y7: Date of Discharge | Z7: Date of submission of Proposal to DDO
A8: 7 | B8: Cashier | C8: 7 | D8: Hyderabad District | E8: 3 | F8: Rented House | G8: 3 | H8: 20 | I8: 7 | J8: 7960 | L8: 6 | M8: ='Rec. Hos'!C8 -> Aditya Hospital, 4-1-16, Boggulakunta, Tilak Road, Abids, Hyderabad. | O8: =VLOOKUP(MAIN!#REF!,C65:D71,2,FALSE) ->  | P8: =IF(MAIN!R6="","",MAIN!R6) -> G.padmavathamma | Q8: =CONCATENATE(O8," ",P8) ->  | R8: =VLOOKUP(MAIN!W7,A56:B66,2,FALSE) ->  | S8: =CONCATENATE(MAIN!W8," Years") -> Years | T8: =VLOOKUP(Code!C124,L2:M160,2,FALSE) -> Dental Venue Multi Speciality Hospital, F-14, First Floor, Deepthi Apartments, S.P. Road, Secunderabad. | U8: =IF(MAIN!Q9="","",MAIN!Q9) -> Undrewent Phacoemulsification with IOL implementation left eye and cataract left eye | V8: =IF(MAIN!Q10="","",MAIN!Q10) -> 2000 | W8: =Rs!B1 -> (Rupees Two Thousand and Zero Only) | X8: =IF(MAIN!W13="","",MAIN!W13) ->  | Y8: =IF(MAIN!W14="","",MAIN!W14) ->  | Z8: =IF(MAIN!W15="","",MAIN!W15) -> 
A9: 8 | B9: Deputy Director | C9: 8 | D9: Kareemnagar District | G9: 4 | H9: 30 | I9: 8 | J9: 8200 | L9: 7 | M9: ='Rec. Hos'!C9 -> Aditya Hospital, Opp. Police Parade Grounds Bus Stop, Near Petrol Pump, Hanumakonda, Warangal. | S9: =MAIN!W8 -> 0 | T9: Category of Hospital
A10: 9 | B10: Deputy Educational Officer | C10: 9 | D10: Khammam District | I10: 9 | J10: 8440 | L10: 8 | M10: ='Rec. Hos'!C10 -> Advally Damodar Reddy Memorial Hospital, 9-2, Ramanthapur, Hyderabad | T10: =VLOOKUP(MAIN!W10,C74:D75,2,FALSE) -> 
A11: 10 | B11: Deputy Inspector of Schools | C11: 10 | D11: Krishna District | E11: MONTHS | G11: C.C.A | I11: 10 | J11: 8680 | L11: 9 | M11: ='Rec. Hos'!C11 -> Akira Eye Hospital, Aryapuram, Rajahmundry,E.G. Dist.
A12: 11 | B12: District B.C. Welfare Officer | C12: 11 | D12: Kurnool District | E12: 1 | F12: Not Applicable | G12: 1 | H12: Not Applicable | I12: 11 | J12: 8940 | L12: 10 | M12: ='Rec. Hos'!C12 -> Alluri Sitarama Raju Academy of Medical Sciences and Hospital, N.H. 5, Malkapuram, Eluru, W.G. Dist. | Q12: Name of the DDO | R12: Designation | S12: Place of working | T12: Mandal | U12: District | X12: =IF($D$64="Sri.","he","she") -> he | Y12: =IF($F$65="Sri.","he","she") -> she
A13: 12 | B13: District Educational Officer | C13: 12 | D13: Mahboobnagar District | E13: 2 | F13: 2010-03-10 | G13: 2 | H13: GHMC | I13: 12 | J13: 9200 | L13: 11 | M13: ='Rec. Hos'!C13 -> Alpha Hospital, 23-1-863, Near MCH Swimmingpool, Moghalpura, Hyderabad | O13: =VLOOKUP(MAIN!#REF!,C61:D63,2,FALSE) ->  | P13: =IF(MAIN!#REF!="","",MAIN!#REF!) ->  | Q13: =CONCATENATE(O13," ",P13) ->  | R13: =VLOOKUP(MAIN!Q19,A69:B80,2,FALSE) ->  | S13: =IF(MAIN!V19="","",MAIN!V19) -> ZPPHS,Balayapalli | T13: =IF(MAIN!G20="","",CONCATENATE(MAIN!G20," Mandal")) -> District Mandal | U13: =VLOOKUP(MAIN!T20,C2:D24,2,FALSE) ->  | X13: =IF(D64="Sri.","his","her") -> his | Y13: =IF(D64="Sri.","him","her") -> him | Z13: =CONCATENATE(V8,"-00") -> 2000-00 | AA13: =CONCATENATE("from ",TEXT(X8,"dd-mm-yyyy")," to ",TEXT(Y8,"dd-mm-yyyy")) -> from to
A14: 13 | B14: District Tribal Welfare Officer | C14: 13 | D14: Medak District | E14: 3 | F14: 2010-04-10 | G14: 3 | H14: GVMC | I14: 13 | J14: 9460 | L14: 12 | M14: ='Rec. Hos'!C14 -> Amaravathi Institute of Medical Science Pvt. Ltd., Kothapet, Guntur | R14: 2 | T14: =IF(V8<=25000,1,2) -> 1 | W14: =CONCATENATE(" With reference to the subject cited, I submit herewith the Medical Bills with all the enclosures submitted by ",UPPER(R30),", ",R31,", ",R32,", ",R33,", ",R34," for your kind sanction of the Medical Reimbursement for an amount of Rs. ") -> With reference to the subject cited, I submit herewith the Medical Bills with all the enclosures submitted by SRI. G.SAIVIJAYA KUMAR, School Assistant (Phy. Edn.), ZPP. High School, Balayapalli, Jammikunta, Kareemnagar District for your kind sanction of the Medical Reimbursement for an amount of Rs.
A15: 14 | B15: Divisional Engineer | C15: 14 | D15: Nalgonda District | E15: 4 | F15: 2010-05-10 | G15: 4 | H15: Vijayawada | I15: 14 | J15: 9740 | L15: 13 | M15: ='Rec. Hos'!C15 -> Ameerpet Super Speciality Dental Hospital & Implant Centre, 102 Classic Avenue, 6-3- 790/7, Behind chowdary Mansion, Ameerpet, Hyderabad. | O15: =IF(O13="Sri.","Sir","Madam") ->  | R15: =CONCATENATE("The ",R13,", ",Mandals1!AD2,", ",Mandals1!Z1,".") ->  | S15: =CONCATENATE("The ",R13,", ",S13,", ",T13,", ",U13,".") ->  | T15: =CONCATENATE("The District Educational Officer,"," ",R34,".") -> The District Educational Officer, Kareemnagar District . | U15: =CONCATENATE("The Commissioner & Director of"," School Education, Andhra Pradesh",", ","Hyderabad.") -> The Commissioner & Director of School Education, Andhra Pradesh, Hyderabad. | AP15: Non Drawl Certificate
A16: 15 | B16: Executive Engineer | C16: 15 | D16: Nizamabad District | E16: 5 | F16: 2010-06-10 | G16: 5 | H16: Other MC | I16: 15 | J16: 10020 | L16: 14 | M16: ='Rec. Hos'!C16 -> American Institute of Dentistry, Besides Chermas, 8-3-944/12/4, Ameerpet, Hyderabad. | W16: =" as "&" "&X13&" "&B55&" "& F65&" G.PADMAVATHAMMA who is wholly dependent on "&Y13&" has " -> as his self Smt. G.PADMAVATHAMMA who is wholly dependent on him has | AC16: =CONCATENATE(Z13,W8," ","as ",X12," undergone Treatment for desease ",UPPER(U8)," in the Recognised Hopital by the Andhra Pradesh State Government i.e., at ",UPPER(T8)," during the period ",AA13," and onward transmit to the higher authorities for further necessary action at an early date.") -> 2000-00(Rupees Two Thousand and Zero Only) as he undergone Treatment for desease UNDREWENT PHACOEMULSIFICATION WITH IOL IMPLEMENTATION LEFT EYE AND CATARACT LEFT EYE in the Recognised Hopital by the Andhra Pradesh State Government i.e., at DENTAL VENUE MULTI SPECIALITY HOSPITAL, F-14, FIRST FLOOR, DEEPTHI APARTMENTS, S.P. ROAD, SECUNDERABAD. during the period from to and onward transmit to the higher authorities for further necessary action at an early date. | AI16: =CONCATENATE(" With reference to the subject cited, I submit here with the Medical Bills with all the enclosures for Medical Reimbursement for an amount of Rs. ",Z13," ",W8," only)"," as my ",R8," named ",UPPER(Q8)," who is wholly dependent on me has undergone Treatment for the desease ",UPPER(U8)," in the Recognised Hospital by the Andhra Pradesh State Government i.e., at ",UPPER(T8)," during the period ",AA13," and onward transmit to the higher authorities for further necessary action in the matter at an early date.") ->  | AP16: =CONCATENATE(" This is to certify that, the amount of Rs. ",Z13," ",W8," only) is being claimed now in this bill by ",UPPER(Q3),", ",R3,", ",S3,", ",T3,", ",U3," has not been paid previusly towards Medical Reimbursement in respect of ",X13," ",R8," "," named ",UPPER(Q8)," age ","(",MAIN!W8,")"," Years"," who has undergone the Treatment for the desease ",UPPER(U8)," during the period ",AA13) ->  | AU16: =CONCATENATE(" This is to certify that, the amount of Rs. ",Z13," ",W8," only) is being claimed now in this bill by ",UPPER(Q3),", ",R3,", ",S3,", ",T3,", ",U3," has not been paid previously towards Medical Reimbursement in respect of ",UPPER(Q3), " (Self), age ","(",S9,")"," who has undergone the Treatment for the desease ",UPPER(U8)," during the period ",AA13," in the Recognised Hospital By the Andhra Pradesh State Government i.e., at ",UPPER(T8)," as per the records available regarding the Medical Reimbursement defined under the Government Medical Attendance Rules, 1972") -> This is to certify that, the amount of Rs. 2000-00 (Rupees Two Thousand and Zero Only) only) is being claimed now in this bill by SMT. G.SAIVIJAYA KUMAR, School Assistant (English), ZPP. High School, Balayapalli, Balayapalli Mandal, Medak District has not been paid previously towards Medical Reimbursement in respect of SMT. G.SAIVIJAYA KUMAR (Self), age (0) who has undergone the Treatment for the desease UNDREWENT PHACOEMULSIFICATION WITH IOL IMPLEMENTATION LEFT EYE AND CATARACT LEFT EYE during the period from to in the Recognised Hospital By the Andhra Pradesh State Government i.e., at DENTAL VENUE MULTI SPECIALITY HOSPITAL, F-14, FIRST FLOOR, DEEPTHI APARTMENTS, S.P. ROAD, SECUNDERABAD. as per the records available regarding the Medical Reimbursement defined under the Government Medical Attendance Rules, 1972
A17: 16 | B17: Gazetted H.M. Gr-I | C17: 16 | D17: Prakasham District | E17: 6 | F17: 2010-07-10 | I17: 16 | J17: 10300 | L17: 15 | M17: ='Rec. Hos'!C17 -> Amma Hospital, Madhava Nagar, Beside Siva Ramalayam, Nandyal Road, Kurnool | Q17: ENCLOSURES | W17: Self | X17: ="as "&X12 -> as he | Y17: =IF(B55="self",X17,W16) -> as he
A18: 17 | B18: Gazetted H.M. Gr-II | C18: 17 | D18: Ranga Reddy District | E18: 7 | F18: 2010-08-10 | I18: 17 | J18: 10600 | L18: 16 | M18: ='Rec. Hos'!C18 -> Amrutha Children Nursing Home, 5-10-15, Kishanpura, Hanamkonda, Warangal, Dist. | Q18: =IF(MAIN!#REF!=FALSE,"Not Enclosed Essentiality Certificate","Essentiality Certificate") ->  | R18: =IF(MAIN!#REF!=FALSE,1,2) ->  | S18: =IF(R18=2,"",Q18) ->  | T18: =IF(MAIN!#REF!=FALSE,"","Essentiality Certificate") -> 
A19: 18 | B19: Joint Director | C19: 18 | D19: Sreekakulam District | E19: 8 | F19: 2010-09-10 | G19: SURRENDER CLAIMED DAYS | I19: 18 | J19: 10900 | L19: 17 | M19: ='Rec. Hos'!C19 -> Amrutha Nursing Home, Besides Civil Hospital, Karimnagar. | Q19: =IF(MAIN!#REF!=FALSE,"Not Enclosed Emergency Certificate","Emergency Certificate") ->  | R19: =IF(MAIN!#REF!=FALSE,1,2) ->  | S19: =IF(R19=2,"",Q19) ->  | T19: =IF(MAIN!#REF!=FALSE,"","Emergency Certificate") ->  | W19: With reference to the subject cited, I submit herewith the Medical Bills with all the enclosures submitted by KUM. G.SAIVIJAYA KUMAR, School Assistant (English), ZPP. High School, Balayapalli, Ellanthakunta, Kareemnagar District for your kind sanction of the Medical Reimbursement for an amount of Rs. 2000-00(Rupees Two Thousand and Zero Only) as she undergone Treatment for desease UNDREWENT PHACOEMULSIFICATION WITH IOL IMPLEMENTATION LEFT EYE AND CATARACT LEFT EYE in the Recognised Hopital by the Andhra Pradesh State Government i.e., at ANDHRA HOSPITALS, CVR COMPLEX, PRAKASAM ROAD, VIJAYAWADA during the period from 28-07-2010 to 29-07-2010 and onward transmit to the higher authorities for further necessary action at an early date. | AC19: =CONCATENATE(W14,AC16) -> With reference to the subject cited, I submit herewith the Medical Bills with all the enclosures submitted by SRI. G.SAIVIJAYA KUMAR, School Assistant (Phy. Edn.), ZPP. High School, Balayapalli, Jammikunta, Kareemnagar District for your kind sanction of the Medical Reimbursement for an amount of Rs. 2000-00(Rupees Two Thousand and Zero Only) as he undergone Treatment for desease UNDREWENT PHACOEMULSIFICATION WITH IOL IMPLEMENTATION LEFT EYE AND CATARACT LEFT EYE in the Recognised Hopital by the Andhra Pradesh State Government i.e., at DENTAL VENUE MULTI SPECIALITY HOSPITAL, F-14, FIRST FLOOR, DEEPTHI APARTMENTS, S.P. ROAD, SECUNDERABAD. during the period from to and onward transmit to the higher authorities for further necessary action at an early date.
A20: 19 | B20: Junior Assistant | C20: 19 | D20: Vishakapatnam District | E20: 9 | F20: 2010-10-10 | I20: 19 | J20: 11200 | L20: 18 | M20: ='Rec. Hos'!C20 -> Amulya Multi Spefciality Dental Clinic, 12-13- 1282, Mehtab Arcade, Opp. Ganesh Temple, Tarnaka 'X' Road, Secunderabad | Q20: =IF(MAIN!#REF!=FALSE,"Not Enclosed Discharge Summary","Discharge Summary") ->  | R20: =IF(MAIN!#REF!=FALSE,1,2) ->  | T20: =IF(MAIN!#REF!=FALSE,"","Discharge Summary") ->  | AI20: =CONCATENATE(" With reference to the subject cited, I submit here with the Medical Bills with all the enclosures for Medical Reimbursement for an amount of Rs. ",Z13," ",W8," only), "," as I have undergone Treatment for the desease ",UPPER(U8)," in the Recognised Hospital by the Andhra Pradesh State Government i.e., at ",UPPER(T8)," during the period ",AA13," and onward transmit to the higher authorities for further necessary action in the matter at an early date.") -> With reference to the subject cited, I submit here with the Medical Bills with all the enclosures for Medical Reimbursement for an amount of Rs. 2000-00 (Rupees Two Thousand and Zero Only) only), as I have undergone Treatment for the desease UNDREWENT PHACOEMULSIFICATION WITH IOL IMPLEMENTATION LEFT EYE AND CATARACT LEFT EYE in the Recognised Hospital by the Andhra Pradesh State Government i.e., at DENTAL VENUE MULTI SPECIALITY HOSPITAL, F-14, FIRST FLOOR, DEEPTHI APARTMENTS, S.P. ROAD, SECUNDERABAD. during the period from to and onward transmit to the higher authorities for further necessary action in the matter at an early date. | AP20: =CONCATENATE(" in the Recongised Hospital by the Andhra Pradesh State Government i.e., at ",UPPER(T8)," as per the records available regarding the Medical Reimbursement defined under the Government Medical Attendance Rules, 1972") -> in the Recongised Hospital by the Andhra Pradesh State Government i.e., at DENTAL VENUE MULTI SPECIALITY HOSPITAL, F-14, FIRST FLOOR, DEEPTHI APARTMENTS, S.P. ROAD, SECUNDERABAD. as per the records available regarding the Medical Reimbursement defined under the Government Medical Attendance Rules, 1972
A21: 20 | B21: Junior Lecturer | C21: 20 | D21: Vizianagaram District | E21: 10 | F21: 2010-11-10 | G21: 1 | H21: Not Applicable | I21: 20 | J21: 11530 | L21: 19 | M21: ='Rec. Hos'!C21 -> Amulya Nursing Home, Narasaropet, Guntur Dist. | Q21: =IF(MAIN!#REF!=FALSE,"Not Enclosed Investigation Report","Investigation Report") ->  | R21: =IF(MAIN!#REF!=FALSE,1,2) ->  | T21: =IF(MAIN!#REF!=FALSE,"","Investigation Report") -> 
A22: 21 | B22: L.F.L. Head Master | C22: 21 | D22: Warangal District | E22: 11 | F22: 2010-12-10 | G22: 2 | H22: 15 | I22: 21 | J22: 11860 | L22: 20 | M22: ='Rec. Hos'!C22 -> Anasuya Institute of Medical Sciences, Pogathota, Nellore. | Q22: =IF(MAIN!#REF!=FALSE,"Not Enclosed Dependent Certificate","Dependent Certificate") ->  | R22: =IF(MAIN!#REF!=FALSE,1,2) ->  | T22: =IF(MAIN!#REF!=FALSE,"","Dependent Certificate") ->  | AP22: =CONCATENATE(AP16,AP20) ->  | AU22: =IF(R8="self",AU16,AP22) -> 
A23: 22 | B23: L.F.L. Head Mistress | C23: 22 | D23: West Godavari District | E23: 12 | F23: 2011-01-10 | G23: 3 | H23: 30 | I23: 22 | J23: 12190 | L23: 21 | M23: ='Rec. Hos'!C23 -> Andhra Hospitals, CVR Complex, Prakasam Road, Vijayawada | Q23: =IF(MAIN!#REF!=FALSE,"Not Enclosed Medical Bills","Medical Bills") ->  | R23: =IF(MAIN!#REF!=FALSE,1,2) ->  | T23: =IF(MAIN!#REF!=FALSE,"","Medical Bills") -> 
A24: 23 | B24: Language Pandit | C24: 23 | D24: YSR Kadapa District | E24: 13 | F24: 2011-02-10 | I24: 23 | J24: 12550 | L24: 22 | M24: ='Rec. Hos'!C24 -> Ankith Multi SpecialtyHospital, Ibrahim Patnam, R.R. Dist. | Q24: =IF(MAIN!#REF!=FALSE,"Not Enclosed Check List","Checklist") ->  | R24: =IF(MAIN!#REF!=FALSE,1,2) ->  | T24: =IF(MAIN!#REF!=FALSE,"","Check List") -> 
A25: 24 | B25: Language Pandit (Hindi) | I25: 24 | J25: 12910 | L25: 23 | M25: ='Rec. Hos'!C25 -> Anupama Hospital, 16-31/494 & 495, 6th Phase, KPHB Colony, JNTU Road, Kukatpally, Hyderabad | Q25: =IF(MAIN!#REF!=FALSE,"Not Enclosed Non-Drawl Certificate","Non-Drawl Certificate") ->  | R25: =IF(MAIN!#REF!=FALSE,1,2) ->  | T25: =IF(MAIN!#REF!=FALSE,"","Non-Drawl Certificate") -> 
A26: 25 | B26: Language Pandit (Sanskrit) | G26: CPS | I26: 25 | J26: 13270 | L26: 24 | M26: ='Rec. Hos'!C26 -> Aparna Hospitals Pvt. Ltd., 2-5-680, Subhedari, Hanumakonda, Warangal | Q26: SUM | R26: =SUM(R18:R25) ->  | AC26: =IF(R8="self",AC19,W19) ->  | AI26: as I have undergone Treatment for the desease | AK26: =$B$55 -> self | AL26: =IF(AK26="self",AI26,AI27) -> as I have undergone Treatment for the desease
A27: 26 | B27: Language Pandit (Tamil) | C27: SCALE OF PAY | G27: 1 | H27: Yes | I27: 26 | J27: 13660 | L27: 25 | M27: ='Rec. Hos'!C27 -> Apex Hosptials, 75-6-23, Prakash Nagar, Rajahmundry, E.G. Dist. | R27: =IF(R26=16,"","CAUTION: You have to enclose all the Documents to your Medical Bill which are mentioned above.") ->  | AI27: =CONCATENATE(" as my ",AK26," named ",F65," ",UPPER(MAIN!R6)," who is wholly dependent on me has undergone Treatment for the desease") -> as my self named Smt. G.PADMAVATHAMMA who is wholly dependent on me has undergone Treatment for the desease
A28: 27 | B28: Language Pandit (Telugu) | C28: 1 | D28: 6700-20110 | G28: 2 | H28: No | I28: 27 | J28: 14050 | L28: 26 | M28: ='Rec. Hos'!C28 -> Apollo DRDO Hospital, DRML 'X' Road, Kanchanbagh, Hyderabad | O28: 10
A29: 28 | B29: Language Pandit (Urdu) | C29: 2 | D29: 6900-20680 | I29: 28 | J29: 14440 | L29: 27 | M29: ='Rec. Hos'!C29 -> Apollo Hospital, Jublee Hills, Hyderabad | O29: DDO Address | Q29: Employee Address | W29: DEPENDENT CERTIFICATE
A30: 29 | B30: Mandal Educational Officer | C30: 3 | D30: 7100-21250 | F30: 5470-12385 | I30: 29 | J30: 14860 | L30: 28 | M30: ='Rec. Hos'!C30 -> Apollo Hospital, Vikrampuri, Secunderabad. | N30: name | Q30: name | R30: =S30&" "&MAIN!I6 -> Sri. G.Saivijaya Kumar | S30: =$D$64 -> Sri. | T30: The District Educational Officer | W30: =CONCATENATE(" I",", ",UPPER(Q3),", ",R3,", ",S3,", ",T3,", ",U3,", "," do hereby declare that, ",UPPER(Q8),", age ","(",S9,")"," Years is my ",R8," and has no property of income of ",H97," own and that, ",H82," is wholly dependent on me only, ",H82," is also not a Employee or Pensioner") -> 
A31: 30 | B31: Office Subordinate | C31: 4 | D31: 7520-22430 | F31: 5750-13030 | I31: 30 | J31: 15280 | L31: 29 | M31: ='Rec. Hos'!C31 -> Apollo Hospital, Waltair Main Road, Visakhapatnam | N31: Desig | O31: =LOOKUP(O28,A69:B80,B69:B80) -> Principal | Q31: Desig | R31: =$B$51 -> School Assistant (Phy. Edn.)
A32: 31 | B32: Physical Education Teacher | C32: 5 | D32: 7740-23040 | F32: 7200-16925 | I32: 31 | J32: 15700 | L32: 30 | M32: ='Rec. Hos'!C32 -> Apollo Hospitals, D.No. 13-1-13, Main Road, Kakinada. | N32: Place | O32: =MAIN!$V$19 -> ZPPHS,Balayapalli | Q32: Place | R32: =MAIN!$G$8 -> ZPP. High School, Balayapalli | S32: =IF(MAIN!Q10>25000,Code!T31,Code!T30) -> The District Educational Officer | T32: The Director of School Education, A.P.,
A33: 32 | B33: Principal | C33: 6 | D33: 7960-23560 | F33: 7385-17475 | I33: 32 | J33: 16150 | L33: 31 | M33: ='Rec. Hos'!C33 -> Apollo Nursing Home, 3-3-96, Civil Hospital Road, Karimnagar. | N33: Mandal | O33: =Mandals2!AD2 -> Chinnamandem | Q33: Mandal | R33: =Mandals1!AD2 -> Jammikunta | T33: Near Telephone Bhavan, Saifabad,
A34: 33 | B34: Project Officer | C34: 7 | D34: 8440-24950 | F34: 9285-21550 | I34: 33 | J34: 16600 | L34: 32 | M34: ='Rec. Hos'!C34 -> Apollo Reach Hospitals, Railway Station Road, Karimnagar | N34: DT | O34: =Mandals2!Z1 -> Kaddapah District | Q34: DT | R34: =Mandals1!Z1 -> Kareemnagar District | T34: Hyderabad-500004 | W34: AVAILMENT CERTIFICATE
A35: 34 | B35: R.J.D.S.E. | C35: 8 | D35: 9200-27000 | F35: 10285-24200 | I35: 34 | J35: 17050 | L35: 33 | M35: ='Rec. Hos'!C35 -> Apple Dental Care, Opp. Vijaya Talkies, Shanmuka Complex, Eluru Road, Vijayawada | O35: =CONCATENATE(O30,O31,O32,O33,O34) -> PrincipalZPPHS,BalayapalliChinnamandem Kaddapah District | R35: =CONCATENATE(R30,R31,R32,R33,R34) -> Sri. G.Saivijaya KumarSchool Assistant (Phy. Edn.)ZPP. High School, BalayapalliJammikuntaKareemnagar District | W35: =CONCATENATE(" This is to certify that",", ",UPPER(Q3),",working as ",R3,", ",S3,", ",T3,", ",U3,", "," He was availing medical reimbursement for second time to his mother, ",UPPER(Q8),", age ","(",S9,")"," Years on the desease of ",UPPER(U8)) -> 
A36: 35 | B36: Record Assistant | C36: 9 | D36: 9460-27700 | F36: 14600-29250 | I36: 35 | J36: 17540 | L36: 34 | M36: ='Rec. Hos'!C36 -> Aravind Eye Care Centre, 20/1100, Radha Krishna Nagar, Lane Opp. Ramesh Theatre, Kadapa
A37: 36 | B37: School Assistant | C37: 10 | D37: 10020-29200 | I37: 36 | J37: 18030 | L37: 35 | M37: ='Rec. Hos'!C37 -> Aravind Eye Hospital and Lasic Center, Santhosh Nagar Colony, Mehadipatnam, Hyderabad.
A38: 37 | B38: School Assistant (Bio. Sc.) | C38: 11 | D38: 10900-31550 | I38: 37 | J38: 18520 | L38: 36 | M38: ='Rec. Hos'!C38 -> Aravind Kidney Centre, 15/402,Brindavanam, Main Road, Nellore.
A39: 38 | B39: School Assistant (English) | C39: 12 | D39: 11530-33200 | I39: 38 | J39: 19050 | L39: 37 | M39: ='Rec. Hos'!C39 -> Aravind Nethralaya Meenakshi Diabetes and Endocrinology and Super Speciality Hospital, Swathantra Park Street, Gandhi Nagar, Nellore
A40: 39 | B40: School Assistant (Hindi) | C40: 13 | D40: 11860-34050 | I40: 39 | J40: 19580 | L40: 38 | M40: ='Rec. Hos'!C40 -> ARK Hospital, Kukatpally, Hyderabad.
A41: 40 | B41: School Assistant (Maths) | C41: 14 | D41: 12550-35800 | I41: 40 | J41: 20110 | L41: 39 | M41: ='Rec. Hos'!C41 -> Arun Kidney Center, 29-23-9, Tadepallivari Street, Suryaraopet, Vijayawada
A42: 41 | B42: School Assistant (Phy. Edn.) | C42: 15 | D42: 12910-36700 | E42: 1 | F42: 10900-31550 | I42: 41 | J42: 20680 | L42: 40 | M42: ='Rec. Hos'!C42 -> Aruna Hospital, Road No. 4, Chandrapuri Colony, L.B. Nagar, Hyderabad.
A43: 42 | B43: School Assistant (Phy. Science) | C43: 16 | D43: 13660-38570 | E43: 2 | F43: 14860-39540 | I43: 42 | J43: 21250 | L43: 41 | M43: ='Rec. Hos'!C43 -> Asha Hospitals, 7/201, Court Road, Anantapur.
A44: 43 | B44: School Assistant (Soc. Stu.) | C44: 17 | D44: 14860-39540 | E44: 3 | F44: 18030-43630 | I44: 43 | J44: 21820 | L44: 42 | M44: ='Rec. Hos'!C44 -> Ashok Super Speciality Dental & Orthodontic and Implantology Centre, Opp. K.K.Nursing Home, Civil Hospital Road, Karimnagar
A45: 44 | B45: School Assistant (Telugu) | C45: 18 | D45: 15280-40510 | E45: 4 | F45: 16150-42590 | I45: 44 | J45: 22430 | L45: 43 | M45: ='Rec. Hos'!C45 -> Ashwini SpecialtyDental Hospital, Humayun Nagar, Hyderabad
A46: 45 | B46: School Assistant (Urdu) | C46: 19 | D46: 16150-42590 | E46: 5 | F46: 18030-43630 | I46: 45 | J46: 23040 | L46: 44 | M46: ='Rec. Hos'!C46 -> Asian Institute of Gastroenterology, 6-3-661, Somajiguda, Hyderabad
A47: 46 | B47: Secondary Grade Teacher | C47: 20 | D47: 18030-43630 | E47: 6 | F47: 21820-48160 | I47: 46 | J47: 23650 | L47: 45 | M47: ='Rec. Hos'!C47 -> Aswini Dental Hospital, 143-A Block, Aditya Enclave, opp. Saradhi Studio, Ameerpet, Hyderabad.
A48: 47 | B48: Senior Assistant | C48: 21 | D48: 19050-45850 | E48: 7 | F48: 21820-48160 | I48: 47 | J48: 24300 | L48: 46 | M48: ='Rec. Hos'!C48 -> Aswini Hospital, Near RTC Bus Stand Mangalagiri Road, Guntur
A49: 48 | B49: Senior Lecturer | C49: 22 | D49: 20680-46960 | F49: 1 | G49: =LOOKUP(F49,F50:G52,G50:G52) -> ZPPF | I49: 48 | J49: 24950 | L49: 47 | M49: ='Rec. Hos'!C49 -> Aswini Netralayam, Guntur Road, Narsaraopeta, Guntur Dist.
A50: 49 | B50: Superintendent | C50: 23 | D50: 21820-48160 | F50: 1 | G50: ZPPF | H50: ZPPF Loan | I50: 49 | J50: 25600 | L50: 48 | M50: ='Rec. Hos'!C50 -> Aswini Super Specialty Dental Hospital, 29-13- 84, Opp. Badri Heritage Apartments, Kaleswararao Road, suryaraopet, Vijayawada
A51: 41 | B51: =LOOKUP(A51,A2:B50,B2:B50) -> School Assistant (Phy. Edn.) | C51: 24 | D51: 23650-49360 | F51: 2 | G51: GPF | H51: GPF Loan | I51: 50 | J51: 26300 | L51: 49 | M51: ='Rec. Hos'!C51 -> AVPR Super Specialtiy Dental Hl., 1-1-191, Tahasil Chowrastha, Jagityal, Karimnagar Dist.
C52: 25 | D52: 25600-50560 | F52: 3 | G52: CPS | H52: CPS Loan | I52: 51 | J52: 27000 | L52: 50 | M52: ='Rec. Hos'!C52 -> Aware Global Hospitals, 8-16-01, Sowbhagya Nagar, Sagar Road, Lingoliguda, Saroornagar, Hyderabad.
C53: 26 | D53: 27000-51760 | F53: 1 | G53: =LOOKUP(F53,F50:H52,H50:H52) -> ZPPF Loan | I53: 52 | J53: 27700 | L53: 51 | M53: ='Rec. Hos'!C53 -> Axon Hospitals, 8-3-215. Srinivasanagar Colony West, Opp. ICICI Bank, S.R.Nagar, Hyderabad
C54: 27 | D54: 5470-12385 | F54: 15 | I54: 53 | J54: 28450 | L54: 52 | M54: ='Rec. Hos'!C54 -> Baba Dental Clinic, 2nd Floor, Mediworld, 14- 37-39, Maharanipet, Visakhapatnam
A55: 3 | B55: =LOOKUP(A55,A56:B66,B56:B66) -> self | C55: 28 | D55: 5750-13030 | F55: =LOOKUP(F54,C28:D60,D28:D60) -> 12910-36700 | I55: 54 | J55: 29200 | L55: 53 | M55: ='Rec. Hos'!C55 -> Balaji Cancer Center, Gowri Shankar Theatre Road, Kothapet, Guntur.
A56: 1 | B56: Father | C56: 29 | D56: 7200-16925 | I56: 55 | J56: 29950 | L56: 54 | M56: ='Rec. Hos'!C56 -> Balaji Dental Hospital,11-231 , Opp:Girls Jr. College, Sai Nagar, Ananthapur.
A57: 2 | B57: Mother | C57: 30 | D57: 7385-17475 | I57: 56 | J57: 30750 | L57: 55 | M57: ='Rec. Hos'!C57 -> Balaji Eye Care & Laser Centre, 1st Floor, 6-3- 788/32, Durga Nagar Colony, Opp. Chandana Bros. Ameerpet, Hyderabad | O57: 1 | P57: =LOOKUP(O57,O58:P61,P58:P61) -> S/o
A58: 3 | B58: self | C58: 31 | D58: 9285-21550 | I58: 57 | J58: 31550 | L58: 56 | M58: ='Rec. Hos'!C58 -> Balaji Hospital, Opp. Ram Laxman Theater, S.V.N. Road, Warangal | O58: 1 | P58: S/o
A59: 4 | B59: Legal Hier | C59: 32 | D59: 10285-24200 | I59: 58 | J59: 32350 | L59: 57 | M59: ='Rec. Hos'!C59 -> Balaji Hospital, Plot No. 34,34/A, N.C.L. South, Pet Basheerabad, Medchal Road, Secunderabad. | O59: 2 | P59: D/o
A60: 5 | B60: Husband | C60: 33 | D60: 14600-29250 | F60: 1 | G60: sir | I60: 59 | J60: 33200 | L60: 58 | M60: ='Rec. Hos'!C60 -> Balaji Multi Speciality Hospital, Near RTC Bus Stand Circle, Madanapalli, Chittoor District. | O60: 3 | P60: W/o
A61: 6 | B61: Wife | C61: 1 | D61: Sri. | E61: 1 | F61: 2 | G61: Medam | I61: 60 | J61: 34050 | L61: 59 | M61: ='Rec. Hos'!C61 -> Balaji Orthopaedic & Trauma Hospital, 13-7- 939/4, Tuda Office Road, Tirupathi | O61: 4 | P61: H/o
A62: 7 | B62: Son | C62: 2 | D62: Smt. | E62: =LOOKUP(E61,F60:G62,G60:G62) -> sir | F62: 3 | G62: Medam | I62: 61 | J62: 34900 | L62: 60 | M62: ='Rec. Hos'!C62 -> Bharat Dental Care Multi Speciality Dental Hospital, Theatre Road, Tuni, E.G.Dist.
A63: 8 | B63: Daughter | C63: 3 | D63: Kum. | I63: 62 | J63: 35800 | L63: 61 | M63: ='Rec. Hos'!C63 -> Bharathi Hospitals, Gandhi Nagar, R.S. Road, Y.M. Palli, Kadapa.
A64: 9 | B64: Widower | C64: 1 | D64: =LOOKUP(C64,C61:D63,D61:D63) -> Sri. | I64: 63 | J64: 36700 | L64: 62 | M64: ='Rec. Hos'!C64 -> Bhavya Multi Speciality Hospital, Plot NO.65, Road No.5, New Samathapuri Colony, Nagole X Roads, Hyderabad
A65: 10 | B65: Nephew | C65: 1 | D65: Baby. | E65: 6 | F65: =LOOKUP(E65,C65:D71,D65:D71) -> Smt. | I65: 64 | J65: 37600 | L65: 63 | M65: ='Rec. Hos'!C65 -> Bhimavaram Hospital, J.P. Road, Bhimavaram.
A66: 11 | B66: Niece | C66: 2 | D66: Kum. | I66: 65 | J66: 38570 | L66: 64 | M66: ='Rec. Hos'!C66 -> Bhuma Super Speciality Dental Hospital, 21/604, Opp. Masjid, 7 Roads Circle, Kadapa
C67: 3 | D67: Master. | I67: 66 | J67: 39540 | L67: 65 | M67: ='Rec. Hos'!C67 -> Bollineni Eye Hospital and Research Center, Dargametta, Nellore.
A68: DDO Desgn | C68: 4 | D68: Miss. | I68: 67 | J68: 40510 | L68: 66 | M68: ='Rec. Hos'!C68 -> Bollineni Heart Centre Pvt. Ltd. 77-9-37/1, Seelam Nookaraju Complex Street, Rajhmundry, E.G.Dist.
A69: 1 | B69: Assistant Director | C69: 5 | D69: Mrs. | I69: 68 | J69: 41550 | L69: 67 | M69: ='Rec. Hos'!C69 -> Bollineni Heart Centre, 46-7-47, Danavaipet, Rajhmundry.
A70: 2 | B70: Deputy Director | C70: 6 | D70: Smt. | I70: 75 | J70: 49360 | L70: 68 | M70: ='Rec. Hos'!C70 -> Bollineni Ramanaiah Memorial Hospital Pvt. Ltd., (Dental Department) Ambuja Centre, Durgamitta, Nellore.
A71: 3 | B71: Deputy Educational Officer | C71: 7 | D71: Sri. | I71: 76 | J71: 50560 | L71: 69 | M71: ='Rec. Hos'!C71 -> Bollineni Ramanaiah Memorial Hospital, Ambuja Centre, Durgamitta, Nellore.
A72: 4 | B72: Deputy Inspector of Schools | I72: 77 | J72: 51760 | L72: 70 | M72: ='Rec. Hos'!C72 -> Bombay Nursing Home, Hyderabad Road, Nizamabad.
A73: 5 | B73: Gazetted H.M. Gr-I | C73: 1 | D73: =LOOKUP(C73,C74:D75,D74:D75) -> Government | I73: 78 | J73: 53060 | L73: 71 | M73: ='Rec. Hos'!C73 -> C.C. Shoroff Memorial Hospital, Barkatpura, Hyderabad
A74: 6 | B74: Gazetted H.M. Gr-II | C74: 1 | D74: Government | I74: 79 | J74: 54360 | L74: 72 | M74: ='Rec. Hos'!C74 -> C.N. Hospitals, Birla Compound, B-Camp, kurnool.
A75: 7 | B75: Head Master | C75: 2 | D75: Private | I75: 80 | J75: 55660 | L75: 73 | M75: ='Rec. Hos'!C75 -> C.S. Reddy Super, Speciality Dental Hospital, 3/271 Dr. Prabhakar Rao, Hospital Complex, Christial Lane , Kadapa.
A76: 8 | B76: Head Mistress | I76: 81 | J76: 5470 | L76: 74 | M76: ='Rec. Hos'!C76 -> Care Dental Specialities Hospital, 40/353-C, Gandhi Nagar, Kurnool
A77: 9 | B77: Mandal Educational Officer | I77: 82 | J77: 5605 | L77: 75 | M77: ='Rec. Hos'!C77 -> Care Hospital (A unit of Quality care India Ltd), Banjara Hills, Hyderabad.
A78: 10 | B78: Principal | I78: 83 | J78: 5750 | L78: 76 | M78: ='Rec. Hos'!C78 -> Care Hospital (Quality Care Inida Limited) Exhibition Road, Nampally, Hyderabad.
A79: 11 | B79: Project Officer | I79: 84 | J79: 5895 | L79: 77 | M79: ='Rec. Hos'!C79 -> Care Hospital, Waltair Main Road, Visakhapatnam
A80: 12 | B80: R.J.D.S.E. | I80: 85 | J80: 6040 | L80: 78 | M80: ='Rec. Hos'!C80 -> Care Super Specialty Dental Hospital Pvt. Ltd, Juvvalapalem Road, Bhimavaram.
I81: 86 | J81: 6195 | L81: 79 | M81: ='Rec. Hos'!C81 -> Care Super Specialty Hospital, 16-11/72, Pogathota, Nellore.
E82: 1 | F82: Father | G82: he | H82: =VLOOKUP(A55,E82:G92,3,FALSE) -> he | I82: 87 | J82: 6350 | L82: 80 | M82: ='Rec. Hos'!C82 -> Chaitanya Dental Hospital, 1-1-230/33 Jyothi Bhavan, Chikkadpally, Hyderabad.
E83: 2 | F83: Mother | G83: she | I83: 88 | J83: 6505 | L83: 81 | M83: ='Rec. Hos'!C83 -> Chaitanya Eye Hospital, Tikkili Road, Near Siddhartha Arts College, Mogalrajpuram, Vijayawada.
E84: 3 | F84: self | G84: he | I84: 89 | J84: 6675 | L84: 82 | M84: ='Rec. Hos'!C84 -> Chaitanya Hospital, Near By-Pass, Anjaiah Road, Ongole, Prakasam Dist.
E85: 4 | F85: Legal Hier | G85: she | I85: 90 | J85: 6845 | L85: 83 | M85: ='Rec. Hos'!C85 -> Challa Eye Care Centre, Plot No. 8-2-268/R/9- P, Sagar Society Main Road, Road No.2, Banjara Hills, Hyderabad
B86: Assistant Director | C86: 2 | E86: 5 | F86: Husband | G86: he | I86: 91 | J86: 7015 | L86: 84 | M86: ='Rec. Hos'!C86 -> Challa Hospital, 7-1-71/A/1, Dharam Karan Road, Ameerpet, Hyderabad.
B87: Deputy Director | C87: 2 | E87: 6 | F87: Wife | G87: she | I87: 92 | J87: 7200 | L87: 85 | M87: ='Rec. Hos'!C87 -> Chandamama Children's Hospital, Sundaraiah Bhavan Road, Ongole, Prakasam Dist.
B88: Deputy Educational Officer | C88: 1 | E88: 7 | F88: Son | G88: he | I88: 93 | J88: 7385 | L88: 86 | M88: ='Rec. Hos'!C88 -> Charitasri Hospitals Ltd., 29-6-8/1, Ramachandra Rao Road, Suryaraopet, Vijayawada - 520002.
B89: Deputy Inspector of Schools | C89: 1 | E89: 8 | F89: Daughter | G89: she | I89: 94 | J89: 7570 | L89: 87 | M89: ='Rec. Hos'!C89 -> Chelmada Ananda Rao Institute of Medical Sciences, Karimnagar
B90: Gazetted H.M. Gr-I | C90: 2 | E90: 9 | F90: Widower | G90: she | I90: 95 | J90: 7770 | L90: 88 | M90: ='Rec. Hos'!C90 -> Citi Orthopaedic Centre, H.No. 32-6-18A, Sikha Mani Centre, Prajasaktinagar, Vijayawada
B91: Gazetted H.M. Gr-II | C91: 2 | E91: 10 | F91: Nephew | G91: he | I91: 96 | J91: 7970 | L91: 89 | M91: ='Rec. Hos'!C91 -> City Cancer Center, 33-25-33, Ch. Venkata Krishnaiah Street, Suryaraopet, Vijayawada.
B92: Head Master | C92: 2 | E92: 11 | F92: Niece | G92: she | I92: 97 | J92: 8170 | L92: 90 | M92: ='Rec. Hos'!C92 -> City Super Speciality Dental Hospital, Shobha Pavani Complex, 1 st Floor, Vidya Nagar, Hyderabad.
B93: Head Mistress | C93: 2 | I93: 98 | J93: 8385 | L93: 91 | M93: ='Rec. Hos'!C93 -> Clear Vision Eye Hospital, 3-6-272, Opp. Telugu Academy, Himayatnagar, Hyd.
B94: Mandal Educational Officer | C94: 1 | I94: 99 | J94: 8600 | L94: 92 | M94: ='Rec. Hos'!C94 -> Curie City Cancer Hospital, Padavalarevu, Gunadala, Vijayawada
B95: Principal | C95: 2 | I95: 100 | J95: 8815 | L95: 93 | M95: ='Rec. Hos'!C95 -> D.B.R. & S.K. Super Specilaity Hospital, 18-1- 505, Mask Road, Opp: V.V.Mahal, Tirupathi
B96: Project Officer | C96: 1 | I96: 101 | J96: 9050 | L96: 94 | M96: ='Rec. Hos'!C96 -> D.B.R. Dental Hospital, H. No. 6-2-122/1, Behind Z.P. Khammam.
B97: R.J.D.S.E. | C97: 1 | E97: 1 | F97: Father | G97: his | H97: =VLOOKUP(A55,E97:G107,3,FALSE) -> his | I97: 102 | J97: 9285 | L97: 95 | M97: ='Rec. Hos'!C97 -> D.V.Raju Eye Hospital, P.R.College Road, Kakinada, East Godavary Dist.
E98: 2 | F98: Mother | G98: her | I98: 103 | J98: 9520 | L98: 96 | M98: ='Rec. Hos'!C98 -> Dental Venue Multi Speciality Hospital, F-14, First Floor, Deepthi Apartments, S.P. Road, Secunderabad.
E99: 3 | F99: self | G99: his | I99: 104 | J99: 9775 | L99: 97 | M99: ='Rec. Hos'!C99 -> Dentnova Denal Hospital, 1st floor, Taj Complex, Nampally, Hyderabad.
E100: 4 | F100: Legal Hier | G100: her | I100: 105 | J100: 10030 | L100: 98 | M100: ='Rec. Hos'!C100 -> Dentocare Super speciailty Dental Hospital, 12-2-962, Opp: Baby Hospital, 2nd cross, Sai Nagar, Ananthapur.
A101: 1 | B101: Adilabad District | C101: Adilabad | E101: 5 | F101: Husband | G101: his | I101: 106 | J101: 10285 | L101: 99 | M101: ='Rec. Hos'!C101 -> Denty's (A unit of Today's Health Care India Pvt. Ltd.) 60-1-7/1, Siddhartha Nagar, Vijayawada
A102: 2 | B102: Ananthapur District | C102: Ananthapur | E102: 6 | F102: Wife | G102: her | I102: 107 | J102: 10565 | L102: 100 | M102: ='Rec. Hos'!C102 -> Devishetty Super Speciality Hospital, Civil Hospital Road, Karimnagar
A103: 3 | B103: APSR Nellore District | C103: Nellore | E103: 7 | F103: Son | G103: his | I103: 108 | J103: 10845 | L103: 101 | M103: ='Rec. Hos'!C103 -> Diacon Diabetes Specialty Centre & Diagnostics, VV's Vintage Boulavard, 1st Floor, H.No. 6-3-1093, Rajbhavan Road, Somajiguda, Hyderabad.
A104: 4 | B104: Chittoor District | C104: Chittoor | E104: 8 | F104: Daughter | G104: her | I104: 109 | J104: 11125 | L104: 102 | M104: ='Rec. Hos'!C104 -> Dilsuknagar Super Speciality Dental Hospital, Sirigiri Complex, Dilsulknagar, Hyderabad.
A105: 5 | B105: East Godavari District | C105: Kakinada | E105: 9 | F105: Widower | G105: her | I105: 110 | J105: 11440 | L105: 103 | M105: ='Rec. Hos'!C105 -> DNR Advanced Dental Hospital, 16-2-149, Pogathota, Nellore
A106: 6 | B106: Guntur District | C106: Guntur | E106: 10 | F106: Nephew | G106: his | I106: 111 | J106: 11755 | L106: 104 | M106: ='Rec. Hos'!C106 -> Dr. Akbar Eye Hospital and Laser Center, 12- 3-234, 6th Lane, Srinagar, Ananthapur
A107: 7 | B107: Hyderabad District | C107: Hyderabad | E107: 11 | F107: Niece | G107: her | I107: 112 | J107: 12070 | L107: 105 | M107: ='Rec. Hos'!C107 -> Dr. Anji Reddy Multi Specialty Hospital Pvt. Ltd., 16-687, Main Road, Piduguralla, Guntur.
A108: 8 | B108: Kareemnagar District | C108: Kareem Nagar | I108: 113 | J108: 12385 | L108: 106 | M108: ='Rec. Hos'!C108 -> Dr. Gowds Dental Hospitals, #19, Durga Enclave, Road No.12, Banjara Hills, Hyderabad
A109: 9 | B109: Khammam District | C109: Khammam | I109: 114 | J109: 12700 | L109: 107 | M109: ='Rec. Hos'!C109 -> Dr. J.S.R. Dental Health Speciality, 1-128, Surya Towers, Bhavani Nagar, Malkajgiri, Hyderabad.
A110: 10 | B110: Krishna District | C110: Machilipatnam | I110: 115 | J110: 13030 | L110: 108 | M110: ='Rec. Hos'!C110 -> Dr. Konda Reddy Dental Hospital, 16/749, Shankara Agraharam, Nellore.
A111: 11 | B111: Kurnool District | C111: Kurnool | I111: 116 | J111: 13390 | L111: 109 | M111: ='Rec. Hos'!C111 -> Dr. Kotareddy Hospital, Main Road, Kandukur, Prakasam Dist.
A112: 12 | B112: Mahboobnagar District | C112: Mahboobnagar | I112: 117 | J112: 13750 | L112: 110 | M112: ='Rec. Hos'!C112 -> Dr. Lakshman's Institute of Orthopedics, C.V.R.N. Road, Karimnagar.
A113: 13 | B113: Medak District | C113: Sanga Reddy | I113: 118 | J113: 14175 | L113: 111 | M113: ='Rec. Hos'!C113 -> Dr. Malik Speciality Dental Cosmotic & Surgery Centre, R.P.Road, Secunderabad
A114: 14 | B114: Nalgonda District | C114: Nalgonda | I114: 119 | J114: 14600 | L114: 112 | M114: ='Rec. Hos'!C114 -> Dr. PJR Super Speciality Dental Hospital, 8-3- 318/6B/7, Engineers Colony, Yousufguda Main Road, Hyderabad
A115: 15 | B115: Nizamabad District | C115: Nizamabad | I115: 120 | J115: 15025 | L115: 113 | M115: ='Rec. Hos'!C115 -> Dr. Prasad's Multi Specialty Dental Hospital, Banjara Hills, Hyderabad.
A116: 16 | B116: Prakasham District | C116: Ongole | I116: 121 | J116: 15500 | L116: 114 | M116: ='Rec. Hos'!C116 -> Dr. Ramayya's Urology, Nephrology Institute & Hospital Pvt. Ltd. Adg. New MLA Quarters, Basheerbagh, Hyderabad.
A117: 17 | B117: Ranga Reddy District | C117: Hyderabad | I117: 122 | J117: 15975 | L117: 115 | M117: ='Rec. Hos'!C117 -> Dr. Sridhar International Dental Hospital & Research Center, Eluru Road, Vijayawada.
A118: 18 | B118: Sreekakulam District | C118: Sreekakulam | I118: 123 | J118: 16450 | L118: 116 | M118: ='Rec. Hos'!C118 -> Dr. Vivekananda Reddy's Dental Hospital Multi Specialty and Inplant Center, Dilsukhnagar, Hyderabad.
A119: 19 | B119: Vishakapatnam District | C119: Vishakapatnam | I119: 124 | J119: 16925 | L119: 117 | M119: ='Rec. Hos'!C119 -> Dr.Bhoom Reddy's Hospital, Civil Hospital Raod, Karimnagar.
A120: 20 | B120: Vizianagaram District | C120: Vizianagaram | I120: 125 | J120: 17475 | L120: 118 | M120: ='Rec. Hos'!C120 -> Dr.Ramesh Cardiac & Multi Speciality Hospital Ltd., (City Cardiac Research Center Ltd) Ring Road, Near ITI College, Vijyawada - 520008.
A121: 21 | B121: Warangal District | C121: Warangal | I121: 126 | J121: 18025 | L121: 119 | M121: ='Rec. Hos'!C121 -> Dr.Sreeedhar's Kidney & Multi Speciality Hospital, 13-6-437/I/L/I, Near Al-Quaba Masjid, Khadesrbagh, Nanal Nagar 'X' Road, Mehidipatnam, Hyderabad
A122: 22 | B122: West Godavari District | C122: Elure | I122: 127 | J122: 18575 | L122: 120 | M122: ='Rec. Hos'!C122 -> Drishti Eye Care, Flat No.114-A, Lane Opp: SBI, Srinagar Colony Main Road, Hyderabad.
A123: 23 | B123: YSR Kadapa District | C123: Kadapa | I123: 128 | J123: 19125 | L123: 121 | M123: ='Rec. Hos'!C123 -> Durga Nursing Home, 20-6-138(2), Anjaiah Road, Ongole, Prakasam Dist.
B124: 96 | C124: =B124 -> 96 | I124: 129 | J124: 19675 | L124: 122 | M124: ='Rec. Hos'!C124 -> Durga Nursing Home, 20-6-138(2), Anjaiah Road, Ongole, Prakasam Dist.
B125: 1 | I125: 130 | J125: 20300 | L125: 123 | M125: ='Rec. Hos'!C125 -> Durgabai Deshmukh Hospital & Research Centre, University Road, Vidyanagar, Hyderabad
B126: 2 | I126: 131 | J126: 20925 | L126: 124 | M126: ='Rec. Hos'!C126 -> E.N.T. Nursing Home, Bhagathsingh Statu Center, Kothapet, Guntur
B127: 3 | I127: 132 | J127: 21550 | L127: 125 | M127: ='Rec. Hos'!C127 -> Eshwar Super Speciality Dental Hospital, 50- 726-6 B, Kurnool
B128: 4 | I128: 133 | J128: 22175 | L128: 126 | M128: ='Rec. Hos'!C128 -> FMS Dental Hospital, Aiyangar Plaza, Bank Street, Koti, Hyderbad
B129: 5 | I129: 134 | J129: 22800 | L129: 127 | M129: ='Rec. Hos'!C129 -> Frontier Lifeline Pvt. Ltd., R-30-C, Ambattur Industrial 17514Estate Road, Mogappair, Chennai
B130: 6 | I130: 135 | J130: 23500 | L130: 128 | M130: ='Rec. Hos'!C130 -> G.K.Multi Speciality Hospital, 6-1-1, Chintkuntwada, Nirmal, Adilabad District.
B131: 7 | I131: 136 | J131: 24200 | L131: 129 | M131: ='Rec. Hos'!C131 -> G.R.Hospital, 4-8-114, Opp. Hanamkonda Police Station, Kumarpalli, Hanamkonda, Warangal
B132: 8 | I132: 137 | J132: 24900 | L132: 130 | M132: ='Rec. Hos'!C132 -> Gadam Multi Speciality Dental Hospital & Implant Centre, 1st floor, Redman Plaza, 2nd Line Dwarakanagar, Visakhapatnam
B133: 9 | I133: 138 | J133: 25600 | L133: 131 | M133: ='Rec. Hos'!C133 -> Geetha Mullapudi International Hi-technology Dental Hospital, 1st floor, Sri Challa Apparao Municipal Complex, Near Kotipalli Bus Stand, Rajahmundry, E..G.Dist.
B134: 10 | I134: 139 | J134: 26300 | L134: 132 | M134: ='Rec. Hos'!C134 -> Geetha Mutli Speciality Hospital, Seceunderabad.
B135: 11 | I135: 140 | J135: 27000 | L135: 133 | M135: ='Rec. Hos'!C135 -> Giridhar ENT Hospital & Laser Centre Ch. Durgaiah Street, Suryaraopet, Vijayawada
B136: 12 | I136: 31 | J136: =LOOKUP(I136,I2:J135,J2:J135) -> 15700 | L136: 134 | M136: ='Rec. Hos'!C136 -> Global Dental Hospital, Vajra Residency, Ground Floor, Musheerabad, Hyderabad.
B137: 13 | L137: 135 | M137: ='Rec. Hos'!C137 -> Global Hospitals, 6-1-1070/1 to 4, Lakadi-Ka- Pool, Hyderabad
B138: 14 | L138: 136 | M138: ='Rec. Hos'!C138 -> Global Hospitals, Banjara Hills, Hyderabad
B139: 15 | L139: 137 | M139: ='Rec. Hos'!C139 -> Global Multi Speciality Hospital, 27-39-1, MG Road, Vijayawada - 520 002
B140: 16 | L140: 138 | M140: ='Rec. Hos'!C140 -> Goodwill Kidney and Surgical Center, Opp. Khaja Mansion, Masabtank Road, Hyd.
B141: 17 | L141: 139 | M141: ='Rec. Hos'!C141 -> Gowri Gopal Hospitals Pvt. Ltd., Kurnool
B142: 18 | L142: 140 | M142: ='Rec. Hos'!C142 -> Gowtami Eye Institute, 1, R.V.Nagar, Korukonda Road, Opp. Market Yard, Rajahmundry, E.G.Dt.
B143: 19 | L143: 141 | M143: ='Rec. Hos'!C143 -> GSL General Hospital, NH-5, Lakshmi Puram, Rajhmundry.
B144: 20 | L144: 142 | M144: ='Rec. Hos'!C144 -> Guardian Multi Speciality Hospital, 15-1-237, Opp. L.B.College, Mulugu 'X' Road, Warangal
B145: 21 | L145: 143 | M145: ='Rec. Hos'!C145 -> Guntur Dental SpecialtyHospital, Beside Pallavi Complex, Station Road, Guntur
B146: 22 | L146: 144 | M146: ='Rec. Hos'!C146 -> Gurunanak Care Hospital, 1-4-908/7/1, Musheerabad Main Road, Musheerabad, Hyderabad
B147: 23 | L147: 145 | M147: ='Rec. Hos'!C147 -> GVR Childrens Hospital, 43/48, 2nd Lane, N.R.Pet, Kurnool - 518004.
B148: 24 | L148: 146 | M148: ='Rec. Hos'!C148 -> Harini Gastro & Liver Centre, 29-14-51, Prakasam Road, Suryaraopet, Vijayawada.
B149: 25 | L149: 147 | M149: ='Rec. Hos'!C149 -> Haripriya Dantha Vaidyasala, 18-1-503, V.V. Mahal Road, Opp. Incometax Office, Tirupathi
B150: 26 | L150: 148 | M150: ='Rec. Hos'!C150 -> Harsha Sai Eye Hospital, Dwarakanagar, Nizamabad.
B151: 27 | L151: 149 | M151: ='Rec. Hos'!C151 -> Health Hospitals Prakasam Road, Tenali - 522201,Guntur District.
B152: 28 | L152: 150 | M152: ='Rec. Hos'!C152 -> Heart Care Centre, Dornakal Raod, Near Andhra Bank, Suryaraopet, Vijayawada.
B153: 29 | L153: 151 | M153: ='Rec. Hos'!C153 -> Help Hospital, MG Road, Vijayawada
B154: 30 | L154: 152 | M154: ='Rec. Hos'!C154 -> Heritage Hospital, 6-3-907/2, Somajiguda, Hyderabad
B155: 31 | L155: 153 | M155: ='Rec. Hos'!C155 -> Himabindu Multi Specialty Hospital, Vinay Nagar, Sagar Road, Santhoshnagar, Hyd.
B156: 32 | L156: 154 | M156: ='Rec. Hos'!C156 -> Hope Childrens Hospital, 5-9-24/81, Lake Hills Road, Basheerbagh, Hyderabad - 500463.
B157: 33 | L157: 155 | M157: ='Rec. Hos'!C157 -> Hope Super SpecialtyHospital, Balaji Nagar, Khammam
B158: 34 | L158: 156 | M158: ='Rec. Hos'!C158 -> Hyderabad Kidney & Laproscopic Centre, Judges Colony,Malakpet, Hyderabad.
B159: 35 | L159: 157 | M159: ='Rec. Hos'!C159 -> Hyderabad Nusing Home Pvt. Ltd., Basheerbagh, Hyderabad.
B160: 36 | L160: 158 | M160: ='Rec. Hos'!C160 -> Identity Multi Specialty Dental Hospital and Research Center, 21/139, R.S. Road, Kadapa.
B161: 37 | L161: 159 | M161: ='Rec. Hos'!C161 -> Image Hospital, 8-3-903/F/12 & 13, Image House, Ameerpet, Hyderabad
B162: 38 | L162: 160 | M162: ='Rec. Hos'!C162 -> Image Hospitals, 1-90/2/G/2, Arunodaya Co- operative Housing Society, Madhapur, Hyderabad
B163: 39 | L163: 161 | M163: ='Rec. Hos'!C163 -> Indian Red Cross Society, Red Cross Road, Near Vegitable Market, Nellore.
B164: 40 | L164: 162 | M164: ='Rec. Hos'!C164 -> Indira Multi Speciality Dental Hospital, 16-2- 307, Near Sunday Market, Subrahmanya Swamy Temple Street, Pogathota, Nellore
B165: 41 | L165: 163 | M165: ='Rec. Hos'!C165 -> Indo- American Cancer Institute & Research Centre, Banjara Hills, Hyderabad
B166: 42 | L166: 164 | M166: ='Rec. Hos'!C166 -> Indur Cancer Hospital, Krishnapuri Colony, Madhavanagar, Nizamabad
B167: 43 | L167: 165 | M167: ='Rec. Hos'!C167 -> Indus Hospitals, 18-1-6, K.G.H. Down Road, Maharanipet, Visakhapatnam
B168: 44 | L168: 166 | M168: ='Rec. Hos'!C168 -> Innova Children's Heart Hospital Pvt., Ltd., 12- 5-30, White House, Tarnaka, Moulali Road, Secunderabad
B169: 45 | L169: 167 | M169: ='Rec. Hos'!C169 -> J.J.Dental Clinic, Temple Street, Kakinada, E.G.Dist.
B170: 46 | L170: 168 | M170: ='Rec. Hos'!C170 -> J.J.Hospital, Plot No. 57, Kalyan Nagar, 1st Phase, Behind T.B.Hospital, Hyderabad
B171: 47 | L171: 169 | M171: ='Rec. Hos'!C171 -> Jabilli Mother & Child Hospital, Beside Church, Wyra Road, Khammam.
B172: 48 | L172: 170 | M172: ='Rec. Hos'!C172 -> Jaya Hospitals, Chowrastha, Hanamkonda, Warangal
B173: 49 | L173: 171 | M173: ='Rec. Hos'!C173 -> Jayabharath Hospital, 16/2884, Somasekharapuram, Nellore
B174: 50 | L174: 172 | M174: ='Rec. Hos'!C174 -> Jayalakshmi Hospitals, 9-5-15, J.P.N. Road, Warangal
B175: 51 | L175: 173 | M175: ='Rec. Hos'!C175 -> Jayam Super Specialty Dental Hospital, Shop No. 15 and 16, Municipal Shopping Complex, Ananthapur
B176: 52 | L176: 174 | M176: ='Rec. Hos'!C176 -> Jeevana Jyothi Hospitals, D.No. 15/381, Kamalanagar, Anantapur
B177: 53 | L177: 175 | M177: ='Rec. Hos'!C177 -> Jnanananda Ophthalmic Institute, Bhimavaram, W.G. Dist.
B178: 54 | L178: 176 | M178: ='Rec. Hos'!C178 -> Jyothi Hospitals, 19/1350, Beside Anjaneya Swamy Temple, Church Road, Miryalaguda, Nalgonda.
B179: 55 | L179: 177 | M179: ='Rec. Hos'!C179 -> K.M. Dental Hosptials, Global Nagar, Munbai Road, Buchireddy Palem, Nellore
B180: 56 | L180: 178 | M180: ='Rec. Hos'!C180 -> Kadapa Super Speciality Dental Hospital 4/468, Behind Ramalayam, Kadapa
B181: 57 | L181: 179 | M181: ='Rec. Hos'!C181 -> Kakathiya Super Specialty Dental Hospital, Hanumakonda, Warangal.
B182: 58 | L182: 180 | M182: ='Rec. Hos'!C182 -> Kalyani Dental Hospital Dentistry & Implant Centre, Opp. Green Park Hotel, Begumpet, Hyderabad.
B183: 59 | L183: 181 | M183: ='Rec. Hos'!C183 -> Kalyani Hospital, 6-1-69, Stadium Road, Hanumakonda, Warangal.
B184: 60 | L184: 182 | M184: ='Rec. Hos'!C184 -> Kamal Vilekar's Multi Speciality Dental Hospital, D.No. 6-2-15, Chinna Bazar, Srikakulam
B185: 61 | L185: 183 | M185: ='Rec. Hos'!C185 -> Kamala Hospital, Kamala Complex, Chandna Brother's Center, Dilsuknagar, Hyderabad.
B186: 62 | L186: 184 | M186: ='Rec. Hos'!C186 -> Kamineni Hospitals ( Previously called Wockhadt Hospitals which is taken over by the Management of kamineni Hospitas) 4-1- 1227, King Koti Road, Abids, Hyderabad – 500001.
B187: 63 | L187: 185 | M187: ='Rec. Hos'!C187 -> Kamineni Hospitals, Basheer Bagh, Hyderabad.
B188: 64 | L188: 186 | M188: ='Rec. Hos'!C188 -> Kamineni Hospitals, L.B.Nagar, Hyderabad
B189: 65 | L189: 187 | M189: ='Rec. Hos'!C189 -> Kamineni Institute of Medical Sciences and Hospital, Sripuram, Narketpally, Nalgonda.
B190: 66 | L190: 188 | M190: ='Rec. Hos'!C190 -> Kandukuri Hospitals, Vishnava Street, Kavali, Nellore, Dist.
B191: 67 | L191: 189 | M191: ='Rec. Hos'!C191 -> Karumuri Super Speciality Hospitals, 3-4-73, Old Club Road, Guntur - 522001.
B192: 68 | L192: 190 | M192: ='Rec. Hos'!C192 -> Kinnera Super Speciality Hospital, Wyra Road, Khammam
B193: 69 | L193: 191 | M193: ='Rec. Hos'!C193 -> KNM Smile Dental Hospital, 104, Sai Towers, Beside Kalaniketan, Main Road, Dilshuk Nagar, Hyderabad.The hospital was shifted to G-5, Kochar Apartments, Opp. Pantaloons & Sony Centre, Shamlal Buildings, Begumpet, Hyderabad
B194: 70 | L194: 192 | M194: ='Rec. Hos'!C194 -> Kommineni Super Speciality Dental Hospital, 490A, 1st Floor, Reddy & Reddy Colony, Tirupathi
B195: 71 | L195: 193 | M195: ='Rec. Hos'!C195 -> Konark Hospitals, Plot No.13 and 14, Beside Sharwood Public School, Patbasheerbad Village, Qutubullapur Mandal, Kompally, R.R.Dist.
B196: 72 | L196: 194 | M196: ='Rec. Hos'!C196 -> Konaseema Institute of Medical Sciences, NH - 214, Chaitanya Nagar, Amalapuram - 533 201, East Godavari.
B197: 73 | L197: 195 | M197: ='Rec. Hos'!C197 -> Krishna Children's Hospital, (A unit of Ashwik Hospital Pvt Ltd), 11-5-423/A&B, Niloufer Hospital Road, Opp-Hanuman Temple, Lakdikapool, Hyderabad - 500006.
B198: 74 | L198: 196 | M198: ='Rec. Hos'!C198 -> Krishna Denta Cure Advanced Super Specialty Dental Hospital, 29-33-9/10, Alluri Sitharamaraju Junction, Rajahmundry
B199: 75 | L199: 197 | M199: ='Rec. Hos'!C199 -> Krishna Institute of Medical Sceinces, Minister Road, Begumpet, Hyderabad.
B200: 76 | L200: 198 | M200: ='Rec. Hos'!C200 -> Kurnool Heart & Brain Centre, 43-1-1-K-B-4, Sapthagiri Nagar, A-Camp Extension, Near New Ayyappa swamy Temple, Kurnool.
... 287 more rows

Sheet MAIN
E3: MEDICAL REIUMBURSEMENT SOFTWARE | Z3: Your Hospital Address
Z4: ='Rec. Hos'!O3 -> Venkatapadma Hospitals, 15-1-45, Three Lamps Junction, Beside Masjid, Vizianagaram
E5: PERSONAL DETAILS | P5: PATIENT DETAILS
E6: Name of the Employee | G6: 2 | I6: G.Saivijaya Kumar | P6: Name | R6: G.padmavathamma
E7: Designation | G7: 38 | P7: Relationship | S7: Age
E8: Place of Working | G8: ZPP. High School, Balayapalli | P8: Hospital
E9: Name of the Mandal | G9: Balayapalli | P9: Desease | Q9: Undrewent Phacoemulsification with IOL implementation left eye and cataract left eye | Z9: ="RC No:"&'Rec. Hos'!O5 -> RC No:34435/LC-B/2009
E10: Name of the District | G10: 13 | P10: Amount | Q10: 2000
E11: Present Scale of Pay | G11: 24 | P11: Joining date | Z11: ="From "&'Rec. Hos'!O4&" To "&'Rec. Hos'!O7 -> From 18-2-2010 To 17-2-2013
E12: Present Basic Pay | G12: 35 | P12: Discharge date | Z12: ='Rec. Hos'!O6 -> General Medicine, General Surgery, Anaesthesiology, OBG, Orthopaedics, Neuro Surgery, ENT, Urology, Paediatrics, Radiology, Pathology, Plastic Surgery, Pulmonoogy and Physiotherapy
E13: Residential Address | F13: H.NO & Street | G13: 7-197,PS street | P13: submission date
F14: Area | G14: Venkatagiri | P14: Spell
F15: Mandal
F16: District
E18: D.D.O. DETAILS
E19: D.D.O | F19: Designation | K19: Place of Working | Q19: ZPPHS,Balayapalli | V19: ZPPHS,Balayapalli
E20: Mandal | G20: District | Z20: Upto November 2010
D21: a
Z22: Total = 485 Hospitals
H25: Visit: | J25: http://www.gsreddy.tk | S25: Use Legal Pepar for Printing

Sheet Rs (hidden)
A1: =MAIN!$Q$10 -> 2000 | B1: =A70 -> (Rupees Two Thousand and Zero Only) | AA1: 0 | AB1: Zero | AD1: Ten
AA2: 1 | AB2: One | AD2: Eleven
AA3: 2 | AB3: Two | AC3: Twenty | AD3: Twelve
AA4: 3 | AB4: Three | AC4: Thirty | AD4: Thirteen
A5: LAKHS CONVERSION | AA5: 4 | AB5: Four | AC5: Fourty | AD5: Fourteen
A6: =A1 -> 2000 | B6: =A6/100000 -> 0.02 | C6: =INT(B6) -> 0 | G6: Lakhs | H6: =C6 -> 0 | I6: =VLOOKUP(H6,$AA$1:$AB$10,2,FALSE) -> Zero | J6: =CONCATENATE(I6," Lakhs ") -> Zero Lakhs | AA6: 5 | AB6: Five | AC6: Fifty | AD6: Fifteen
A7: =A6-(C6*100000) -> 2000 | B7: =A7/10000 -> 0.2 | C7: =INT(B7) -> 0 | G7: Ten Thousand | H7: =C7 -> 0 | I7: =VLOOKUP(H7,$AA$1:$AB$10,2,FALSE) -> Zero | J7: =IF(AND(I7="Zero"),"",IF(AND(H7=1),VLOOKUP(H8,$AA$1:$AD$10,4,FALSE),VLOOKUP(I7,$AB$1:$AC$10,2,FALSE))) ->  | AA7: 6 | AB7: Six | AC7: Sixty | AD7: Sixteen
A8: =A7-(C7*10000) -> 2000 | B8: =A8/1000 -> 2 | C8: =INT(B8) -> 2 | G8: Thousand | H8: =C8 -> 2 | I8: =VLOOKUP(H8,$AA$1:$AB$10,2,FALSE) -> Two | J8: =IF(AND(I8="Zero")," Thousand ",IF(AND(H7=1)," Thousand ",CONCATENATE(I8," Thousand "))) -> Two Thousand | AA8: 7 | AB8: Seven | AC8: Seventy | AD8: Seventeen
A9: =A8-(C8*1000) -> 0 | B9: =A9/100 -> 0 | C9: =INT(B9) -> 0 | G9: Hundred | H9: =C9 -> 0 | I9: =VLOOKUP(H9,$AA$1:$AB$10,2,FALSE) -> Zero | J9: =IF(I9="Zero","",CONCATENATE(I9," Hundred ")) ->  | AA9: 8 | AB9: Eight | AC9: Eighty | AD9: Eighteen
A10: =A9-(C9*100) -> 0 | B10: =A10/10 -> 0 | C10: =A10 -> 0 | G10: Tens | H10: =C10 -> 0 | I10: =VLOOKUP(H10,$AA$1:$AB$101,2,FALSE) -> Zero | J10: =I10 -> Zero | AA10: 9 | AB10: Nine | AC10: Ninety | AD10: Nineteen
G11: =CONCATENATE("(Rupees ",J6," ",J7," ",J8," ",J9," and ",J10," Only) ") -> (Rupees Zero Lakhs Two Thousand and Zero Only) | AA11: 10 | AB11: Ten
AA12: 11 | AB12: Eleven
AA13: 12 | AB13: Twelve
AA14: 13 | AB14: Thirteen
AA15: 14 | AB15: Fourteen
AA16: 15 | AB16: Fifteen
AA17: 16 | AB17: Sixteen
AA18: 17 | AB18: Seventeen
AA19: 18 | AB19: Eighteen
AA20: 19 | AB20: Nineteen
A21: TEN THOUSAND CONVERSION | AA21: 20 | AB21: Twenty
A22: =A1 -> 2000 | B22: =A22/10000 -> 0.2 | C22: =INT(B22) -> 0 | G22: Ten Thousand | H22: =C22 -> 0 | I22: =VLOOKUP(H22,$AA$1:$AB$10,2,FALSE) -> Zero | J22: =IF(AND(I22="Zero"),"",IF(AND(H22=1),VLOOKUP(H23,$AA$1:$AD$10,4,FALSE),VLOOKUP(I22,$AB$1:$AC$10,2,FALSE))) ->  | AA22: 21 | AB22: Twenty One
A23: =A22-(C22*10000) -> 2000 | B23: =A23/1000 -> 2 | C23: =INT(B23) -> 2 | G23: Thousand | H23: =C23 -> 2 | I23: =VLOOKUP(H23,$AA$1:$AB$10,2,FALSE) -> Two | J23: =IF(AND(I23="Zero")," Thousand ",IF(AND(H22=1)," Thousand ",CONCATENATE(I23," Thousand "))) -> Two Thousand | AA23: 22 | AB23: Twenty Two
A24: =A23-(C23*1000) -> 0 | B24: =A24/100 -> 0 | C24: =INT(B24) -> 0 | G24: Hundred | H24: =C24 -> 0 | I24: =VLOOKUP(H24,$AA$1:$AB$10,2,FALSE) -> Zero | J24: =IF(I24="Zero","",CONCATENATE(I24," Hundred ")) ->  | AA24: 23 | AB24: Twenty Three
A25: =A24-(C24*100) -> 0 | B25: =A25/10 -> 0 | C25: =A25 -> 0 | G25: Tens | H25: =C25 -> 0 | I25: =VLOOKUP(H25,$AA$1:$AB$101,2,FALSE) -> Zero | J25: =I25 -> Zero | AA25: 24 | AB25: Twenty Four
G26: =CONCATENATE("(Rupees ",J21," ",J22," ",J23," ",J24," and ",J25," Only) ") -> (Rupees Two Thousand and Zero Only) | AA26: 25 | AB26: Twenty Five
AA27: 26 | AB27: Twenty Six
AA28: 27 | AB28: Twenty Seven
AA29: 28 | AB29: Twenty Eight
AA30: 29 | AB30: Twenty Nine
AA31: 30 | AB31: Thirty
AA32: 31 | AB32: Thirty One
AA33: 32 | AB33: Thirty Two
AA34: 33 | AB34: Thirty Three
AA35: 34 | AB35: Thirty Four
AA36: 35 | AB36: Thirty Five
A37: THOUSAND CONVERSION | AA37: 36 | AB37: Thirty Six
A38: =A1 -> 2000 | B38: =A38/1000 -> 2 | C38: =INT(B38) -> 2 | G38: Thousand | H38: =C38 -> 2 | I38: =VLOOKUP(H38,$AA$1:$AB$10,2,FALSE) -> Two | J38: =IF(AND(I38="Zero")," Thousand ",IF(AND(H37=1)," Thousand ",CONCATENATE(I38," Thousand "))) -> Two Thousand | AA38: 37 | AB38: Thirty Seven
A39: =A38-(C38*1000) -> 0 | B39: =A39/100 -> 0 | C39: =INT(B39) -> 0 | G39: Hundred | H39: =C39 -> 0 | I39: =VLOOKUP(H39,$AA$1:$AB$10,2,FALSE) -> Zero | J39: =IF(I39="Zero","",CONCATENATE(I39," Hundred ")) ->  | AA39: 38 | AB39: Thirty Eight
A40: =A39-(C39*100) -> 0 | B40: =A40/10 -> 0 | C40: =A40 -> 0 | G40: Tens | H40: =C40 -> 0 | I40: =VLOOKUP(H40,$AA$1:$AB$101,2,FALSE) -> Zero | J40: =I40 -> Zero | AA40: 39 | AB40: Thirty Nine
G41: =CONCATENATE("(Rupees ",J36," ",J37," ",J38," ",J39," and ",J40," Only) ") -> (Rupees Two Thousand and Zero Only) | AA41: 40 | AB41: Fourty
AA42: 41 | AB42: Fourty One
AA43: 42 | AB43: Fourty Two
AA44: 43 | AB44: Fourty Three
AA45: 44 | AB45: Fourty Four
AA46: 45 | AB46: Fourty Five
AA47: 46 | AB47: Fourty Six
AA48: 47 | AB48: Fourty Seven
AA49: 48 | AB49: Fourty Eight
A50: HUNDRED CONVERSION | AA50: 49 | AB50: Fourty Nine
A51: =A1 -> 2000 | B51: =A51/100 -> 20 | C51: =INT(B51) -> 20 | G51: Hundred | H51: =C51 -> 20 | I51: =VLOOKUP(H51,$AA$1:$AB$10,2,FALSE) ->  | J51: =IF(I51="Zero","",CONCATENATE(I51," Hundred ")) ->  | AA51: 50 | AB51: Fifty
A52: =A51-(C51*100) -> 0 | B52: =A52/10 -> 0 | C52: =A52 -> 0 | G52: Tens | H52: =C52 -> 0 | I52: =VLOOKUP(H52,$AA$1:$AB$101,2,FALSE) -> Zero | J52: =I52 -> Zero | AA52: 51 | AB52: Fifty One
G53: =CONCATENATE("(Rupees ",J48," ",J49," ",J50," ",J51," and ",J52," Only) ") ->  | AA53: 52 | AB53: Fifty Two
AA54: 53 | AB54: Fifty Three
AA55: 54 | AB55: Fifty Four
AA56: 55 | AB56: Fifty Five
AA57: 56 | AB57: Fifty Six
AA58: 57 | AB58: Fifty Seven
AA59: 58 | AB59: Fifty Eight
AA60: 59 | AB60: Fifty Nine
AA61: 60 | AB61: Sixty
AA62: 61 | AB62: Sixty One
A63: HUNDRED CONVERSION | AA63: 62 | AB63: Sixty Two
A64: =A1 -> 2000 | B64: =A64/10 -> 200 | C64: =A64 -> 2000 | G64: Tens | H64: =C64 -> 2000 | I64: =VLOOKUP(H64,$AA$1:$AB$101,2,FALSE) ->  | J64: =I64 ->  | AA64: 63 | AB64: Sixty Three
G65: =CONCATENATE("(Rupees ",J60," ",J61," ",J62," ",J63," ",J64," Only) ") ->  | AA65: 64 | AB65: Sixty Four
AA66: 65 | AB66: Sixty Five
AA67: 66 | AB67: Sixty Six
AA68: 67 | AB68: Sixty Seven
AA69: 68 | AB69: Sixty Eight
A70: =IF(AND(A1>=100000),G11,IF(AND(A1>=10000,A1<=99999),G26,IF(AND(A1>=1000,A1<=9999),G41,IF(AND(A1>=100,A1<=999),G53,G65)))) -> (Rupees Two Thousand and Zero Only) | AA70: 69 | AB70: Sixty Nine
AA71: 70 | AB71: Seventy
AA72: 71 | AB72: Seventy One
AA73: 72 | AB73: Seventy Two
AA74: 73 | AB74: Seventy Three
AA75: 74 | AB75: Seventy Four
AA76: 75 | AB76: Seventy Five
AA77: 76 | AB77: Seventy Six
AA78: 77 | AB78: Seventy Seven
AA79: 78 | AB79: Seventy Eight
AA80: 79 | AB80: Seventy Nine
AA81: 80 | AB81: Eighty
AA82: 81 | AB82: Eighty one
AA83: 82 | AB83: Eighty Two
AA84: 83 | AB84: Eighty Three
AA85: 84 | AB85: Eighty Four
AA86: 85 | AB86: Eighty Five
AA87: 86 | AB87: Eighty Six
AA88: 87 | AB88: Eighty Seven
AA89: 88 | AB89: Eighty Eight
AA90: 89 | AB90: Eighty Nine
AA91: 90 | AB91: Ninety
AA92: 91 | AB92: Ninety One
AA93: 92 | AB93: Ninety Two
AA94: 93 | AB94: Ninety Three
AA95: 94 | AB95: Ninety Four
AA96: 95 | AB96: Ninety Five
AA97: 96 | AB97: Ninety Six
AA98: 97 | AB98: Ninety Seven
AA99: 98 | AB99: Ninety Eighty
A100: =Salary!N13+Salary!N14+Salary!N15+Salary!N16+Salary!N17+Salary!N18+Salary!N19-Salary!R13-Salary!R14-Salary!R15-Salary!R16-Salary!R17-Salary!R18-Salary!R19-Salary!R20 -> 12298 | B100: =A166 -> (Rupees Twelve Thousand Two Hundred and Ninety Eighty Only) | AA100: 99 | AB100: Ninety Nine
A101: LAKHS CONVERSION | AA101: 100 | AB101: Hundred
A102: =A100 -> 12298 | B102: =A102/100000 -> 0.12298 | C102: =INT(B102) -> 0 | G102: Lakhs | H102: =C102 -> 0 | I102: =VLOOKUP(H102,$AA$1:$AB$10,2,FALSE) -> Zero | J102: =CONCATENATE(I102," Lakhs ") -> Zero Lakhs
A103: =A102-(C102*100000) -> 12298 | B103: =A103/10000 -> 1.2298 | C103: =INT(B103) -> 1 | G103: Ten Thousand | H103: =C103 -> 1 | I103: =VLOOKUP(H103,$AA$1:$AB$10,2,FALSE) -> One | J103: =IF(AND(I103="Zero"),"",IF(AND(H103=1),VLOOKUP(H104,$AA$1:$AD$10,4,FALSE),VLOOKUP(I103,$AB$1:$AC$10,2,FALSE))) -> Twelve
A104: =A103-(C103*10000) -> 2298 | B104: =A104/1000 -> 2.298 | C104: =INT(B104) -> 2 | G104: Thousand | H104: =C104 -> 2 | I104: =VLOOKUP(H104,$AA$1:$AB$10,2,FALSE) -> Two | J104: =IF(AND(I104="Zero")," Thousand ",IF(AND(H103=1)," Thousand ",CONCATENATE(I104," Thousand "))) -> Thousand
A105: =A104-(C104*1000) -> 298 | B105: =A105/100 -> 2.98 | C105: =INT(B105) -> 2 | G105: Hundred | H105: =C105 -> 2 | I105: =VLOOKUP(H105,$AA$1:$AB$10,2,FALSE) -> Two | J105: =IF(I105="Zero","",CONCATENATE(I105," Hundred ")) -> Two Hundred
A106: =A105-(C105*100) -> 98 | B106: =A106/10 -> 9.8 | C106: =A106 -> 98 | G106: Tens | H106: =C106 -> 98 | I106: =VLOOKUP(H106,$AA$1:$AB$101,2,FALSE) -> Ninety Eighty | J106: =I106 -> Ninety Eighty
G107: =CONCATENATE("(Rupees ",J102," ",J103," ",J104," ",J105," and ",J106," Only) ") -> (Rupees Zero Lakhs Twelve Thousand Two Hundred and Ninety Eighty Only)
A117: TEN THOUSAND CONVERSION
A118: =A100 -> 12298 | B118: =A118/10000 -> 1.2298 | C118: =INT(B118) -> 1 | G118: Ten Thousand | H118: =C118 -> 1 | I118: =VLOOKUP(H118,$AA$1:$AB$10,2,FALSE) -> One | J118: =IF(AND(I118="Zero"),"",IF(AND(H118=1),VLOOKUP(H119,$AA$1:$AD$10,4,FALSE),VLOOKUP(I118,$AB$1:$AC$10,2,FALSE))) -> Twelve
A119: =A118-(C118*10000) -> 2298 | B119: =A119/1000 -> 2.298 | C119: =INT(B119) -> 2 | G119: Thousand | H119: =C119 -> 2 | I119: =VLOOKUP(H119,$AA$1:$AB$10,2,FALSE) -> Two | J119: =IF(AND(I119="Zero")," Thousand ",IF(AND(H118=1)," Thousand ",CONCATENATE(I119," Thousand "))) -> Thousand
A120: =A119-(C119*1000) -> 298 | B120: =A120/100 -> 2.98 | C120: =INT(B120) -> 2 | G120: Hundred | H120: =C120 -> 2 | I120: =VLOOKUP(H120,$AA$1:$AB$10,2,FALSE) -> Two | J120: =IF(I120="Zero","",CONCATENATE(I120," Hundred ")) -> Two Hundred
A121: =A120-(C120*100) -> 98 | B121: =A121/10 -> 9.8 | C121: =A121 -> 98 | G121: Tens | H121: =C121 -> 98 | I121: =VLOOKUP(H121,$AA$1:$AB$101,2,FALSE) -> Ninety Eighty | J121: =I121 -> Ninety Eighty
G122: =CONCATENATE("(Rupees ",J117," ",J118," ",J119," ",J120," and ",J121," Only) ") -> (Rupees Twelve Thousand Two Hundred and Ninety Eighty Only)
A133: THOUSAND CONVERSION
A134: =A100 -> 12298 | B134: =A134/1000 -> 12.298 | C134: =INT(B134) -> 12 | G134: Thousand | H134: =C134 -> 12 | I134: =VLOOKUP(H134,$AA$1:$AB$10,2,FALSE) ->  | J134: =IF(AND(I134="Zero")," Thousand ",IF(AND(H133=1)," Thousand ",CONCATENATE(I134," Thousand "))) -> 
A135: =A134-(C134*1000) -> 298 | B135: =A135/100 -> 2.98 | C135: =INT(B135) -> 2 | G135: Hundred | H135: =C135 -> 2 | I135: =VLOOKUP(H135,$AA$1:$AB$10,2,FALSE) -> Two | J135: =IF(I135="Zero","",CONCATENATE(I135," Hundred ")) -> Two Hundred
A136: =A135-(C135*100) -> 98 | B136: =A136/10 -> 9.8 | C136: =A136 -> 98 | G136: Tens | H136: =C136 -> 98 | I136: =VLOOKUP(H136,$AA$1:$AB$101,2,FALSE) -> Ninety Eighty | J136: =I136 -> Ninety Eighty
G137: =CONCATENATE("(Rupees ",J132," ",J133," ",J134," ",J135," and ",J136," Only) ") -> 
A146: HUNDRED CONVERSION
A147: =A100 -> 12298 | B147: =A147/100 -> 122.98 | C147: =INT(B147) -> 122 | G147: Hundred | H147: =C147 -> 122 | I147: =VLOOKUP(H147,$AA$1:$AB$10,2,FALSE) ->  | J147: =IF(I147="Zero","",CONCATENATE(I147," Hundred ")) -> 
A148: =A147-(C147*100) -> 98 | B148: =A148/10 -> 9.8 | C148: =A148 -> 98 | G148: Tens | H148: =C148 -> 98 | I148: =VLOOKUP(H148,$AA$1:$AB$101,2,FALSE) -> Ninety Eighty | J148: =I148 -> Ninety Eighty
G149: =CONCATENATE("(Rupees ",J144," ",J145," ",J146," ",J147," and ",J148," Only) ") -> 
A159: HUNDRED CONVERSION
A160: =A100 -> 12298 | B160: =A160/10 -> 1229.8 | C160: =A160 -> 12298 | G160: Tens | H160: =C160 -> 12298 | I160: =VLOOKUP(H160,$AA$1:$AB$101,2,FALSE) ->  | J160: =I160 -> 
G161: =CONCATENATE("(Rupees ",J156," ",J157," ",J158," ",J159," ",J160," Only) ") -> 
A166: =IF(AND(A100>=100000),G107,IF(AND(A100>=10000,A100<=99999),G122,IF(AND(A100>=1000,A100<=9999),G137,IF(AND(A100>=100,A100<=999),G149,G161)))) -> (Rupees Twelve Thousand Two Hundred and Ninety Eighty Only)
A200: =SUM(N13+N14+N15+N16+N17+N18+N19)-SUM(R13-R14-R15-R16-R17-R18-R19-R20) -> 0 | B200: =A266 -> (Rupees Zero Only)
A201: LAKHS CONVERSION
A202: =A200 -> 0 | B202: =A202/100000 -> 0 | C202: =INT(B202) -> 0 | G202: Lakhs | H202: =C202 -> 0 | I202: =VLOOKUP(H202,$AA$1:$AB$10,2,FALSE) -> Zero | J202: =CONCATENATE(I202," Lakhs ") -> Zero Lakhs
A203: =A202-(C202*100000) -> 0 | B203: =A203/10000 -> 0 | C203: =INT(B203) -> 0 | G203: Ten Thousand | H203: =C203 -> 0 | I203: =VLOOKUP(H203,$AA$1:$AB$10,2,FALSE) -> Zero | J203: =IF(AND(I203="Zero"),"",IF(AND(H203=1),VLOOKUP(H204,$AA$1:$AD$10,4,FALSE),VLOOKUP(I203,$AB$1:$AC$10,2,FALSE))) -> 
A204: =A203-(C203*10000) -> 0 | B204: =A204/1000 -> 0 | C204: =INT(B204) -> 0 | G204: Thousand | H204: =C204 -> 0 | I204: =VLOOKUP(H204,$AA$1:$AB$10,2,FALSE) -> Zero | J204: =IF(AND(I204="Zero")," Thousand ",IF(AND(H203=1)," Thousand ",CONCATENATE(I204," Thousand "))) -> Thousand
A205: =A204-(C204*1000) -> 0 | B205: =A205/100 -> 0 | C205: =INT(B205) -> 0 | G205: Hundred | H205: =C205 -> 0 | I205: =VLOOKUP(H205,$AA$1:$AB$10,2,FALSE) -> Zero | J205: =IF(I205="Zero","",CONCATENATE(I205," Hundred ")) -> 
A206: =A205-(C205*100) -> 0 | B206: =A206/10 -> 0 | C206: =A206 -> 0 | G206: Tens | H206: =C206 -> 0 | I206: =VLOOKUP(H206,$AA$1:$AB$101,2,FALSE) -> Zero | J206: =I206 -> Zero
G207: =CONCATENATE("(Rupees ",J202," ",J203," ",J204," ",J205," and ",J206," Only) ") -> (Rupees Zero Lakhs Thousand and Zero Only)
A217: TEN THOUSAND CONVERSION
A218: =A200 -> 0 | B218: =A218/10000 -> 0 | C218: =INT(B218) -> 0 | G218: Ten Thousand | H218: =C218 -> 0 | I218: =VLOOKUP(H218,$AA$1:$AB$10,2,FALSE) -> Zero | J218: =IF(AND(I218="Zero"),"",IF(AND(H218=1),VLOOKUP(H219,$AA$1:$AD$10,4,FALSE),VLOOKUP(I218,$AB$1:$AC$10,2,FALSE))) -> 
A219: =A218-(C218*10000) -> 0 | B219: =A219/1000 -> 0 | C219: =INT(B219) -> 0 | G219: Thousand | H219: =C219 -> 0 | I219: =VLOOKUP(H219,$AA$1:$AB$10,2,FALSE) -> Zero | J219: =IF(AND(I219="Zero")," Thousand ",IF(AND(H218=1)," Thousand ",CONCATENATE(I219," Thousand "))) -> Thousand
A220: =A219-(C219*1000) -> 0 | B220: =A220/100 -> 0 | C220: =INT(B220) -> 0 | G220: Hundred | H220: =C220 -> 0 | I220: =VLOOKUP(H220,$AA$1:$AB$10,2,FALSE) -> Zero | J220: =IF(I220="Zero","",CONCATENATE(I220," Hundred ")) -> 
A221: =A220-(C220*100) -> 0 | B221: =A221/10 -> 0 | C221: =A221 -> 0 | G221: Tens | H221: =C221 -> 0 | I221: =VLOOKUP(H221,$AA$1:$AB$101,2,FALSE) -> Zero | J221: =I221 -> Zero
G222: =CONCATENATE("(Rupees ",J217," ",J218," ",J219," ",J220," and ",J221," Only) ") -> (Rupees Thousand and Zero Only)
A233: THOUSAND CONVERSION
A234: =A200 -> 0 | B234: =A234/1000 -> 0 | C234: =INT(B234) -> 0 | G234: Thousand | H234: =C234 -> 0 | I234: =VLOOKUP(H234,$AA$1:$AB$10,2,FALSE) -> Zero | J234: =IF(AND(I234="Zero")," Thousand ",IF(AND(H233=1)," Thousand ",CONCATENATE(I234," Thousand "))) -> Thousand
A235: =A234-(C234*1000) -> 0 | B235: =A235/100 -> 0 | C235: =INT(B235) -> 0 | G235: Hundred | H235: =C235 -> 0 | I235: =VLOOKUP(H235,$AA$1:$AB$10,2,FALSE) -> Zero | J235: =IF(I235="Zero","",CONCATENATE(I235," Hundred ")) -> 
A236: =A235-(C235*100) -> 0 | B236: =A236/10 -> 0 | C236: =A236 -> 0 | G236: Tens | H236: =C236 -> 0 | I236: =VLOOKUP(H236,$AA$1:$AB$101,2,FALSE) -> Zero | J236: =I236 -> Zero
G237: =CONCATENATE("(Rupees ",J232," ",J233," ",J234," ",J235," and ",J236," Only) ") -> (Rupees Thousand and Zero Only)
A246: HUNDRED CONVERSION
A247: =A200 -> 0 | B247: =A247/100 -> 0 | C247: =INT(B247) -> 0 | G247: Hundred | H247: =C247 -> 0 | I247: =VLOOKUP(H247,$AA$1:$AB$10,2,FALSE) -> Zero | J247: =IF(I247="Zero","",CONCATENATE(I247," Hundred ")) -> 
A248: =A247-(C247*100) -> 0 | B248: =A248/10 -> 0 | C248: =A248 -> 0 | G248: Tens | H248: =C248 -> 0 | I248: =VLOOKUP(H248,$AA$1:$AB$101,2,FALSE) -> Zero | J248: =I248 -> Zero
G249: =CONCATENATE("(Rupees ",J244," ",J245," ",J246," ",J247," and ",J248," Only) ") -> (Rupees and Zero Only)
A259: HUNDRED CONVERSION
A260: =A200 -> 0 | B260: =A260/10 -> 0 | C260: =A260 -> 0 | G260: Tens | H260: =C260 -> 0 | I260: =VLOOKUP(H260,$AA$1:$AB$101,2,FALSE) -> Zero | J260: =I260 -> Zero
G261: =CONCATENATE("(Rupees ",J256," ",J257," ",J258," ",J259," ",J260," Only) ") -> (Rupees Zero Only)
A266: =IF(AND(A200>=100000),G207,IF(AND(A200>=10000,A200<=99999),G222,IF(AND(A200>=1000,A200<=9999),G237,IF(AND(A200>=100,A200<=999),G249,G261)))) -> (Rupees Zero Only)
A300: 46215 | B300: =A366 -> (Rupees Fourty Six Thousand Two Hundred and Fifteen Only)
A301: LAKHS CONVERSION
A302: =A300 -> 46215 | B302: =A302/100000 -> 0.46215 | C302: =INT(B302) -> 0 | G302: Lakhs | H302: =C302 -> 0 | I302: =VLOOKUP(H302,$AA$1:$AB$10,2,FALSE) -> Zero | J302: =CONCATENATE(I302," Lakhs ") -> Zero Lakhs
A303: =A302-(C302*100000) -> 46215 | B303: =A303/10000 -> 4.6215 | C303: =INT(B303) -> 4 | G303: Ten Thousand | H303: =C303 -> 4 | I303: =VLOOKUP(H303,$AA$1:$AB$10,2,FALSE) -> Four | J303: =IF(AND(I303="Zero"),"",IF(AND(H303=1),VLOOKUP(H304,$AA$1:$AD$10,4,FALSE),VLOOKUP(I303,$AB$1:$AC$10,2,FALSE))) -> Fourty
A304: =A303-(C303*10000) -> 6215 | B304: =A304/1000 -> 6.215 | C304: =INT(B304) -> 6 | G304: Thousand | H304: =C304 -> 6 | I304: =VLOOKUP(H304,$AA$1:$AB$10,2,FALSE) -> Six | J304: =IF(AND(I304="Zero")," Thousand ",IF(AND(H303=1)," Thousand ",CONCATENATE(I304," Thousand "))) -> Six Thousand
A305: =A304-(C304*1000) -> 215 | B305: =A305/100 -> 2.15 | C305: =INT(B305) -> 2 | G305: Hundred | H305: =C305 -> 2 | I305: =VLOOKUP(H305,$AA$1:$AB$10,2,FALSE) -> Two | J305: =IF(I305="Zero","",CONCATENATE(I305," Hundred ")) -> Two Hundred
A306: =A305-(C305*100) -> 15 | B306: =A306/10 -> 1.5 | C306: =A306 -> 15 | G306: Tens | H306: =C306 -> 15 | I306: =VLOOKUP(H306,$AA$1:$AB$101,2,FALSE) -> Fifteen | J306: =I306 -> Fifteen
G307: =CONCATENATE("(Rupees ",J302," ",J303," ",J304," ",J305," and ",J306," Only) ") -> (Rupees Zero Lakhs Fourty Six Thousand Two Hundred and Fifteen Only)
A317: TEN THOUSAND CONVERSION
A318: =A300 -> 46215 | B318: =A318/10000 -> 4.6215 | C318: =INT(B318) -> 4 | G318: Ten Thousand | H318: =C318 -> 4 | I318: =VLOOKUP(H318,$AA$1:$AB$10,2,FALSE) -> Four | J318: =IF(AND(I318="Zero"),"",IF(AND(H318=1),VLOOKUP(H319,$AA$1:$AD$10,4,FALSE),VLOOKUP(I318,$AB$1:$AC$10,2,FALSE))) -> Fourty
A319: =A318-(C318*10000) -> 6215 | B319: =A319/1000 -> 6.215 | C319: =INT(B319) -> 6 | G319: Thousand | H319: =C319 -> 6 | I319: =VLOOKUP(H319,$AA$1:$AB$10,2,FALSE) -> Six | J319: =IF(AND(I319="Zero")," Thousand ",IF(AND(H318=1)," Thousand ",CONCATENATE(I319," Thousand "))) -> Six Thousand
A320: =A319-(C319*1000) -> 215 | B320: =A320/100 -> 2.15 | C320: =INT(B320) -> 2 | G320: Hundred | H320: =C320 -> 2 | I320: =VLOOKUP(H320,$AA$1:$AB$10,2,FALSE) -> Two | J320: =IF(I320="Zero","",CONCATENATE(I320," Hundred ")) -> Two Hundred
A321: =A320-(C320*100) -> 15 | B321: =A321/10 -> 1.5 | C321: =A321 -> 15 | G321: Tens | H321: =C321 -> 15 | I321: =VLOOKUP(H321,$AA$1:$AB$101,2,FALSE) -> Fifteen | J321: =I321 -> Fifteen
G322: =CONCATENATE("(Rupees ",J317," ",J318," ",J319," ",J320," and ",J321," Only) ") -> (Rupees Fourty Six Thousand Two Hundred and Fifteen Only)
A333: THOUSAND CONVERSION
A334: =A300 -> 46215 | B334: =A334/1000 -> 46.215 | C334: =INT(B334) -> 46 | G334: Thousand | H334: =C334 -> 46 | I334: =VLOOKUP(H334,$AA$1:$AB$10,2,FALSE) ->  | J334: =IF(AND(I334="Zero")," Thousand ",IF(AND(H333=1)," Thousand ",CONCATENATE(I334," Thousand "))) -> 
A335: =A334-(C334*1000) -> 215 | B335: =A335/100 -> 2.15 | C335: =INT(B335) -> 2 | G335: Hundred | H335: =C335 -> 2 | I335: =VLOOKUP(H335,$AA$1:$AB$10,2,FALSE) -> Two | J335: =IF(I335="Zero","",CONCATENATE(I335," Hundred ")) -> Two Hundred
A336: =A335-(C335*100) -> 15 | B336: =A336/10 -> 1.5 | C336: =A336 -> 15 | G336: Tens | H336: =C336 -> 15 | I336: =VLOOKUP(H336,$AA$1:$AB$101,2,FALSE) -> Fifteen | J336: =I336 -> Fifteen
G337: =CONCATENATE("(Rupees ",J332," ",J333," ",J334," ",J335," and ",J336," Only) ") -> 
A346: HUNDRED CONVERSION
A347: =A300 -> 46215 | B347: =A347/100 -> 462.15 | C347: =INT(B347) -> 462 | G347: Hundred | H347: =C347 -> 462 | I347: =VLOOKUP(H347,$AA$1:$AB$10,2,FALSE) ->  | J347: =IF(I347="Zero","",CONCATENATE(I347," Hundred ")) -> 
A348: =A347-(C347*100) -> 15 | B348: =A348/10 -> 1.5 | C348: =A348 -> 15 | G348: Tens | H348: =C348 -> 15 | I348: =VLOOKUP(H348,$AA$1:$AB$101,2,FALSE) -> Fifteen | J348: =I348 -> Fifteen
G349: =CONCATENATE("(Rupees ",J344," ",J345," ",J346," ",J347," and ",J348," Only) ") -> 
A359: HUNDRED CONVERSION
A360: =A300 -> 46215 | B360: =A360/10 -> 4621.5 | C360: =A360 -> 46215 | G360: Tens | H360: =C360 -> 46215 | I360: =VLOOKUP(H360,$AA$1:$AB$101,2,FALSE) ->  | J360: =I360 -> 
G361: =CONCATENATE("(Rupees ",J356," ",J357," ",J358," ",J359," ",J360," Only) ") -> 
A366: =IF(AND(A300>=100000),G307,IF(AND(A300>=10000,A300<=99999),G322,IF(AND(A300>=1000,A300<=9999),G337,IF(AND(A300>=100,A300<=999),G349,G361)))) -> (Rupees Fourty Six Thousand Two Hundred and Fifteen Only)
A400: 4215 | B400: =A466 -> (Rupees Four Thousand Two Hundred and Fifteen Only)
A401: LAKHS CONVERSION
A402: =A400 -> 4215 | B402: =A402/100000 -> 0.04215 | C402: =INT(B402) -> 0 | G402: Lakhs | H402: =C402 -> 0 | I402: =VLOOKUP(H402,$AA$1:$AB$10,2,FALSE) -> Zero | J402: =CONCATENATE(I402," Lakhs ") -> Zero Lakhs
A403: =A402-(C402*100000) -> 4215 | B403: =A403/10000 -> 0.4215 | C403: =INT(B403) -> 0 | G403: Ten Thousand | H403: =C403 -> 0 | I403: =VLOOKUP(H403,$AA$1:$AB$10,2,FALSE) -> Zero | J403: =IF(AND(I403="Zero"),"",IF(AND(H403=1),VLOOKUP(H404,$AA$1:$AD$10,4,FALSE),VLOOKUP(I403,$AB$1:$AC$10,2,FALSE))) -> 
A404: =A403-(C403*10000) -> 4215 | B404: =A404/1000 -> 4.215 | C404: =INT(B404) -> 4 | G404: Thousand | H404: =C404 -> 4 | I404: =VLOOKUP(H404,$AA$1:$AB$10,2,FALSE) -> Four | J404: =IF(AND(I404="Zero")," Thousand ",IF(AND(H403=1)," Thousand ",CONCATENATE(I404," Thousand "))) -> Four Thousand
A405: =A404-(C404*1000) -> 215 | B405: =A405/100 -> 2.15 | C405: =INT(B405) -> 2 | G405: Hundred | H405: =C405 -> 2 | I405: =VLOOKUP(H405,$AA$1:$AB$10,2,FALSE) -> Two | J405: =IF(I405="Zero","",CONCATENATE(I405," Hundred ")) -> Two Hundred
A406: =A405-(C405*100) -> 15 | B406: =A406/10 -> 1.5 | C406: =A406 -> 15 | G406: Tens | H406: =C406 -> 15 | I406: =VLOOKUP(H406,$AA$1:$AB$101,2,FALSE) -> Fifteen | J406: =I406 -> Fifteen
G407: =CONCATENATE("(Rupees ",J402," ",J403," ",J404," ",J405," and ",J406," Only) ") -> (Rupees Zero Lakhs Four Thousand Two Hundred and Fifteen Only)
A417: TEN THOUSAND CONVERSION
A418: =A400 -> 4215 | B418: =A418/10000 -> 0.4215 | C418: =INT(B418) -> 0 | G418: Ten Thousand | H418: =C418 -> 0 | I418: =VLOOKUP(H418,$AA$1:$AB$10,2,FALSE) -> Zero | J418: =IF(AND(I418="Zero"),"",IF(AND(H418=1),VLOOKUP(H419,$AA$1:$AD$10,4,FALSE),VLOOKUP(I418,$AB$1:$AC$10,2,FALSE))) -> 
A419: =A418-(C418*10000) -> 4215 | B419: =A419/1000 -> 4.215 | C419: =INT(B419) -> 4 | G419: Thousand | H419: =C419 -> 4 | I419: =VLOOKUP(H419,$AA$1:$AB$10,2,FALSE) -> Four | J419: =IF(AND(I419="Zero")," Thousand ",IF(AND(H418=1)," Thousand ",CONCATENATE(I419," Thousand "))) -> Four Thousand
A420: =A419-(C419*1000) -> 215 | B420: =A420/100 -> 2.15 | C420: =INT(B420) -> 2 | G420: Hundred | H420: =C420 -> 2 | I420: =VLOOKUP(H420,$AA$1:$AB$10,2,FALSE) -> Two | J420: =IF(I420="Zero","",CONCATENATE(I420," Hundred ")) -> Two Hundred
A421: =A420-(C420*100) -> 15 | B421: =A421/10 -> 1.5 | C421: =A421 -> 15 | G421: Tens | H421: =C421 -> 15 | I421: =VLOOKUP(H421,$AA$1:$AB$101,2,FALSE) -> Fifteen | J421: =I421 -> Fifteen
G422: =CONCATENATE("(Rupees ",J417," ",J418," ",J419," ",J420," and ",J421," Only) ") -> (Rupees Four Thousand Two Hundred and Fifteen Only)
A433: THOUSAND CONVERSION
A434: =A400 -> 4215 | B434: =A434/1000 -> 4.215 | C434: =INT(B434) -> 4 | G434: Thousand | H434: =C434 -> 4 | I434: =VLOOKUP(H434,$AA$1:$AB$10,2,FALSE) -> Four | J434: =IF(AND(I434="Zero")," Thousand ",IF(AND(H433=1)," Thousand ",CONCATENATE(I434," Thousand "))) -> Four Thousand
A435: =A434-(C434*1000) -> 215 | B435: =A435/100 -> 2.15 | C435: =INT(B435) -> 2 | G435: Hundred | H435: =C435 -> 2 | I435: =VLOOKUP(H435,$AA$1:$AB$10,2,FALSE) -> Two | J435: =IF(I435="Zero","",CONCATENATE(I435," Hundred ")) -> Two Hundred
A436: =A435-(C435*100) -> 15 | B436: =A436/10 -> 1.5 | C436: =A436 -> 15 | G436: Tens | H436: =C436 -> 15 | I436: =VLOOKUP(H436,$AA$1:$AB$101,2,FALSE) -> Fifteen | J436: =I436 -> Fifteen
G437: =CONCATENATE("(Rupees ",J432," ",J433," ",J434," ",J435," and ",J436," Only) ") -> (Rupees Four Thousand Two Hundred and Fifteen Only)
A446: HUNDRED CONVERSION
... 34 more rows

Sheet Employee Letter
N2: Date: | Q2: =Mandals1!AB86 -> 24-11-2011
B3: To
C4: ="The"&" "&Code!O31 -> The Principal
C5: =Code!O32 -> ZPPHS,Balayapalli
C6: =Code!O33 -> Chinnamandem
C7: =Code!O34 -> Kaddapah District
B9: =Code!E62 -> sir
C10: Sub: | D10: =CONCATENATE("Request to sanction the Medical Reimbursement in repect of ",UPPER(Code!R30),", ",Code!R31,", ",Code!R32,", ",Code!R33,", ",Code!R34," - ","Proposals submitted - Reg.") -> Request to sanction the Medical Reimbursement in repect of SRI. G.SAIVIJAYA KUMAR, School Assistant (Phy. Edn.), ZPP. High School, Balayapalli, Jammikunta, Kareemnagar District - Proposals submitted - Reg.
C13: Ref: | D13: 1. G.O. Ms.No. 74, M&H Dept., dated: 15-03-2005.
D14: 2. G.O. Ms.No. 105, M&H Dept., dated: 09-04-2007.
D15: 3. Medical Bills issued by the Doctor concerned.
B16: ----
B17: =CONCATENATE("With reference to the subject cited, I submit here with the Medical Bills with all the enclosures for Medical Reimbursement for an amount of Rs. ",Code!Z13,Code!W8," ",Code!AL26," ",UPPER(MAIN!Q9)," in the Recognised Hospital by the Andhra Pradesh State Government i.e., at ",Code!O1," during the period from ",Mandals1!R86, " to ",Mandals1!W86," and onward transmit to the higher authorities for further necessary action in the matter at an early date.") -> With reference to the subject cited, I submit here with the Medical Bills with all the enclosures for Medical Reimbursement for an amount of Rs. 2000-00(Rupees Two Thousand and Zero Only) as I have undergone Treatment for the desease UNDREWENT PHACOEMULSIFICATION WITH IOL IMPLEMENTATION LEFT EYE AND CATARACT LEFT EYE in the Recognised Hospital by the Andhra Pradesh State Government i.e., at Venkatapadma Hospitals, 15-1-45, Three Lamps Junction, Beside Masjid, Vizianagaram during the period from 17-7-2010 to 21-6-2011 and onward transmit to the higher authorities for further necessary action in the matter at an early date.
C29: =CONCATENATE("Thanking You ",Code!E62,".") -> Thanking You sir.
L30: Yours faithfully,
B32: Enclosures: | L32: =CONCATENATE("(",UPPER(Code!R30),")") -> (SRI. G.SAIVIJAYA KUMAR)
C33: Requisition letter to HM. | L33: =CONCATENATE(Code!R31,",") -> School Assistant (Phy. Edn.),
C34: Requisition letter from HM to DEO. | L34: =CONCATENATE(Code!R32,",") -> ZPP. High School, Balayapalli,
C35: Salary certifcate | L35: =CONCATENATE(Code!R33,",") -> Jammikunta,
C36: Appendix II | L36: =CONCATENATE(Code!R34,".") -> Kareemnagar District .
C37: Form -C
C38: Check List
C39: Essentiality Certificate
C40: Dependent Certificate
C41: Availment certificate
C42: Non-Drawl Certificate
C43: Discharge summary
C44: Medical Bills

Sheet DDO Letter
B2: GOVERNMENT OF ANDHRA PRADESH DEPARTMENT OF SCHOOL EDUCATION
B3: From | M3: To
D4: ='Employee Letter'!C4 -> The Principal | N4: =IF(MAIN!Q10>25000,Code!T32,Code!T30) -> The District Educational Officer
D5: ='Employee Letter'!C5 -> ZPPHS,Balayapalli | N5: =IF($N$4="The District Educational Officer",Code!O34,Code!T33) -> Kaddapah District
D6: ='Employee Letter'!C6 -> Chinnamandem | N6: =IF($N$4="The District Educational Officer"," ",Code!T34) -> 
D7: ='Employee Letter'!C7 -> Kaddapah District
C10: Lr. No. __________, Dt: __________ .
B12: Respected Sir,
D14: Sub: | F14: ='Employee Letter'!D10 -> Request to sanction the Medical Reimbursement in repect of SRI. G.SAIVIJAYA KUMAR, School Assistant (Phy. Edn.), ZPP. High School, Balayapalli, Jammikunta, Kareemnagar District - Proposals submitted - Reg.
D17: Ref: | F17: 1. G.O. Ms.No. 74, M&H Dept., dated: 15-03-2005.
F18: 2. G.O.Ms.No. 105, M&H Dept., dated: 09-04-2007.
F19: 3. Medical Bills issued by the Doctor concerned.
F20: =CONCATENATE("4. Proposals received from the incumbent dated:",Mandals1!AB86) -> 4. Proposals received from the incumbent dated:24-11-2011
B21: ----
B22: =Code!W14&MAIN!$Q$10&Rs!B1&Code!Y17&"undergone Treatment for desease"&MAIN!Q9&" in the Recognised Hopital by the Andhra Pradesh State Government i.e., at "&Code!O1&" during the period from "&Mandals1!R86&" to "&Mandals1!W86&" and onward transmit to the higher authorities for further necessary action at an early date." -> With reference to the subject cited, I submit herewith the Medical Bills with all the enclosures submitted by SRI. G.SAIVIJAYA KUMAR, School Assistant (Phy. Edn.), ZPP. High School, Balayapalli, Jammikunta, Kareemnagar District for your kind sanction of the Medical Reimbursement for an amount of Rs. 2000(Rupees Two Thousand and Zero Only) as heundergone Treatment for deseaseUndrewent Phacoemulsification with IOL implementation left eye and cataract left eye in the Recognised Hopital by the Andhra Pradesh State Government i.e., at Venkatapadma Hospitals, 15-1-45, Three Lamps Junction, Beside Masjid, Vizianagaram during the period from 17-7-2010 to 21-6-2011 and onward transmit to the higher authorities for further necessary action at an early date.
C38: Thanking You Sir.
C40: Enclosures:
D41: Requisition letter to HM.
D42: Requisition letter from HM to DEO. | P42: Yours Sincearly,
D43: Salary certifcate
D44: Appendix II
D45: ='Employee Letter'!C36 -> Appendix II
D46: Form -C
D47: Check List
D48: Essentiality Certificate
D49: Dependent Certificate
D50: Availment certificate
D51: Non-Drawl Certificate
D52: Discharge summary
D53: Medical Bills

Sheet Mandals1 (hidden)
Y1: 8 | Z1: =LOOKUP(Y1,Y3:Z25,Z3:Z25) -> Kareemnagar District | AA1: 5 | AF1: 10 | AG1: =LOOKUP(AF1,AF3:AG25,AG3:AG25) -> Krishan District
B2: Adilabad | C2: Anathapuram | D2: Chittoor District | E2: West godavari District | F2: Guntur District | G2: Hyderabad District | H2: kaddapah District | I2: Kareemnagar District | J2: Khammam District | K2: Krishan District | L2: Kurnool District | M2: Mahaboobnagar District | N2: Medak District | O2: Nalgonda District | P2: Nizamabad District | Q2: Nellore District | R2: Prakasam District | S2: Ranga reddy District | T2: Sreekakulam District | U2: Visakhapatnam District | V2: Vizianagaram District | W2: Warangal District | X2: West godavari District | Y2: S.No | Z2: Districts | AA2: =LOOKUP(AA1,Y3:Y68,AA3:AA68) -> Dharmapuri | AC2: 15 | AD2: =LOOKUP(AC2,Y3:AA68,AA3:AA68) -> Jammikunta | AF2: S.No | AG2: Districts
A3: 1 | B3: Adilabad | C3: Agali | D3: B Kothakota | E3: Achanta | F3: Achampeta | H3: Atlur | I3: Bheemadevarpalle | J3: Aswapuram | K3: A Konduru | L3: Adoni | M3: Achampeta | N3: Alladurg | O3: Alair | P3: Armur | Q3: Allur | R3: Addanki | S3: Balanagar | T3: Amadalavalasa | U3: Anakapalli | V3: Badangi | W3: Atmakur | X3: Achanta | Y3: 1 | Z3: Adilabad | AA3: =HLOOKUP($Z$1,$B$2:$X$68,AB3,FALSE) -> Bheemadevarpalle | AB3: 2 | AF3: 1 | AG3: Adilabad
A4: 2 | B4: Narnoor | C4: Amadagur | D4: Baireddi Palle | E4: Akiveedu | F4: Amaravathi | H4: B Kodur | I4: Boinpalle | J4: Aswaraopeta | K4: Agiripalle | L4: Allagadda | M4: Addakal | N4: Andole | O4: Anumula | P4: Balkonda | Q4: Ananthasagaram | R4: Ardhaveedu | S4: Bantaram | T4: Battili | U4: Anandapuram | V4: Balajipeta | W4: Bachannapeta | X4: Akiveedu | Y4: 2 | Z4: Anathapuram | AA4: Boinpalle | AB4: 3 | AF4: 2 | AG4: Anathapuram
A5: 3 | B5: Bela | C5: Amarapuram | D5: Bangarupalem | E5: Attili | F5: Amruthalur | H5: Badvel | I5: Chandurthi | J5: Bayyaram | K5: Avanigadda | L5: Alur | M5: Aiza | N5: Chegunta | O5: Atmakur | P5: Banswada | Q5: Anumasamudrampeta | R5: Ballikuruva | S5: Basheerabad | T5: Bhamini | U5: Ananthagiri | V5: Bhoghapuram | W5: Bhupalpalle | X5: Attili | Y5: 3 | Z5: Chittoor District | AA5: Chandurthi | AB5: 4 | AF5: 3 | AG5: Chittoor District
A6: 4 | B6: Boath | C6: Anantapur | D6: Buchinaidu Khandriga | E6: Bheemavaram | F6: Bapatla | H6: Brahmamgarimattam | I6: Choppadandi | J6: Bhadrachalam | K6: Bantumilli | L6: Aspari | M6: Alampur | N6: Chinna Kodur | O6: Atmakur | P6: Bheemgal | Q6: Atmakur | R6: Bestavaripeta | S6: Chevella | T6: Burja | U6: Araku Valley | V6: Bobbili | W6: Chennaraopet | X6: Bheemavaram | Y6: 4 | Z6: West godavari District | AA6: Choppadandi | AB6: 5 | AF6: 4 | AG6: West godavari District
A7: 5 | B7: Dilawarpur | C7: Atmakur | D7: Chandragiri | E7: Bhimadole | F7: Bellamkonda | H7: Chakrayapet | I7: Dharmapuri | J7: Bonakal | K7: Bapulapadu | L7: Atmakur | M7: Amangal | N7: Doultabad | O7: Bhuvanagiri | P7: Bhiknur | Q7: Balayapalli | R7: Chadrasekara Puram | S7: Dharur | T7: Etcherla | U7: Atchutapuram | V7: Bondapalle | W7: Cheriyal | X7: Bhimadole | Y7: 5 | Z7: Guntur District | AA7: Dharmapuri | AB7: 6 | AF7: 5 | AG7: Guntur District
A8: 6 | B8: Jainad | C8: Bathalapalle | D8: Chinnagottigallu | E8: Buttayagudem | F8: Bhattiprolu | H8: Chapad | I8: Dharmaram | J8: Burgampadu | K8: Challapalli | L8: Banaganapalle | M8: Amrabad | N8: Dubbak | O8: Bibinagar | P8: Bichkunda | Q8: Bogole | R8: Chimakurthi | S8: Domah | T8: Ganguvari Singadam | U8: Bheemunipatnam | V8: Chintalavalasa | W8: Chityal | X8: Buttayagudem | Y8: 6 | Z8: Hyderabad District | AA8: Dharmaram | AB8: 7 | AF8: 6 | AG8: Hyderabad District
A9: 7 | B9: Kaddampeddur | C9: Beluguppa | D9: Chittoor | E9: Chagallu | F9: Bollapalle | H9: Chennur | I9: Ellanthakunta | J9: Chandrugonda | K9: Chandarlapadu | L9: Bandi Atmakur | M9: Atmakur | N9: Eddumailaram | O9: Bommalaramaram | P9: Birkoor | Q9: Buchireddipalem | R9: Chinaganjam | S9: Gandeed | T9: Kaligapatnam | U9: Butchayyapeta | V9: Cheepurupalle | W9: Devaruppula | X9: Chagallu | Y9: 7 | Z9: Kaddapah District | AA9: Ellanthakunta | AB9: 8 | AF9: 7 | AG9: Kaddapah District
A10: 8 | B10: Khanpur | C10: Bommanahal | D10: Chowdepalle | E10: Chintalapudi | F10: Chebrole | H10: ChinnaChowk | I10: Gambhiraopet | J10: Cherla | K10: Chatrai | L10: Bethamcherla | M10: Balanagar | N10: Gajwel | O10: Chandam Pet | P10: Bodhan | Q10: Chejerla | R10: Chirala | S10: Ghatkesar | T10: Hiramandalam | U10: Cheedikada | V10: Dattirajeru | W10: Dharmasagar | X10: Chintalapudi | Y10: 8 | Z10: Kareemnagar District | AA10: Gambhiraopet | AB10: 9 | AF10: 8 | AG10: Kareemnagar District
A11: 9 | B11: Kuntala | C11: Brahmasamudram | D11: Gangadhara Nellore | E11: Denduluru | F11: Cherukupalle | H11: Chinnamandem | I11: Gangadhara | J11: Chinthakani | K11: G Konduru | L11: Bugganipalle | M11: Balmoor | N11: Hathnoora | O11: Chandur | P11: Dhar Palle | Q11: Chillakur | R11: Cumbum | S11: Hayathnagar | T11: Ichchapuram | U11: Chintapalle | V11: Denkada | W11: Dornakal | X11: Denduluru | Y11: 9 | Z11: Khammam District | AA11: Gangadhara | AB11: 10 | AF11: 9 | AG11: Khammam District
A12: 10 | B12: Mamda | C12: Bukkapatnam | D12: Gangavaram | E12: Devarapalle | F12: Chilakaluripet | H12: Chintha Kommadinne | I12: Gollapalle | J12: Chintur | K12: Gampalagudem | L12: C.Belagal | M12: Bhoothpur | N12: Jagdevpur | O12: Chilkur | P12: Dich Palle | Q12: Chittamur | R12: Darsi | S12: Ibrahimpatam | T12: Jalumuru | U12: Chodavaram | V12: Gajapathinagaram | W12: Duggondi | X12: Devarapalle | Y12: 10 | Z12: Krishan District | AA12: Gollapalle | AB12: 11 | AF12: 10 | AG12: Krishan District
A13: 11 | B13: Rebbana | C13: Bukkarayasamudram | D13: Gudi Palle | E13: Dwaraka Tirumala | F13: Dachepalle | H13: Chitvel | I13: Husnabad | J13: Dammapeta | K13: Gannavaram | L13: Chagalamarri | M13: Bijinapalle | N13: Jharasangam | O13: Chintha Palle | P13: Domakonda | Q13: Dagadarthi | R13: Donakonda | S13: Kandukur | T13: Kanchili | U13: Devarapalle | V13: Gantyada | W13: Eturnagaram | X13: Dwaraka Tirumala | Y13: 11 | Z13: Kurnool District | AA13: Husnabad | AB13: 12 | AF13: 11 | AG13: Kurnool District
A14: 12 | B14: Talamadugu | C14: Chenne Kothapalle | D14: Gudipala | E14: Eluru | F14: Duggirala | H14: Cuddapah | I14: Huzurabad | J14: Dummugudem | K14: Ghantasala | L14: Chippagiri | M14: Bomraspeta | N14: Jinnaram | O14: Chityala | P14: Gandhari | Q14: Dakkili | R14: Dornala | S14: Keesara | T14: Kaviti | U14: Dumbriguda | V14: Garividi | W14: Geesugonda | X14: Eluru | Y14: 12 | Z14: Mahaboobnagar District | AA14: Huzurabad | AB14: 13 | AF14: 12 | AG14: Mahaboobnagar District
A15: 13 | B15: Tiryani | C15: Chilamathur | D15: Gurramkonda | E15: Ganapavaram | F15: Durgi | H15: Duvvur | I15: Ibrahimpatnam | J15: Enkuru | K15: Gudivada | L15: Devanakonda | M15: Chinna Chinta Kunta | N15: Kalher | O15: Chivvemla | P15: Jakranpalle | Q15: Doravarisatram | R15: Giddaluru | S15: Kulkacharla | T15: Kotabommili | U15: Gajuwaka | V15: Garugubilli | W15: Ghanapur | X15: Ganapavaram | Y15: 13 | Z15: Medak District | AA15: Ibrahimpatnam | AB15: 14 | AF15: 13 | AG15: Medak District
A16: 14 | B16: Asifabad | C16: D.Hirchal | D16: Irala | E16: Gopalapuram | F16: Edlapadu | H16: Galiveedu | I16: Jagtial | J16: Garla | K16: Gudlavalleru | L16: Dhone | M16: Damaragidda | N16: Kohir | O16: Choutuppal | P16: Jukkal | Q16: Duttalur | R16: Gudluru | S16: Maheswaram | T16: Kothuru | U16: Gangaraju Madugula | V16: Gummalakshmipuram | W16: Ghanpur(Stn) | X16: Gopalapuram | Y16: 14 | Z16: Nalgonda District | AA16: Jagtial | AB16: 15 | AF16: 14 | AG16: Nalgonda District
A17: 15 | B17: Bellampalle | C17: Dharmavaram | D17: K V P Puram | E17: Iragavaram | F17: Guntur | H17: Gopavaram | I17: Jammikunta | J17: Gundala | K17: Gudur | L17: Dornipadu | M17: Devarkadara | N17: Kondapak | O17: Dameracherla | P17: Kamareddy | Q17: Gudur | R17: Hanumanthunipadu | S17: Malkajgiri | T17: Laveru | U17: Golugonda | V17: Gurla | W17: Govindaraopet | X17: Iragavaram | Y17: 15 | Z17: Nizamabad District | AA17: Jammikunta | AB17: 16 | AF17: 15 | AG17: Nizamabad District
A18: 16 | B18: Chennur | C18: Gandlapenta | D18: Kalakada | E18: Jangareddigudem | F18: Gurazala | H18: Jammalamadugu • | I18: Julapalle | J18: Julurpad | K18: Ibrahimpatnam | L18: Gadivemula | M18: Dhanwada | N18: Kondapur | O18: Devarakonda | P18: Kammar Palle | Q18: Indukurpet | R18: Inkollu | S18: Manchal | T18: Mandasa | U18: Gudem Kothaveedhi | V18: Jami | W18: Gudur | X18: Jangareddigudem | Y18: 16 | Z18: Nellore District | AA18: Julapalle | AB18: 17 | AF18: 16 | AG18: Nellore District
A19: 17 | B19: Gudihathnur | C19: Garladinne | D19: Kalikiri | E19: Jeelugumilli | F19: Ipuru | H19: Kalasapadu | I19: Kamalapur | J19: Kalluru | K19: Jaggayyapeta | L19: Gonegandla | M19: Dharur | N19: Kowdipalle | O19: Garide Palle | P19: Kotgiri | Q19: Jaladanki | R19: Janakavaram Panguluru | S19: Marpalle | T19: Meilaputti | U19: Hukumpeta | V19: Jiyyamma Valasa | W19: Hanamkonda | X19: Jeelugumilli | Y19: 17 | Z19: Prakasam District | AA19: Kamalapur | AB19: 18 | AF19: 17 | AG19: Prakasam District
A20: 18 | B20: Jainoor | C20: Gooty | D20: Kambhamvaripalle | E20: Kalla | F20: Kakumanu | H20: Kamalapuram | I20: Kamanpur | J20: Karepalli | K20: Kaikalur | L20: Gospadu | M20: Doulatabad | N20: Kulcharam | O20: Gundala | P20: Lingampet | Q20: Kaligiri | R20: Kandukur | S20: Medchal | T20: Nandigam | U20: K Kotapadu | V20: Komarada | W20: Hasanparthy | X20: Kalla | Y20: 18 | Z20: Ranga reddy District | AA20: Kamanpur | AB20: 19 | AF20: 18 | AG20: Ranga reddy District
A21: 19 | B21: Kagaz Nagar | C21: Gorantla | D21: Karvetinagar | E21: Kamavarapukota | F21: Karempudi | H21: Khajipet | I21: Karimnagar | J21: Khammam Rural | K21: Kalidindi | L21: Gudur | M21: Farooqnagar | N21: Manoor | O21: Gundla Palle | P21: Machareddy | Q21: Kaluvoya | R21: Kanigiri | S21: Moinabad | T21: Narasannapeta | U21: Kasimkota | V21: Kothavalasa | W21: Jangaon | X21: Kamavarapukota | Y21: 19 | Z21: Sreekakulam District | AA21: Karimnagar | AB21: 20 | AF21: 19 | AG21: Sreekakulam District
A22: 20 | B22: Kotapalle | C22: Gudibanda | D22: Kuppam | E22: Kovvur | F22: Karlapalem | H22: Kodur | I22: Kataram | J22: Khammam Urban | K22: Kanchika Cherla | L22: Halaharvi | M22: Gadwal | N22: Medak | O22: Gurrampode | P22: Madnur | Q22: Kavali | R22: Karamchedu | S22: Mominpet | T22: Palakonda | U22: Kotauratla | V22: Kurupam | W22: Kesamudram | X22: Kovvur | Y22: 20 | Z22: Visakhapatnam District | AA22: Kataram | AB22: 21 | AF22: 20 | AG22: Visakhapatnam District
A23: 21 | B23: Laxmanchanda | C23: Gummagatta | D23: Kurabalakota | E23: Koyyalagudem | F23: Kollipara | H23: Kondapuram | I23: Kathlapur | J23: Konijerla | K23: Kankipadu | L23: Holagunda | M23: Ghanpur | N23: Mirdoddi | O23: Huzurnagar | P23: Makloor | Q23: Kodavalur | R23: Komarolu | S23: Nawabpet | T23: Palasa | U23: Koyyuru | V23: Lakkavarapukota | W23: Khanapur | X23: Koyyalagudem | Y23: 21 | Z23: Vizianagaram District | AA23: Kathlapur | AB23: 22 | AF23: 21 | AG23: Vizianagaram District
A24: 22 | B24: Mancherial | C24: Guntakal | D24: Mandanpalle | E24: Lingapalem | F24: Kollur | H24: Lakkireddipalle • | I24: Kesavapatnam | J24: Kothagudem | K24: Koduru | L24: Jupadu Bungalow | M24: Ghattu | N24: Mulug | O24: Jaji Reddi Gudem | P24: Mortad | Q24: Kondapuram | R24: Konakanamitla | S24: Pargi | T24: Pathapatnam | U24: Madugula | V24: Makkuva | W24: Kodakandla | X24: Lingapalem | Y24: 22 | Z24: Warangal District | AA24: Kesavapatnam | AB24: 23 | AF24: 22 | AG24: Warangal District
A25: 23 | B25: Nennal | C25: Hindupur | D25: Mulakalacheruvu | E25: Mogalthur | F25: Krosuru | H25: Lingala | I25: Kodimial | J25: Kukunoor | K25: Kruthivennu | L25: Kallur | M25: Gopalpeta | N25: Munpalle | O25: Kangal | P25: Naga Reddipet | Q25: Kota | R25: Kondapi | S25: Peddemul | T25: Polaki | U25: Makavarapalem | V25: Mentada | W25: Kothagudem | X25: Mogalthur | Y25: 23 | Z25: West godavari District | AA25: Kodimial | AB25: 24 | AF25: 23 | AG25: West godavari District
A26: 24 | B26: Sarangapur | C26: Kadiri | D26: Nagalapuram | E26: Nallajerla | F26: Machavaram | H26: Muddanur | I26: Koheda | J26: Kunavaram | K26: Machilipatnam | L26: Kodumur | M26: Hanwada | N26: Nanganur | O26: Kattangoor | P26: Nandipet | Q26: Kovur | R26: Korisapadu | S26: Pudur | T26: Ponduru | U26: Munagapaka | V26: Merakamudidam | W26: Kuravi | X26: Nallajerla | Y26: 24 | AA26: Koheda | AB26: 25
A27: 25 | B27: Tamsi | C27: Kalyandurg | D27: Nagari | E27: Narasapuram | F27: Macherla | H27: Mylavaram | I27: Konaraopeta | J27: Kusumanchi | K27: Mandavalli | L27: Koilkuntla | M27: Itikyal | N27: Narayankhed | O27: Kethepalle | P27: Navipet | Q27: Manubolu | R27: Kothapatnam | S27: Quthbullapur | T27: Rajam | U27: Munchingiputtu | V27: Nellimarla | W27: Lingala Ghanpur | X27: Narasapuram | Y27: 25 | AA27: Konaraopeta | AB27: 26
A28: 26 | B28: Utnur | C28: Kambadur | D28: Narayanavanam | E28: Nidadavole | F28: Mangalagiri | H28: Mydukur | I28: Koratla | J28: Madhira | K28: Mopidevi | L28: Kolimigundla | M28: Jadcherla | N28: Narsapur | O28: Kodad | P28: Nizam Sagar | Q28: Marripadu | R28: Kurichedu | S28: Rajendranagar | T28: Ranastalam | U28: Nakkapalli | V28: Pachipenta | W28: Maddur | X28: Nidadavole | Y28: 26 | AA28: Koratla | AB28: 27
A29: 27 | B29: Bazarhathnoor | C29: Kanaganapalle | D29: Nimmanapalle | E29: Nidamarru | F29: Medikonduru | H29: Nandalur | I29: Mahadevpur | J29: Manuguru | K29: Movva | L29: Kosigi | M29: Kalwakurthy | N29: Nyalkal | O29: M Turkapalle | P29: Nizamabad | Q29: Muthukur | R29: Lingasamudram | S29: Saroornagar | T29: Regidiamadalavalasa | U29: Narsipatnam | V29: Parvathipuram | W29: Mahabubabad | X29: Nidamarru | Y29: 27 | AA29: Mahadevpur | AB29: 28
A30: 28 | B30: Bhainsa | C30: Kanekal | D30: Nindra | E30: Palacole | F30: Muppalla | H30: Obulavaripalle | I30: Malharrao | J30: Mudigonda | K30: Mudinepalli | L30: Kothapalle | M30: Keshampeta | N30: Papannapet | O30: Marri Guda | P30: Pitlam | Q30: Naidupeta | R30: Maddipadu | S30: Serilingampalle | T30: Santhabommali | U30: Nathavaram | V30: Pusapatirega | W30: Mangapet | X30: Palacole | Y30: 28 | AA30: Malharrao | AB30: 29
A31: 29 | B31: Dahegaon | C31: Kothacheruvu | D31: Pakala | E31: Palakoderu | F31: Nadendla | H31: Peddamudium • | I31: Mallapur | J31: Mulakalapalle | K31: Musunuru | L31: Kowthalam | M31: Kodair | N31: Patancheru | O31: Mattampalle | P31: Ranjal | Q31: Nellore | R31: Markapur | S31: Shabad | T31: Santhakaviti | U31: Paderu | V31: Ramabhadrapuram | W31: Maripeda | X31: Palakoderu | Y31: 29 | AA31: Mallapur | AB31: 30
A32: 30 | B32: Ichoda | C32: Kudair | D32: Palamaner | E32: Pedapadu | F32: Nagaram | H32: Penagaluru | I32: Mallial | J32: Nelakondapalle | K32: Mylavaram | L32: Krishnagiri | M32: Kodangal | N32: Pulkal | O32: Mellachervu | P32: Sadasivanagar | Q32: Ojili | R32: Marripudi | S32: Shamirpet | T32: Saravakota | U32: Padmanabham | V32: Salur | W32: Mogullapalle | X32: Pedapadu | Y32: 30 | AA32: Mallial | AB32: 31
A33: 31 | B33: Jaipur | C33: Kundurpi | D33: Palasamudram | E33: Pedavegi | F33: Nakarikallu | H33: Pendlimarri | I33: Manakondur | J33: Palawancha | K33: Nagayalanka | L33: Kurnool | M33: Koilkonda | N33: Raikode | O33: Miryalaguda | P33: Sirkonda | Q33: Pellakur | R33: Martur | S33: Shamshabad | T33: Sarubujjili | U33: Paravada | V33: Seethanagaram | W33: Mulug | X33: Pedavegi | Y33: 31 | AA33: Manakondur | AB33: 32
A34: 32 | B34: Kasipet | C34: Lepakshi | D34: Pedda Panjani | E34: Pentapadu | F34: Narasaraopeta | H34: Porumamilla | I34: Manthani | J34: Penuballi | K34: Nandigama | L34: Maddikera East | M34: Kollapur | N34: Ramachandrapuram | O34: Mothey | P34: Tadwai | Q34: Podlakur | R34: Mundlamuru | S34: Shankarpalle | T34: Seethampeta | U34: Payakaraopeta | V34: Srungavarapukota | W34: Nallabelly | X34: Pentapadu | Y34: 32 | AA34: Manthani | AB34: 33
A35: 33 | B35: Kouthala | C35: Mudigubba | D35: Peddamandyam | E35: Penugonda | F35: Nizampatnam | H35: Proddutur | I35: Medipalle | J35: Pinapaka | K35: Nandivada | L35: Mahanandi | M35: Kondurg | N35: Ramayampet | O35: Mothkur | P35: Varni | Q35: Rapur | R35: Naguluppalapadu | S35: Tandur | T35: Sompeta | U35: Pedabayalu | V35: Therlam | W35: Narmetta | X35: Penugonda | Y35: 33 | AA35: Medipalle | AB35: 34
A36: 34 | B36: Lohesra | C36: Nallacheruvu | D36: Peddathippasamudram | E36: Penumantra | F36: Nuzendla | H36: Pulivendla | I36: Metpalle | J36: Sathupalle | K36: Nuzvid | L36: Mantralayam | M36: Kosgi | N36: Regode | O36: Munagala | P36: Velpur | Q36: Sangam | R36: Ongole | S36: Uppal | T36: Srikakulam | U36: Pedagantyada | V36: Vepada | W36: Narsampet | X36: Penumantra | Y36: 34 | AA36: Metpalle | AB36: 35
A37: 35 | B37: Mandamarri | C37: Nallamada | D37: Penumuru | E37: Peravali | F37: Pedakakani | H37: Pullampeta | I37: Mustabad | J37: Singareni | K37: Pamarru | L37: Midthur | M37: Kothakota | N37: Sadasivpet | O37: Munugode | P37: Yeda Palle | Q37: Seetharamapuram | R37: Pamur | S37: Vikarabad | T37: Tekkali | U37: Pendurthi | V37: Vizianagaram | W37: Narsimhulapet | X37: Peravali | Y37: 35 | AA37: Mustabad | AB37: 36
A38: 36 | B38: Neradigonda | C38: Nambulipulikunta | D38: Pichatur | E38: Poduru | F38: Pedakurapadu | H38: Railway Koduru • | I38: Mutharam Mahadevpur | J38: Thallada | K38: Pamidimukkala | L38: Nandavaram | M38: Kothur | N38: Sangareddy | O38: Nadigudem | P38: Yellareddy | Q38: Sullurpeta | R38: Parchur | S38: Yacharam | T38: Vajrapukothuru | U38: Rambilli | W38: Nekkonda | X38: Poduru | Y38: 36 | AA38: Mutharam Mahadevpur | AB38: 37
A39: 37 | B39: Sirpur (T) | C39: Narpala | D39: Pileru | E39: Polavaram | F39: Phirangipuram | H39: Rajampet | I39: Mutharam Manthani | J39: Thirumalayapalem | K39: Pedana | L39: Nandi Kotkur | M39: Lingal | N39: Shankarampet (A) | O39: Nakrekal | Q39: Sydapuram | R39: Pedaaraveedu | S39: Yelal | T39: Vangara | U39: Ravikamatham | W39: Nellikudur | X39: Polavaram | Y39: 37 | AA39: Mutharam Manthani | AB39: 38
A40: 38 | B40: Tandur | C40: Obuladevaracheruvu | D40: Pulicherla | E40: T Narasapuram | F40: Piduguralla | H40: Raju Palem | I40: Odela | J40: Vararamachandrapuram | K40: Pedaparupudi | L40: Nandyal | M40: Maddur | N40: Shankarampet (R) | O40: Nalgonda | Q40: Tada | R40: Pedacherlopalle | T40: Veeraghattam | U40: Rolugunta | W40: Palakurthi | X40: T Narasapuram | Y40: 38 | AA40: Odela | AB40: 39
A41: 39 | B41: Vemanpalle | C41: Pamidi | D41: Punganur | E41: Tadepalligudem | F41: Pittalavanipalem | H41: Ramapuram | I41: Peddapalle | J41: Velairpad | K41: Penamaluru | L41: Orvakal | M41: Madgul | N41: Shivampet | O41: Nampalle | Q41: Thotapalligudur | R41: Podili | U41: S Rayavaram | W41: Parkal | X41: Tadepalligudem | Y41: 39 | AA41: Peddapalle | AB41: 40
A42: 40 | B42: Bejjur | C42: Parigi | D42: Puthalapattu | E42: Tanuku | F42: Ponnur | H42: Rayachoti | I42: Pegadapalle | J42: Vemsoor | K42: Penuganchiprolu | L42: Owk | M42: Maganoor | N42: Siddipet | O42: Narayanapur | Q42: Udayagiri | R42: Ponnaluru | U42: Sabbavaram | W42: Parvathagiri | X42: Tanuku | Y42: 40 | AA42: Pegadapalle | AB42: 41
A43: 41 | B43: Bheemini | C43: Peddapappur | D43: Puttur | E43: Thallapudi | F43: Prathipadu | H43: S Mydukur | I43: Raikal | J43: Venkatapuram | K43: Reddigudem | L43: Pagidyala | M43: Mahbubnagar | N43: Tekmal | O43: Narketpalle | Q43: Vakadu | R43: Pullalacheruvu | U43: Visakhapatnam | W43: Raghunatha Palle | X43: Thallapudi | Y43: 41 | AA43: Raikal | AB43: 42
A44: 42 | B44: Dandepalle | C44: Peddavadugur | D44: Rama Kuppam | E44: Undi | F44: Rajupalem | H44: Sambepalle | I44: Ramadugu | J44: Wazeed | K44: Thotlavalluru | L44: Pamulapadu | M44: Makthal | N44: Tupran | O44: Nered Cherla | Q44: Varikuntapadu | R44: Racherla | U44: Visakhapatnam(U) | W44: Raiparthy | X44: Undi | Y44: 42 | AA44: Ramadugu | AB44: 43
A45: 43 | B45: Inderavelly | C45: Penu Konda | D45: Ramachandrapuram | E45: Undrajavaram | F45: Rentacrintala | H45: Sidhout | I45: Ramagundam | J45: Wyra | K45: Tiruvuru | L45: Panyam | M45: Maldakal | N45: Wargal | O45: Nidamanur | Q45: Venkatachalam | R45: Santhamaguluru | U45: Yelamanchili | W45: Regonda | X45: Undrajavaram | Y45: 43 | AA45: Ramagundam | AB45: 44
A46: 44 | B46: Jannaram | C46: Putlur | D46: Ramasamudram | E46: Unguturu | F46: Repalle | H46: Simhadripuram • | I46: Saidapur | J46: Yellandu | K46: Unguturu | L46: Pattikanda | M46: Manopadu | N46: Yeldurthy | O46: Nuthankal | Q46: Venkatagiri | R46: Santhanuthlapadu | W46: Sangem | X46: Unguturu | Y46: 44 | AA46: Saidapur | AB46: 45
A47: 45 | B47: Kerameri | C47: Puttaparthi | D47: Renigunta | E47: Veeravasaram | F47: Rompicherla | H47: T Sundupalle | I47: Sarangapur | J47: Yerrupalem | K47: Vatsavai | L47: Peapally | M47: Midjil | N47: Zahirabad | O47: Pedda Adiserlapalle | Q47: Vidavalur | R47: Singarayakonda | W47: Shayampet | X47: Veeravasaram | Y47: 45 | AA47: Sarangapur | AB47: 46
A48: 46 | B48: Kubeer | C48: Ramagiri | D48: Rompicherla | E48: Yelamanchili | F48: Sattenapalle | H48: Thandur | I48: Sirsilla | K48: Veerullapadu | L48: Pedda Kadubur | M48: Nagar Kurnool | O48: Peddavura | Q48: Vinjamur | R48: Tangutur | W48: Tadvai | X48: Yelamanchili | Y48: 46 | AA48: Sirsilla | AB48: 47
A49: 47 | B49: Luxettipet | C49: Raptadu | D49: Santhi Puram | F49: Savalyapuram | H49: Vallur | I49: Srirampur | K49: Vijayawada Rural | L49: Rudravaram | M49: Narayanpet | O49: Penpahad | R49: Tarlapadu | W49: Thorrur | Y49: 47 | AA49: Srirampur | AB49: 48
A50: 48 | B50: Mudhole | C50: Roddam | D50: Satyavedu | F50: Tadikonda | H50: Veeraballe | I50: Sultanabad | K50: Vijayawada Urban | L50: Sanjamala | M50: Narva | O50: Pochampalle | R50: Thallur | W50: Venkatapur | Y50: 48 | AA50: Sultanabad | AB50: 49
A51: 49 | B51: Nirmal | C51: Rolla | D51: Sodam | F51: Tenali | H51: Veerapunayunipalle • | I51: Thimmapur | K51: Vissannapet | L51: Sirvel | M51: Nawabpet | O51: Rajapet | R51: Tripuranthakam | W51: Wardhannapet | Y51: 49 | AA51: Thimmapur | AB51: 50
A52: 50 | B52: Sirpur (U) | C52: Settur | D52: Somala | F52: Thadepalle | H52: Vempalle | I52: Veenavanka | K52: Vuyyuru | L52: Srisailam | M52: Pangal | O52: Ramannapeta | R52: Ulavapadu | W52: Zaffergadh | Y52: 50 | AA52: Veenavanka | AB52: 51
A53: 51 | B53: Tanur | C53: Singanamala | D53: Srikalahasti | F53: Thullur | H53: Vemula | I53: Velgatoor | L53: Tuggali | M53: Pebbair | O53: Saligouraram | R53: Veligandla | Y53: 51 | AA53: Velgatoor | AB53: 52
A54: 52 | B54: Wankdi | C54: Somandepalle | D54: Srirangarajapuram | F54: Tsundur | H54: Vontimitta | I54: Vemulawada | L54: Uyyalawada | M54: Peddakothapalle | O54: Suryapet | R54: Vetapalem | Y54: 52 | AA54: Vemulawada | AB54: 53
A55: 53 | C55: Tadimarri | D55: Thamballapalle | F55: Vatticherukuru | H55: Yerraguntla | I55: Yella Reddi Peta | L55: Veldurthi | M55: Peddamandadi | O55: Thipparthi | R55: Voletivaripalem | Y55: 53 | AA55: Yella Reddi Peta | AB55: 54
A56: 54 | C56: Tadpatri | D56: Thavanampalle | F56: Veldurthi | L56: Velgodu | M56: Tadoor | O56: Thirumalagiri | R56: Yeddanapudi | Y56: 54 | AA56: 0 | AB56: 55
A57: 55 | C57: Talupula | D57: Thottambedu | F57: Vemuru | L57: Yemmiganur | M57: Talakondapalle | O57: Thripuraram | R57: Yerragondapalem | Y57: 55 | AA57: 0 | AB57: 56
A58: 56 | C58: Tanakal | D58: Tirupati Rural | F58: Vinukonda | M58: Telkapalle | O58: Thunga Thurthi | R58: Zarugumilli | Y58: 56 | AA58: 0 | AB58: 57
A59: 57 | C59: Uravakonda | D59: Tirupati Urban | M59: Thimmajipeta | O59: Valigonda | Y59: 57 | AA59: 0 | AB59: 58
A60: 58 | C60: Vajrakarur | D60: Vadamalapeta | M60: Uppununthala | O60: Vemulapalle | Y60: 58 | AA60: 0 | AB60: 59
A61: 59 | C61: Vidapanakal | D61: Varadaiahpalem | M61: Utkoor | O61: Yadagirigutta | Y61: 59 | AA61: 0 | AB61: 60
A62: 60 | C62: Yadiki | D62: Vayalpad | M62: Vangoor | Y62: 60 | AA62: 0 | AB62: 61
A63: 61 | C63: Yellanur | D63: Veduru Kuppam | M63: Veepangandla | Y63: 61 | AA63: 0 | AB63: 62
A64: 62 | D64: Venkatagiri Kota | M64: Veldanda | Y64: 62 | AA64: 0 | AB64: 63
A65: 63 | D65: Vijaya Puram | M65: Waddepalle | Y65: 63 | AA65: 0 | AB65: 64
A66: 64 | D66: Yadamari | M66: Wanaparthy | Y66: 64 | AA66: 0 | AB66: 65
A67: 65 | D67: Yerpedu | Y67: 65 | AA67: =HLOOKUP($Z$1,$B$2:$X$68,AB67,FALSE) -> 0 | AB67: 66
A68: 66 | D68: Yerravaripalem | Y68: 66 | AA68: =HLOOKUP($Z$1,$B$2:$X$68,AB68,FALSE) -> 0 | AB68: 67
R86: =R88&"-"&S88&"-"&T87 -> 17-7-2010 | W86: =W88&"-"&X88&"-"&Y87 -> 21-6-2011 | AB86: =AB88&"-"&AC88&"-"&AD87 -> 24-11-2011
S87: =LOOKUP(S88,R89:S100,S89:S100) -> Jul | T87: =LOOKUP(T88,R89:T100,T89:T100) -> 2010 | X87: =LOOKUP(X88,W89:X100,X89:X100) -> Jun | Y87: =LOOKUP(Y88,W89:Y100,Y89:Y100) -> 2011 | AC87: =LOOKUP(AC88,AB89:AC100,AC89:AC100) -> Nov | AD87: =LOOKUP(AD88,AB89:AD100,AD89:AD100) -> 2011 | AE87: =VLOOKUP(AE88,AB89:AE94,4) -> first
R88: 17 | S88: 7 | T88: 1 | W88: 21 | X88: 6 | Y88: 2 | AB88: 24 | AC88: 11 | AD88: 2 | AE88: 1
R89: 1 | S89: Jan | T89: 2010 | W89: 1 | X89: Jan | Y89: 2010 | AB89: 1 | AC89: Jan | AD89: 2010 | AE89: first
R90: 2 | S90: Feb | T90: 2011 | W90: 2 | X90: Feb | Y90: 2011 | AB90: 2 | AC90: Feb | AD90: 2011 | AE90: second
R91: 3 | S91: Mar | T91: 2012 | W91: 3 | X91: Mar | Y91: 2012 | AB91: 3 | AC91: Mar | AD91: 2012 | AE91: third
R92: 4 | S92: Apr | T92: 2013 | W92: 4 | X92: Apr | Y92: 2013 | AB92: 4 | AC92: Apr | AD92: 2013 | AE92: fourth
R93: 5 | S93: May | W93: 5 | X93: May | AB93: 5 | AC93: May | AE93: fifth
R94: 6 | S94: Jun | W94: 6 | X94: Jun | AB94: 6 | AC94: Jun | AE94: sixth
R95: 7 | S95: Jul | W95: 7 | X95: Jul | AB95: 7 | AC95: Jul
R96: 8 | S96: Aug | W96: 8 | X96: Aug | AB96: 8 | AC96: Aug
R97: 9 | S97: Sep | W97: 9 | X97: Sep | AB97: 9 | AC97: Sep
R98: 10 | S98: Oct | W98: 10 | X98: Oct | AB98: 10 | AC98: Oct
R99: 11 | S99: Nov | W99: 11 | X99: Nov | AB99: 11 | AC99: Nov
R100: 12 | S100: Dec | W100: 12 | X100: Dec | AB100: 12 | AC100: Dec
R101: 13 | W101: 13 | AB101: 13
R102: 14 | W102: 14 | AB102: 14
R103: 15 | W103: 15 | AB103: 15
R104: 16 | W104: 16 | AB104: 16
R105: 17 | W105: 17 | AB105: 17
R106: 18 | W106: 18 | AB106: 18
R107: 19 | W107: 19 | AB107: 19
R108: 20 | W108: 20 | AB108: 20
R109: 21 | W109: 21 | AB109: 21
R110: 22 | W110: 22 | AB110: 22
R111: 23 | W111: 23 | AB111: 23
R112: 24 | W112: 24 | AB112: 24
R113: 25 | W113: 25 | AB113: 25
R114: 26 | W114: 26 | AB114: 26
R115: 27 | W115: 27 | AB115: 27
R116: 28 | W116: 28 | AB116: 28
R117: 29 | W117: 29 | AB117: 29
R118: 30 | W118: 30 | AB118: 30
R119: 31 | W119: 31 | AB119: 31

Sheet Form c
B2: FROM “C”
B3: (Vide Rule 15 (3)
B4: APPLICATION FOR CLAIMING REFND OF MEDICAL EXPENSES
B5: 1. | C5: Name and designation of the Government Servant | H5: : | I5: =UPPER(MAIN!$I$6) -> G.SAIVIJAYA KUMAR
C6: (In Block letters) | I6: =Code!R31 -> School Assistant (Phy. Edn.)
B8: 2. | C8: Office in which employed | H8: : | I8: =Code!R32 -> ZPP. High School, Balayapalli
I9: =Code!R33 -> Jammikunta
I10: =Code!R34 -> Kareemnagar District
B12: 3. | C12: Salary | H12: : | I12: =Salary!D26 -> Rs.12298
B14: 4. | C14: Place of duty | H14: : | I14: =I8 -> ZPP. High School, Balayapalli
B16: 5. | C16: Full residential address | H16: : | I16: ="H.No:"&MAIN!$G$13 -> H.No:7-197,PS street
I17: =MAIN!$G$14 -> Venkatagiri
I18: =Mandals3!AD2 -> Gannavaram
I19: =Mandals3!Z1 -> Krishan District
B20: 6. | C20: Name of the patient and his Relationship to the Govt servant | H20: : | I20: =Code!F65&PROPER(MAIN!$R$6)&","&PROPER(Code!B55) -> Smt.G.Padmavathamma,Self
B22: 7. | C22: Place at which the patient Fell ill | H22: : | I22: =Code!O1 -> Venkatapadma Hospitals, 15-1-45, Three Lamps Junction, Beside Masjid, Vizianagaram
B26: 8. | C26: Nature of illness and its duration | H26: : | I26: =MAIN!$Q$9&".,"&"from "&Mandals1!R86&" to "&Mandals1!W86&"." -> Undrewent Phacoemulsification with IOL implementation left eye and cataract left eye.,from 17-7-2010 to 21-6-2011.
B30: 9. | C30: Details of amount claimed. | H30: : | I30: ='aPP ii'!E26&" "&'aPP ii'!E27&" "&'aPP ii'!E28 -> List of Medicines in detailed and Essentiality Certificates are enclosed
B33: 10. | C33: Total amount claimed. | H33: : | I33: ='aPP ii'!E29&'aPP ii'!F29&" "&'aPP ii'!E30 -> Rs.2000-00 (Rupees Two Thousand and Zero Only)
B37: 11. | C37: List of enclosures | H37: : | I37: ='aPP ii'!F31 -> Requisition letter to HM.
I38: ='aPP ii'!F32 -> Requisition letter from HM to DEO.
I39: ='aPP ii'!F33 -> Salary certifcate
I40: ='aPP ii'!F34 -> Appendix II
I41: ='aPP ii'!F35 -> Form -C
I42: ='aPP ii'!F36 -> Check List
I43: ='aPP ii'!F37 -> Essentiality Certificate
I44: ='aPP ii'!F38 -> Dependent Certificate
I45: ='aPP ii'!F39 -> Availment certificate
I46: ='aPP ii'!F40 -> Non-Drawl Certificate
I47: ='aPP ii'!F41 -> Discharge summary
I48: ='aPP ii'!F42 -> Medical Bills
B51: DICLARATION TO BE SIGNED BY THE GOVERNMENT SERVANT
C53: I hereby declare that the Statement in this application is true to the best of my knowledge and belief and that the person for whom medical expenses were incurred is a pensioner of the A.P State Government.
E56: Signature of the Govt servant

Sheet Check Slip
B2: CHECK SLIP FOR SENDING MEDICAL REIMBURSEMENT PROPOSALS
B3: 1 | C3: Name and Official Address of the Employee | E3: =IF(Code!Q3="","",UPPER(Code!R30)) -> SRI. G.SAIVIJAYA KUMAR
E4: =Code!R31 -> School Assistant (Phy. Edn.)
E5: =Code!R32 -> ZPP. High School, Balayapalli
E6: =Code!R33 -> Jammikunta
E7: =Code!R34 -> Kareemnagar District
B8: 2 | C8: Name of the Patient and relationship | E8: ='Form c'!I20 -> Smt.G.Padmavathamma,Self
B9: 3 | C9: Dates of Treatment | E9: ="from "&Mandals1!R86&" to "&Mandals1!W86&"." -> from 17-7-2010 to 21-6-2011.
B10: 4 | C10: Name and Address of Hospital | E10: =IF(Code!T8="","",UPPER(Code!O1)) -> VENKATAPADMA HOSPITALS, 15-1-45, THREE LAMPS JUNCTION, BESIDE MASJID, VIZIANAGARAM
B13: 5 | C13: Whether Private or Government? | E13: =UPPER(Code!D73) -> GOVERNMENT
B14: 6 | C14: Whether the proposal is received in the Head Office within a period of six months from the date of discharge? | E14: =CONCATENATE("YES"," /") -> YES / | F14: NO
B15: 7 | C15: Whether Appendix – II attested by the Head of the Office is enclosed? | E15: YES / | F15: NO
B16: 8 | C16: In case of Treatment at Recognized Hospital / NIMS / SVIMS whether Emergency Certificate enclosed? | E16: YES / | F16: NO
B17: 9 | C17: Whether Essentiality Certificate mentioning the amount of expenditure for the Treatment signed by the Doctor who treated and attested by the Authorized Medical Agency is enclosed? | E17: YES / | F17: NO
B18: 10 | C18: Whether the bills for the amount mentioned in the Essentiality Certificate attested by the Doctor who treated /A.M.A. are enclosed? | E18: YES / | F18: NO
B19: 11 | C19: Whether the Discharge Summary of the Patient enclosed? | E19: YES / | F19: NO
B20: 12 | C20: In case of retired teachers whether the copy of the Pension Payment Order is enclosed? | E20: Not Applicable
B21: 13 | C21: In case of dependents above the age of 18 years, unemployment and Dependency Certificate counter signed by the Head of the Office is enclosed? | E21: =IF(MAIN!W8<=18,"Not Applicable","YES") -> Not Applicable
C24: Signature of the Government Servant | G24: Signature of the Head of the Office

Sheet Salary
B4: =CONCATENATE(" This is certify that ",Code!R30, " ",Code!P57," ",N12," "," working in this office ",'Form c'!I14," as ",'Form c'!I6," and ",Code!X13," salary particulars are as follows for the month of ",UPPER(Mandals1!AC87), " 2010.") -> This is certify that Sri. G.Saivijaya Kumar S/o G.Srinivasrao working in this office ZPP. High School, Balayapalli as School Assistant (Phy. Edn.) and his salary particulars are as follows for the month of NOV 2010.
M6: Enter your salary details in green color cells
B11: Pay | G11: Deductions | L11: Employee Name | N11: =MAIN!$I$6 -> G.Saivijaya Kumar
B12: Pay | C12: :: | D12: =IF(N13=0,0,"Rs."&N13) -> Rs.15700 | G12: =Code!G49 -> ZPPF | H12: :: | I12: =IF(R13=0,0,"Rs."&R13) -> Rs.2500 | N12: G.Srinivasrao | P12: Deductions
B13: DA | C13: :: | D13: Rs.2365 | G13: =Code!G53 -> ZPPF Loan | H13: :: | I13: Rs.1000 | L13: Basic Pay | N13: =Code!J136 -> 15700 | O13: GPF/ZPPF/CPS | R13: 2500
B14: HRA | C14: :: | D14: =IF(N15=0,0,"Rs."&N15) -> Rs.1570 | G14: Festival Advance | H14: :: | I14: Rs.200 | L14: DA | N14: 2365 | O14: GPF/ZPPF/CPS LOAN | R14: 1000 | T14: =D31 -> 24-11-2011 | V14: =MONTH(T14) -> 11 | X14: =LOOKUP(V14,T20:AE20,T21:AE21) -> NOVEMBER | Y14: =YEAR(T14) -> 2011
B15: FPI | C15: :: | D15: Rs.75 | G15: GIS | H15: :: | I15: Rs.60 | L15: HRA | N15: 1570 | O15: Festival Advance | R15: 200
B16: AI/PP | C16: :: | D16: Rs.100 | G16: APGLI | H16: :: | I16: Rs.600 | L16: FPI | N16: 75 | O16: GIS | R16: 60
B17: others | C17: :: | D17: Rs.60 | G17: LIC | H17: :: | I17: Rs.3012 | L17: AI/PP | N17: 100 | O17: APGLI | R17: 600
D18: 0 | G18: P. Tax | H18: :: | I18: Rs.200 | L18: Others | N18: 60 | O18: LIC | R18: 3012
B19: Total | C19: :: | D19: ="Rs."&N13+N14+N15+N16+N17+N18 -> Rs.19870 | G19: others | H19: :: | I19: 0 | O19: P.Tax | R19: 200
O20: Others | T20: 1 | U20: 2 | V20: 3 | W20: 4 | X20: 5 | Y20: 6 | Z20: 7 | AA20: 8 | AB20: 9 | AC20: 10 | AD20: 11 | AE20: 12
G21: Total | H21: :: | I21: ="Rs."&R13+R14+R15+R16+R17+R18+R19+R20 -> Rs.7572 | T21: JANUARY | U21: FEBRUARY | V21: MARCH | W21: APRIL | X21: MAY | Y21: JUNE | Z21: JULY | AA21: AUGUST | AB21: SEPTEMBER | AC21: OCTOBER | AD21: NOVEMBER | AE21: DECEMBER
B24: Salary | C24: :: | D24: =D19 -> Rs.19870
B25: Deductions | C25: :: | D25: =I21 -> Rs.7572
B26: Net Total | C26: :: | D26: ="Rs."&N13+N14+N15+N16+N17+N18+N19-R13-R14-R15-R16-R17-R18-R19-R20 -> Rs.12298
T27: JANUARY | U27: FEBRUARY | V27: MARCH | W27: APRIL | X27: MAY | Y27: JUNE | Z27: JULY | AA27: AUGUST | AB27: SEPTEMBER | AC27: OCTOBER | AD27: NOVEMBER | AE27: DECEMBER
B28: =Rs!B100 -> (Rupees Twelve Thousand Two Hundred and Ninety Eighty Only)
T29: 31 | U29: 28 | V29: 31 | W29: 30 | X29: 31 | Y29: 30 | Z29: 31 | AA29: 31 | AB29: 30 | AC29: 31 | AD29: 30 | AE29: 31
B30: Place | C30: :: | D30: =[1]Data!E9 -> ZPPHS,Balayapalli
B31: Date | C31: :: | D31: =Mandals1!AB86 -> 24-11-2011
T33: =LOOKUP(X14,T27:AE27,T29:AE29) -> 31
F36: Signature
F37: Designation
B39: Prepared by:G.Bhasker reddy,STU,Balayapalli Unit

Sheet aPP ii
B2: APPENDIX – II
B3: APPLICATION FOR CLAIMING REFUND OF MEDICAL EXPENSES INCURRED IN CONNECTION WITH MEDICAL ATTENDANCE AND TREATMENT OF GOVERNMENT SERVANT AND THEIR FAMILIES
B4: 1 | C4: Name, Designation & Section of Government Servant (in block letters) | E4: ='Check Slip'!E3 -> SRI. G.SAIVIJAYA KUMAR
E5: ='Form c'!I6 -> School Assistant (Phy. Edn.)
B6: 2 | C6: Office in which Employed | E6: ='Form c'!I8 -> ZPP. High School, Balayapalli
E7: ='Form c'!I9 -> Jammikunta
E8: ='Form c'!I10 -> Kareemnagar District
B9: 3 | C9: Pay of the Government Servant as defined in F.Rs. and other employments which should be shown separately | E9: =Code!F55&" / "&Code!J136 -> 12910-36700 / 15700
B10: 4 | C10: Place of Duty | E10: =IF(Code!S3="","",CONCATENATE(Code!S3,",")) -> ZPP. High School, Balayapalli,
E11: =IF(Code!T3="","",CONCATENATE(Code!T3,",")) -> Balayapalli Mandal,
E12: =IF(Code!U3="","",CONCATENATE(Code!U3,".")) -> Medak District.
B13: 5 | C13: Full Residential Address with door number, name of the Mohalla and District | E13: ='Form c'!I16 -> H.No:7-197,PS street
E14: ='Form c'!I17 -> Venkatagiri
E15: ='Form c'!I18 -> Gannavaram
E16: ='Form c'!I19 -> Krishan District
B17: 6 | C17: Name of the Patient, his/her relationship to the Government Servant, in case of children state age also | E17: ='Check Slip'!E8:K8 -> Smt.G.Padmavathamma,Self
E18: =IF(Code!S8="","",CONCATENATE("Aged"," ",Code!B124," years")) -> Aged 96 years
B19: 7 | C19: Place at which the patient fell ill | E19: ='Form c'!I22 -> Venkatapadma Hospitals, 15-1-45, Three Lamps Junction, Beside Masjid, Vizianagaram
B22: 8 | C22: Nature of illness and its duration | E22: =IF(Code!U8="","",UPPER(Code!U8)) -> UNDREWENT PHACOEMULSIFICATION WITH IOL IMPLEMENTATION LEFT EYE AND CATARACT LEFT EYE
E25: ='Check Slip'!E9 -> from 17-7-2010 to 21-6-2011.
B26: 9 | C26: Details of amount claimed, cost of Medicines purchased from the market/ list of Medicines purchased with cash memos, and the Essentiality Certificate should be attached each in duplicate signed | E26: List of Medicines in detailed
E27: and
E28: Essentiality Certificates are enclosed
B29: 10 | C29: Total amount claimed | F29: =IF(Code!V8="","",CONCATENATE("Rs.",Code!V8,"-00")) -> Rs.2000-00
E30: =IF(Code!W8="","",Code!W8) -> (Rupees Two Thousand and Zero Only)
B31: 11 | C31: List of Enclosures | F31: Requisition letter to HM.
F32: Requisition letter from HM to DEO.
F33: Salary certifcate
F34: Appendix II
F35: Form -C
F36: Check List
F37: Essentiality Certificate
F38: Dependent Certificate
F39: Availment certificate
F40: Non-Drawl Certificate
F41: Discharge summary
F42: Medical Bills
B45: I here by declare that, the statements in this application are true to the best of my knowledge and belief and that the person for whom Medical Expenses were incurred is a member of my family as defined under the Govt. Servant Medical Attendance Rules and wholly dependent upon me.
C48: Signature of the Government Servant | G48: Signature of the Head of the Office

Sheet PROFORMA
B2: PROFORMA
B3: S.No | C3: Name & Designation | D3: Place of Work | E3: Disease Name | F3: Period | G3: Amount | H3: Spell | I3: Entered in SR | J3: Entered in reimbursement Register | K3: Sign of Authority
B4: 1 | C4: =Code!R30&","&Code!R31 -> Sri. G.Saivijaya Kumar,School Assistant (Phy. Edn.) | D4: =MAIN!G8 -> ZPP. High School, Balayapalli | E4: =MAIN!Q9 -> Undrewent Phacoemulsification with IOL implementation left eye and cataract left eye | F4: ='Check Slip'!E9 -> from 17-7-2010 to 21-6-2011. | G4: =CONCATENATE("Rs.",MAIN!Q10) -> Rs.2000 | H4: =Mandals1!AE87 -> first | I4: Yes | J4: Yes

Sheet Dependent
C2: DEPENDENT CERTIFICATE GIVEN BY THE GOVERNMENT SERVANT
C3: (As per instructions issued in C & DSE, A.P., Hyderabad Procs. Rc.No. 8878/D3-4/2009, dated: 02-09-2009)
C6: =IF(Code!B55="self"," I, "&Code!R30&", "&Code!R31&","&Code!R32&","&Code!R33&", "&Code!R34&",do hereby declare that "&'aPP ii'!E17&" "&'aPP ii'!E18&" and has no property of income of "&Code!H97&" own and that,"&Code!H82&" is wholly dependent on me only."," I, "&Code!R30&", "&Code!R31&","&Code!R32&","&Code!R33&", "&Code!R34&",do hereby declare that "&'aPP ii'!E17&" "&'aPP ii'!E18&" and has no property of income of "&Code!H97&" own and that,"&Code!H82&" is wholly dependent on me only, "&Code!H82&" is also not a Employee or Pensioner.") -> I, Sri. G.Saivijaya Kumar, School Assistant (Phy. Edn.),ZPP. High School, Balayapalli,Jammikunta, Kareemnagar District ,do hereby declare that Smt.G.Padmavathamma,Self Aged 96 years and has no property of income of his own and that,he is wholly dependent on me only.
C20: Signature of the Government Servant. | H20: Signature of the Drawing & Disbursing Officer.

Sheet Avilment
B2: AVAILMENT CERTIFICATE GIVEN BY THE GOVERNMENT SERVANT
B6: =" Medical Reimbursement of "&'Form c'!I20&" of " &Code!R30&","&Code!R31&","&Code!R32&","&Code!R33&" Mandal "&Code!R34&" is "&Mandals1!AE87&" spell of claim."&Code!Y12&" was under gone treatment for "&MAIN!$Q$9&" at "&Code!O1&" "&'Check Slip'!E9 -> Medical Reimbursement of Smt.G.Padmavathamma,Self of Sri. G.Saivijaya Kumar,School Assistant (Phy. Edn.),ZPP. High School, Balayapalli,Jammikunta Mandal Kareemnagar District is first spell of claim.she was under gone treatment for Undrewent Phacoemulsification with IOL implementation left eye and cataract left eye at Venkatapadma Hospitals, 15-1-45, Three Lamps Junction, Beside Masjid, Vizianagaram from 17-7-2010 to 21-6-2011.
B12: Signature of the Government Servant. | G12: Signature of the Drawing & Disbursing Officer.

Sheet Nondrawl.
B2: NON DRAWL CERTIFICATE
B3: (As per instructions issued in C & DSE, A.P., Hyderabad Procs. Rc.No. 8878/D3-4/2009, dated: 02-09-2009)
B5: =" This is to certify that the amount claimed towards Medical Reimbursement for the treatment of "&MAIN!Q9&" at "&Code!O1&" "&'Check Slip'!E9&" in respect of "&Code!F65&MAIN!$R$6&", "&Code!B55&" of "&Code!R30&","&Code!R31&","&Code!R32&", "&Code!R33&" Mandal "&Code!R34&" for "&'Form c'!I33&" is the first time and not claimed previously." -> This is to certify that the amount claimed towards Medical Reimbursement for the treatment of Undrewent Phacoemulsification with IOL implementation left eye and cataract left eye at Venkatapadma Hospitals, 15-1-45, Three Lamps Junction, Beside Masjid, Vizianagaram from 17-7-2010 to 21-6-2011. in respect of Smt.G.padmavathamma, self of Sri. G.Saivijaya Kumar,School Assistant (Phy. Edn.),ZPP. High School, Balayapalli, Jammikunta Mandal Kareemnagar District for Rs.2000-00 (Rupees Two Thousand and Zero Only) is the first time and not claimed previously.
B7: A note to that effect has also been made in the records of the school.
B11: Signature of the Government Servant. | G11: Signature of the Drawing & Disbursing Officer.

Sheet Undertaking Cer
B2: UNDER TAKING FOR MEDICAL REIMBURSEMENT BY THE FORWARDING AUTHORITIES
C5: =" I do here by certify that the Medical Reimbursement proposals submitted to "&'DDO Letter'!N4&", "&'DDO Letter'!N5&P17&" "&""&MAIN!Q9&"for "&Code!B55&", treatment taken at "&Code!O1&" "&'Check Slip'!E9&" for Rs."&MAIN!Q10&"/-. "&"The above particulars are truly to the best of my knowledge and verified with reference to the records."&" If any information found incorrect during the course of"&" audit or if any false claim found."&"I will bear the responsibility and abide"&" by the action taken by the department " -> I do here by certify that the Medical Reimbursement proposals submitted to The District Educational Officer, Kaddapah Districtin respect of Sri. G.Saivijaya Kumar,School Assistant (Phy. Edn.),ZPP. High School, Balayapalli,Jammikunta,Kareemnagar District towards the treatment of Undrewent Phacoemulsification with IOL implementation left eye and cataract left eyefor self, treatment taken at Venkatapadma Hospitals, 15-1-45, Three Lamps Junction, Beside Masjid, Vizianagaram from 17-7-2010 to 21-6-2011. for Rs.2000/-. The above particulars are truly to the best of my knowledge and verified with reference to the records. If any information found incorrect during the course of audit or if any false claim found.I will bear the responsibility and abide by the action taken by the department
G8: SIGNATURE OF THE FORWARDING AUTHORITY/DDO.
C11: Note: for Headmaster’s of Gr-II the under taking should be countersigned by the Dy.E.O. Concerned In case of M.E.O.’s the MPDO, should countersign
P12: =CONCATENATE(" ",Code!AL26) -> as I have undergone Treatment for the desease
P15: ="in respect of"&" "&Code!R30&","&Code!R31&","&Code!R32&","&Code!R33&","&Code!R34&" "&"towards the treatment of " -> in respect of Sri. G.Saivijaya Kumar,School Assistant (Phy. Edn.),ZPP. High School, Balayapalli,Jammikunta,Kareemnagar District towards the treatment of
P17: =IF(Code!B55="self",'Undertaking Cer'!P15,'Undertaking Cer'!P12) -> in respect of Sri. G.Saivijaya Kumar,School Assistant (Phy. Edn.),ZPP. High School, Balayapalli,Jammikunta,Kareemnagar District towards the treatment of

Sheet Medical Attendence Rules
B2: The AP Government Employee's Loans Medical Attendance & Family Welfare Code
B3: The Andhra Pradesh Integrated Medical Attendance Rules, 1972
C6: PART 7
C8: MEDICAL ATTENDANCE RULES
C10: The Andhra Pradesh Integrated Medical Attendance
C11: Rules, 1972
C13: 1. Short title :--These rules may be called the "Andhra
C14: Pradesh Medical Attendance Rules,1972.
C16: 2. Extent of Application :-(a) They shall extend to the
C17: whole of the State of Andhra Pradesh.
C19: (2) These rules also apply to persons who are entitled to medical
C20: attendance under the Secretary of State Services (Medical
C21: Attendance) Rules, 1938, the All India Services (Medical
C22: Attendance) Rules, 1954 and also to the Andhra Pradesh State
C23: Higher Judicial Officers who are to be treated on par with the
C24: I.A.S. and I.P.S. Officers, but only to the extent to which they
C25: are not inconsistent with these rules. .
C27: 3. Definitions :- In these rules unless there is anything
C28: repugnant in the subject or context -
C30: (1) "Government Servant" means a whole time Government Servant
C31: employed under the Government of Andhra Pradesh and includes such
C32: servants employed under State Governments with whom reciprocal
C33: agreements in respect of medical attendance have been entered
C34: into, but does not include part time or honorary workers ;
C36: (2) "Hospital" means a Government Hospital and includes any
C37: Special Hospital in the State or any other Medical Institution
C38: recognised by the Government.
C40: Note :-Non-gazetted Officers and Employees of the local bodies
C41: drawing salaries not exceeding Rs. 300 per mensem in the greater
C42: Hyderabad city are permitted to take treatment for their families
C43: in the Maternity and Child Welfare Centres of the Corporation of
C44: Hyderabad only in emergencies and get reimbursement of the
C45: expenses incurred by them, the emergency being certified as such
C46: by the Medical Officer in charge of the Centre;
C48: (3) "Registered Medical Practitioner" means a person
C49: registered under the Madras Medical Registration Act, 1914
C50: adopted to Andhra State; and the Andhra Ayurvedic and
C51: Homoeopathic Medical Practitioners' Registration Act, 1956 and
C52: the Medical Act No. 1 of 1312 Fasli of the erstwhile Hyderabad
C53: Government;
C55: (4) "Authorised Medical Attendant" means a Medical Officer
C56: attached to the Government Hospital or Dispensary in the State
C57: who has been nominated by the Government, from time to time, to
C58: Serve as Authorised Medical Attendant for the State Government
C59: Servants ;
C61: [A list of Authorised Medical Attendants, appointed by the
C62: Government is given in Appendix I to these Rules.]
C64: (5) "Patient" means a Government Servant or any member of his
C65: family and to whom these rules apply and who has fallen ill ;
C67: (6) "Station" means the town or place in which the Government
C68: Servant and other entitled person falls ill ;
C70: (7) "Family" :-(a) In the case of a male Government Servant,
C71: family means his parents, wife, legitimate children including an
C72: adopted son and step Children residing with and wholly dependent
C73: on him ;
C75: (b) In the case of a woman Government Servant it means her
C76: parents, husband and children residing with and wholly dependent
C77: on her.
C79: (i) The word 'wife' includes more than one wife.
C81: (ii) The claims for reimbursement of expenses in respect of
C82: parents should be accompanied by declaration in the proforma
C83: given below.
C85: Proforma
C87: I, .................................................. (full name
C88: and designation) hereby declare that my
C89: father/mother.....................has no property or income of
C90: his/her own and that he/she is wholly dependent on me.
C93: Signature and date.
C95: (iii) A married daughter who is under the protection of her
C96: husband does not come within the definition of "family" for
C97: purposes of these rules.
C99: (iv) The deserted, divorced, or widowed daughters who are
C100: residing with entirely dependent on the Government Servants and
C101: Employees of local bodies drawing salaries not exceeding Rs. 300
C102: per month are eligible for medical concessions allowed to
C103: Government Servants under these rules.
C105: (v) Their family for purpose of these rules will include adoptive
C106: parents who are wholly dependent on the Government Servants but
C107: does not include the real parents, though they are wholly
C108: dependant on the Government Servants once the adoption is
C109: effected]. [G.O.Ms.No. 123, Health, Dt. 25-11-76 & G.O.Ms.No.
C110: 718, Health, Dt. 18-7-1975]
C112: (vi) Medical reimbursement bills of the Member of the State
C113: Legislature can be presented directly to the District Treasury or
C114: Sub-treasury as the case may be, from which they are authorised
C115: to draw their salaries; on the basis of essentiality certificate
C116: issued by the Authorised Medical Attendant without insisting for
C117: the countersignature of the District Medical and Health Officer,
C118: or Superintendent as the case may be.]
C120: [Inserted by G.O.Ms.No.418, H&M, Dt. 26-6-1979]
C122: (8) "Well-to-do-person" means a person who is in receipt of
C123: an annual income of Rs. 1,200 or more or who is a member of the
C124: family of such a person and actually dependent on him.
C126: 4. Medical Attendance :-(1) Medical Attendance in respect of
C127: a Government Servant whose pay is not less than Rs. 500 p.m.
C128: means :-
C130: (i) Attendance in a hospital or at the consulting room of the
C131: Authorised Medical Attendant or at the residence of the Govt.
C132: Servant;
C134: (ii) All pathological, bacteriological, radiological and other
C135: methods of examination for the purpose of diagnosis, as are
C136: available in any Government Hospital within the State and are
C137: considered necessary by the Authorised Medical Attendant ;
C139: (iii) Any consultation with a Specialist in Government employ
C140: within the State or other Medical Officer similarly in Government
C141: employ within the State or that the Authorised Medical Attendant
C142: may certify to be necessary to such extent and in such manner as
C143: the Specialist or Medical Officer in consultation with the
C144: Authorised Medical Attendant, determine.
C146: (2) Medical Attendance in respect of any other Government
C147: Servant, means-
C149: (i) Attendance at a Government Hospital or at the consulting room
C150: of the Authorised Medical Attendant or in case of illness which
C151: compels the patient to be confined to his residence, at the
C152: residence of the Government Servant;
C154: (ii) All methods of examination for purposes of diagnosis that
C155: are available in the nearest Government Hospital.
C157: (iii) Any consultation with a Specialist or other Medical Officer
C158: stationed in the State that the Authorised Medical Attendant may
C159: certify to be necessary, to such extent and in such manner as the
C160: Special Officer may, in consultation with the Authorised Medical
C161: Attendant, determine ;
C163: (3) There will be cases of not infrequent occurrence in
C164: which, it will be proper for the medical officer to visit the
C165: Government Servant in receipt of salaries under Rupees one
C166: hundred at their residences. The Government trust to the good
C167: sense and good feeling of the medical profession in preference to
C168: laying down any precise rules for such cases.
C170: (4) It should be distinctly understood that a medical officer
C171: will not be expected to attend a Government Servant at his
C172: residence unless the patient is unable to wait upon the medical
C173: officer either at the latter's residence or his consulting room
C174: or till such time as may be appointed by the Medical Officer for
C175: the purpose ;
C177: (5) Medical Officers who are Authorised Medical Attendants to
C178: the Government Servants, should not charge any consultation or
C179: other fees from the Government Servants for the Medical
C180: Attendance rendered to them.
C182: 5. Medical Treatment :-Medical Treatment means use of all medical
C183: and surgical facilities available at the Government Hospital in
C184: which the patient is treated and includes :-
C186: (1) Employment of such pathological, bacteriological,
C187: radiological or other methods of investigation, etc., as are
C188: considered necessary by the Authorised Medical Attendant ;
C190: (2) Supply of such medicines, special or ordinary vaccines,
C191: sera or other therapeutic substances as are ordinarily available
C192: in Government Hospitals in the State ;
C194: [Note :-Wherever a Government Servant consults an Authorised
C195: Medical Attendant/ Specialist in the latter's consulting Room and
C196: medicines were prescribed, the Medical Officer of the Secretariat
C197: Dispensary is authorised to issue medicines to the Government
C198: servant and their families of the prescriptions given by the
C199: Authorised Medical Attendant, Specialist although they are not
C200: attached to the Secretariat Dispensary. In case the medicines
C201: prescribed by the Authorised Medical Attendant/Specialist are not
C202: available even at the Secretariat Dispensary, the Government
C203: Servants may purchase the medicines outside and get the amount
C204: spent thereby reimbursed later as per rules. The Medial Officer,
C205: Secretariat Dispensary, is not ordinarily bound to purchase and
C206: supply the medicines. He will, however, stock all the necessary
C207: medicines in the dispensary to meet the requirements.] [Added by
C208: G.O.Ms.No. 1274, M.&H. (Kl), Dt. 29-12-1978]
C210: (3) Supply of such medicines, vaccines, sera or other
C211: therapeutic substances as are not ordinarily available in
C212: Government Hospitals as the Authorised Medical Attendant may
C213: certify in writing to be essential for the recovery or for the
C214: prevention of deterioration in the condition of the patient.
C216: (i) The refund of the cost of preparations which are not
C217: medicines but are primarily foods, tonics, toilet preparations or
C218: disinfectants is not admissible under the rules. Prescription of
C219: expensive drugs, tonics, laxatives or other elegant and
C220: proprietary preparations for the use of Govt. Servants and
C221: members of their families when drugs of equal therapeutic value
C222: are available in hospital and dispensaries is prohibited. List of
C223: items for which refund is not admissible under the Medical
C224: Attendance Rules are given in Appendix II.
C226: (ii) Sales Tax paid by Government Servants while purchasing
C227: special medicines from the market is refundable under the Rules.
C228: Packing and postage charges paid by Government Servants for
C229: purchasing special medicines from out-stations are not
C230: refundable.
C232: (iii) All claims for refund of expenses incurred on account of
C233: the purchase of the special medicines should be preferred in the
C234: manner indicated in Appendix III.
C236: [Note :-Bills for small amounts upto Rs. 157- at a time need not
C237: be countersigned by the Authorised Medical Attendant. In such
C238: cases, Essentiality Certificate should specifically mention the
C239: names and quantum of medicines required. Also, that certificate
C240: should be marked as cancelled while the bill is submitted so that
C241: it cannot be used again.]
C243: [Added by G.O.Ms.No. 1274, M.&H. (Kl), Dt. 29-12-1978]
C245: (4) Treatment of confinement cases of a Government Servant and
C246: includes prenatal and post-natal treatment.
C248: Note :- The pre-natal and post-natal treatment can be had at the
C249: Government Medical Institutions in the State where facilities are
C250: available and where no such facilities are available the case
C251: should be referred to the concerned nearest Government specialist
C252: by the Authorised Medical Attendant. These treatments should be
C253: treated as "other treatment" for which a woman Government Servant
C254: or the wife or other members of a male Government Servant are
... 564 more rows
